{"text_format":"1","workbook":"xlsx","n_sheets":3,"sheets":["Заправка 2009 (2)","Сводный","Стоимость"],"not_rendered":{"charts":0,"images":0,"macros":1,"external_links":0,"defined_names":2,"comments":0,"pivot_tables":1},"unopened":[],"bounds":{"document_bytes":16777216,"sheet_cells":100000,"rows_first":2000,"rows_last":500,"rows_between":2000,"halvings":0,"cell_chars":16384,"cell_head_chars":4096},"cells_cut":0,"cells_raw":0,"read":"whole","date_system":"1900"}

{"sheet":"Заправка 2009 (2)","index":0,"n_rows":315,"n_cols":6,"rows_kept":315,"cut":false,"hidden":false,"merged":[]}
[null,null,"Сегодня",{"$f":"NOW()","v":"2011-05-10T22:09:44.150"}]
[]
[]
[]
[]
[null,"№","Дата","Модель\n картриджа","Стоимость\nзаправки","Стоимость \nработы"]
[null,{"$f":"ROW(B7)-ROW(Таб_Заправка9[[#Headers],[№]])","v":1},{"$f":"IF((D7)=0,NOW(),C7)","v":"2009-01-13T12:53:08.230"},"Phaser 3120",{"$f":"SUM((Таб_Samsung16[SAMSUNG]=Таб_Заправка9[[#This Row],[Модель\n картриджа]])*Таб_Samsung16[стоимость],(Таб_Xerox17[XEROX]=Таб_Заправка9[[#This Row],[Модель\n картриджа]])*Таб_Xerox17[стоимость],(Таб_HP18[[HP ]]=Таб_Заправка9[[#This Row],[Модель\n картриджа]])*Таб_HP18[стоимось],(Таб_Canon19[CANON]=Таб_Заправка9[[#This Row],[Модель\n картриджа]])*Таб_Canon19[стоимость])","v":300},{"$f":"IF(Таб_Заправка9[[#This Row],[Стоимость\nзаправки]]<>0,Таб_Заправка9[[#This Row],[Стоимость\nзаправки]]-120,\"\")","v":180}]
[null,{"$f":"ROW(B8)-ROW(Таб_Заправка9[[#Headers],[№]])","v":2},{"$f":"IF((D8)=0,NOW(),C8)","v":"2009-01-13T12:53:22.910"},"Phaser 3117/22",{"$f":"SUM((Таб_Samsung16[SAMSUNG]=Таб_Заправка9[[#This Row],[Модель\n картриджа]])*Таб_Samsung16[стоимость],(Таб_Xerox17[XEROX]=Таб_Заправка9[[#This Row],[Модель\n картриджа]])*Таб_Xerox17[стоимость],(Таб_HP18[[HP ]]=Таб_Заправка9[[#This Row],[Модель\n картриджа]])*Таб_HP18[стоимось],(Таб_Canon19[CANON]=Таб_Заправка9[[#This Row],[Модель\n картриджа]])*Таб_Canon19[стоимость])","v":300},{"$f":"IF(Таб_Заправка9[[#This Row],[Стоимость\nзаправки]]<>0,Таб_Заправка9[[#This Row],[Стоимость\nзаправки]]-120,\"\")","v":180}]
[null,{"$f":"ROW(B9)-ROW(Таб_Заправка9[[#Headers],[№]])","v":3},{"$f":"IF((D9)=0,NOW(),C9)","v":"2009-01-13T12:53:31.170"},"Phaser 3117/22",{"$f":"SUM((Таб_Samsung16[SAMSUNG]=Таб_Заправка9[[#This Row],[Модель\n картриджа]])*Таб_Samsung16[стоимость],(Таб_Xerox17[XEROX]=Таб_Заправка9[[#This Row],[Модель\n картриджа]])*Таб_Xerox17[стоимость],(Таб_HP18[[HP ]]=Таб_Заправка9[[#This Row],[Модель\n картриджа]])*Таб_HP18[стоимось],(Таб_Canon19[CANON]=Таб_Заправка9[[#This Row],[Модель\n картриджа]])*Таб_Canon19[стоимость])","v":300},{"$f":"IF(Таб_Заправка9[[#This Row],[Стоимость\nзаправки]]<>0,Таб_Заправка9[[#This Row],[Стоимость\nзаправки]]-120,\"\")","v":180}]
[null,{"$f":"ROW(B10)-ROW(Таб_Заправка9[[#Headers],[№]])","v":4},{"$f":"IF((D10)=0,NOW(),C10)","v":"2009-01-13T12:53:58.860"},"Q2612A     (HP1010)",{"$f":"SUM((Таб_Samsung16[SAMSUNG]=Таб_Заправка9[[#This Row],[Модель\n картриджа]])*Таб_Samsung16[стоимость],(Таб_Xerox17[XEROX]=Таб_Заправка9[[#This Row],[Модель\n картриджа]])*Таб_Xerox17[стоимость],(Таб_HP18[[HP ]]=Таб_Заправка9[[#This Row],[Модель\n картриджа]])*Таб_HP18[стоимось],(Таб_Canon19[CANON]=Таб_Заправка9[[#This Row],[Модель\n картриджа]])*Таб_Canon19[стоимость])","v":250},{"$f":"IF(Таб_Заправка9[[#This Row],[Стоимость\nзаправки]]<>0,Таб_Заправка9[[#This Row],[Стоимость\nзаправки]]-120,\"\")","v":130}]
[null,{"$f":"ROW(B11)-ROW(Таб_Заправка9[[#Headers],[№]])","v":5},{"$f":"IF((D11)=0,NOW(),C11)","v":"2009-01-13T12:54:14.090"},"EP22   (LBP 810)",{"$f":"SUM((Таб_Samsung16[SAMSUNG]=Таб_Заправка9[[#This Row],[Модель\n картриджа]])*Таб_Samsung16[стоимость],(Таб_Xerox17[XEROX]=Таб_Заправка9[[#This Row],[Модель\n картриджа]])*Таб_Xerox17[стоимость],(Таб_HP18[[HP ]]=Таб_Заправка9[[#This Row],[Модель\n картриджа]])*Таб_HP18[стоимось],(Таб_Canon19[CANON]=Таб_Заправка9[[#This Row],[Модель\n картриджа]])*Таб_Canon19[стоимость])","v":250},{"$f":"IF(Таб_Заправка9[[#This Row],[Стоимость\nзаправки]]<>0,Таб_Заправка9[[#This Row],[Стоимость\nзаправки]]-120,\"\")","v":130}]
[null,{"$f":"ROW(B12)-ROW(Таб_Заправка9[[#Headers],[№]])","v":6},{"$f":"IF((D12)=0,NOW(),C12)","v":"2009-01-14T13:12:53.450"},"SCX 4*16",{"$f":"SUM((Таб_Samsung16[SAMSUNG]=Таб_Заправка9[[#This Row],[Модель\n картриджа]])*Таб_Samsung16[стоимость],(Таб_Xerox17[XEROX]=Таб_Заправка9[[#This Row],[Модель\n картриджа]])*Таб_Xerox17[стоимость],(Таб_HP18[[HP ]]=Таб_Заправка9[[#This Row],[Модель\n картриджа]])*Таб_HP18[стоимось],(Таб_Canon19[CANON]=Таб_Заправка9[[#This Row],[Модель\n картриджа]])*Таб_Canon19[стоимость])","v":300},{"$f":"IF(Таб_Заправка9[[#This Row],[Стоимость\nзаправки]]<>0,Таб_Заправка9[[#This Row],[Стоимость\nзаправки]]-120,\"\")","v":180}]
[null,{"$f":"ROW(B13)-ROW(Таб_Заправка9[[#Headers],[№]])","v":7},{"$f":"IF((D13)=0,NOW(),C13)","v":"2009-01-14T13:13:04.530"},"Phaser 3117/22",{"$f":"SUM((Таб_Samsung16[SAMSUNG]=Таб_Заправка9[[#This Row],[Модель\n картриджа]])*Таб_Samsung16[стоимость],(Таб_Xerox17[XEROX]=Таб_Заправка9[[#This Row],[Модель\n картриджа]])*Таб_Xerox17[стоимость],(Таб_HP18[[HP ]]=Таб_Заправка9[[#This Row],[Модель\n картриджа]])*Таб_HP18[стоимось],(Таб_Canon19[CANON]=Таб_Заправка9[[#This Row],[Модель\n картриджа]])*Таб_Canon19[стоимость])","v":300},{"$f":"IF(Таб_Заправка9[[#This Row],[Стоимость\nзаправки]]<>0,Таб_Заправка9[[#This Row],[Стоимость\nзаправки]]-120,\"\")","v":180}]
[null,{"$f":"ROW(B14)-ROW(Таб_Заправка9[[#Headers],[№]])","v":8},{"$f":"IF((D14)=0,NOW(),C14)","v":"2009-01-16T10:20:55.620"},"ML 1610/2010",{"$f":"SUM((Таб_Samsung16[SAMSUNG]=Таб_Заправка9[[#This Row],[Модель\n картриджа]])*Таб_Samsung16[стоимость],(Таб_Xerox17[XEROX]=Таб_Заправка9[[#This Row],[Модель\n картриджа]])*Таб_Xerox17[стоимость],(Таб_HP18[[HP ]]=Таб_Заправка9[[#This Row],[Модель\n картриджа]])*Таб_HP18[стоимось],(Таб_Canon19[CANON]=Таб_Заправка9[[#This Row],[Модель\n картриджа]])*Таб_Canon19[стоимость])","v":300},{"$f":"IF(Таб_Заправка9[[#This Row],[Стоимость\nзаправки]]<>0,Таб_Заправка9[[#This Row],[Стоимость\nзаправки]]-120,\"\")","v":180}]
[null,{"$f":"ROW(B15)-ROW(Таб_Заправка9[[#Headers],[№]])","v":9},{"$f":"IF((D15)=0,NOW(),C15)","v":"2009-01-16T10:21:19.030"},"MFP-3200",{"$f":"SUM((Таб_Samsung16[SAMSUNG]=Таб_Заправка9[[#This Row],[Модель\n картриджа]])*Таб_Samsung16[стоимость],(Таб_Xerox17[XEROX]=Таб_Заправка9[[#This Row],[Модель\n картриджа]])*Таб_Xerox17[стоимость],(Таб_HP18[[HP ]]=Таб_Заправка9[[#This Row],[Модель\n картриджа]])*Таб_HP18[стоимось],(Таб_Canon19[CANON]=Таб_Заправка9[[#This Row],[Модель\n картриджа]])*Таб_Canon19[стоимость])","v":600},{"$f":"IF(Таб_Заправка9[[#This Row],[Стоимость\nзаправки]]<>0,Таб_Заправка9[[#This Row],[Стоимость\nзаправки]]-120,\"\")","v":480}]
[null,{"$f":"ROW(B16)-ROW(Таб_Заправка9[[#Headers],[№]])","v":10},{"$f":"IF((D16)=0,NOW(),C16)","v":"2009-01-19T10:21:42.070"},"PE -16",{"$f":"SUM((Таб_Samsung16[SAMSUNG]=Таб_Заправка9[[#This Row],[Модель\n картриджа]])*Таб_Samsung16[стоимость],(Таб_Xerox17[XEROX]=Таб_Заправка9[[#This Row],[Модель\n картриджа]])*Таб_Xerox17[стоимость],(Таб_HP18[[HP ]]=Таб_Заправка9[[#This Row],[Модель\n картриджа]])*Таб_HP18[стоимось],(Таб_Canon19[CANON]=Таб_Заправка9[[#This Row],[Модель\n картриджа]])*Таб_Canon19[стоимость])","v":300},{"$f":"IF(Таб_Заправка9[[#This Row],[Стоимость\nзаправки]]<>0,Таб_Заправка9[[#This Row],[Стоимость\nзаправки]]-120,\"\")","v":180}]
[null,{"$f":"ROW(B17)-ROW(Таб_Заправка9[[#Headers],[№]])","v":11},{"$f":"IF((D17)=0,NOW(),C17)","v":"2009-01-19T14:01:42.460"},"CB436A   (HP P1505n)",{"$f":"SUM((Таб_Samsung16[SAMSUNG]=Таб_Заправка9[[#This Row],[Модель\n картриджа]])*Таб_Samsung16[стоимость],(Таб_Xerox17[XEROX]=Таб_Заправка9[[#This Row],[Модель\n картриджа]])*Таб_Xerox17[стоимость],(Таб_HP18[[HP ]]=Таб_Заправка9[[#This Row],[Модель\n картриджа]])*Таб_HP18[стоимось],(Таб_Canon19[CANON]=Таб_Заправка9[[#This Row],[Модель\n картриджа]])*Таб_Canon19[стоимость])","v":250},{"$f":"IF(Таб_Заправка9[[#This Row],[Стоимость\nзаправки]]<>0,Таб_Заправка9[[#This Row],[Стоимость\nзаправки]]-120,\"\")","v":130}]
[null,{"$f":"ROW(B18)-ROW(Таб_Заправка9[[#Headers],[№]])","v":12},{"$f":"IF((D18)=0,NOW(),C18)","v":"2009-01-19T14:54:23.060"},"HP 1320     (5949)",{"$f":"SUM((Таб_Samsung16[SAMSUNG]=Таб_Заправка9[[#This Row],[Модель\n картриджа]])*Таб_Samsung16[стоимость],(Таб_Xerox17[XEROX]=Таб_Заправка9[[#This Row],[Модель\n картриджа]])*Таб_Xerox17[стоимость],(Таб_HP18[[HP ]]=Таб_Заправка9[[#This Row],[Модель\n картриджа]])*Таб_HP18[стоимось],(Таб_Canon19[CANON]=Таб_Заправка9[[#This Row],[Модель\n картриджа]])*Таб_Canon19[стоимость])","v":300},{"$f":"IF(Таб_Заправка9[[#This Row],[Стоимость\nзаправки]]<>0,Таб_Заправка9[[#This Row],[Стоимость\nзаправки]]-120,\"\")","v":180}]
[null,{"$f":"ROW(B19)-ROW(Таб_Заправка9[[#Headers],[№]])","v":13},{"$f":"IF((D19)=0,NOW(),C19)","v":"2009-01-19T16:41:33.120"},"WC- 3119",{"$f":"SUM((Таб_Samsung16[SAMSUNG]=Таб_Заправка9[[#This Row],[Модель\n картриджа]])*Таб_Samsung16[стоимость],(Таб_Xerox17[XEROX]=Таб_Заправка9[[#This Row],[Модель\n картриджа]])*Таб_Xerox17[стоимость],(Таб_HP18[[HP ]]=Таб_Заправка9[[#This Row],[Модель\n картриджа]])*Таб_HP18[стоимось],(Таб_Canon19[CANON]=Таб_Заправка9[[#This Row],[Модель\n картриджа]])*Таб_Canon19[стоимость])","v":400},{"$f":"IF(Таб_Заправка9[[#This Row],[Стоимость\nзаправки]]<>0,Таб_Заправка9[[#This Row],[Стоимость\nзаправки]]-120,\"\")","v":280}]
[null,{"$f":"ROW(B20)-ROW(Таб_Заправка9[[#Headers],[№]])","v":14},{"$f":"IF((D20)=0,NOW(),C20)","v":"2009-01-22T11:14:04.450"},"SCX 4200",{"$f":"SUM((Таб_Samsung16[SAMSUNG]=Таб_Заправка9[[#This Row],[Модель\n картриджа]])*Таб_Samsung16[стоимость],(Таб_Xerox17[XEROX]=Таб_Заправка9[[#This Row],[Модель\n картриджа]])*Таб_Xerox17[стоимость],(Таб_HP18[[HP ]]=Таб_Заправка9[[#This Row],[Модель\n картриджа]])*Таб_HP18[стоимось],(Таб_Canon19[CANON]=Таб_Заправка9[[#This Row],[Модель\n картриджа]])*Таб_Canon19[стоимость])","v":400},{"$f":"IF(Таб_Заправка9[[#This Row],[Стоимость\nзаправки]]<>0,Таб_Заправка9[[#This Row],[Стоимость\nзаправки]]-120,\"\")","v":280}]
[null,{"$f":"ROW(B21)-ROW(Таб_Заправка9[[#Headers],[№]])","v":15},{"$f":"IF((D21)=0,NOW(),C21)","v":"2009-01-22T11:14:10.350"},"WC- 3119",{"$f":"SUM((Таб_Samsung16[SAMSUNG]=Таб_Заправка9[[#This Row],[Модель\n картриджа]])*Таб_Samsung16[стоимость],(Таб_Xerox17[XEROX]=Таб_Заправка9[[#This Row],[Модель\n картриджа]])*Таб_Xerox17[стоимость],(Таб_HP18[[HP ]]=Таб_Заправка9[[#This Row],[Модель\n картриджа]])*Таб_HP18[стоимось],(Таб_Canon19[CANON]=Таб_Заправка9[[#This Row],[Модель\n картриджа]])*Таб_Canon19[стоимость])","v":400},{"$f":"IF(Таб_Заправка9[[#This Row],[Стоимость\nзаправки]]<>0,Таб_Заправка9[[#This Row],[Стоимость\nзаправки]]-120,\"\")","v":280}]
[null,{"$f":"ROW(B22)-ROW(Таб_Заправка9[[#Headers],[№]])","v":16},{"$f":"IF((D22)=0,NOW(),C22)","v":"2009-01-22T11:14:15.180"},"Phaser 3250",{"$f":"SUM((Таб_Samsung16[SAMSUNG]=Таб_Заправка9[[#This Row],[Модель\n картриджа]])*Таб_Samsung16[стоимость],(Таб_Xerox17[XEROX]=Таб_Заправка9[[#This Row],[Модель\n картриджа]])*Таб_Xerox17[стоимость],(Таб_HP18[[HP ]]=Таб_Заправка9[[#This Row],[Модель\n картриджа]])*Таб_HP18[стоимось],(Таб_Canon19[CANON]=Таб_Заправка9[[#This Row],[Модель\n картриджа]])*Таб_Canon19[стоимость])","v":700},{"$f":"IF(Таб_Заправка9[[#This Row],[Стоимость\nзаправки]]<>0,Таб_Заправка9[[#This Row],[Стоимость\nзаправки]]-120,\"\")","v":580}]
[null,{"$f":"ROW(B23)-ROW(Таб_Заправка9[[#Headers],[№]])","v":17},{"$f":"IF((D23)=0,NOW(),C23)","v":"2009-01-22T11:14:25.620"},"MFP-3200",{"$f":"SUM((Таб_Samsung16[SAMSUNG]=Таб_Заправка9[[#This Row],[Модель\n картриджа]])*Таб_Samsung16[стоимость],(Таб_Xerox17[XEROX]=Таб_Заправка9[[#This Row],[Модель\n картриджа]])*Таб_Xerox17[стоимость],(Таб_HP18[[HP ]]=Таб_Заправка9[[#This Row],[Модель\n картриджа]])*Таб_HP18[стоимось],(Таб_Canon19[CANON]=Таб_Заправка9[[#This Row],[Модель\n картриджа]])*Таб_Canon19[стоимость])","v":600},{"$f":"IF(Таб_Заправка9[[#This Row],[Стоимость\nзаправки]]<>0,Таб_Заправка9[[#This Row],[Стоимость\nзаправки]]-120,\"\")","v":480}]
[null,{"$f":"ROW(B24)-ROW(Таб_Заправка9[[#Headers],[№]])","v":18},{"$f":"IF((D24)=0,NOW(),C24)","v":"2009-01-22T13:09:35.870"},"Q2612A     (HP1010)",{"$f":"SUM((Таб_Samsung16[SAMSUNG]=Таб_Заправка9[[#This Row],[Модель\n картриджа]])*Таб_Samsung16[стоимость],(Таб_Xerox17[XEROX]=Таб_Заправка9[[#This Row],[Модель\n картриджа]])*Таб_Xerox17[стоимость],(Таб_HP18[[HP ]]=Таб_Заправка9[[#This Row],[Модель\n картриджа]])*Таб_HP18[стоимось],(Таб_Canon19[CANON]=Таб_Заправка9[[#This Row],[Модель\n картриджа]])*Таб_Canon19[стоимость])","v":250},{"$f":"IF(Таб_Заправка9[[#This Row],[Стоимость\nзаправки]]<>0,Таб_Заправка9[[#This Row],[Стоимость\nзаправки]]-120,\"\")","v":130}]
[null,{"$f":"ROW(B25)-ROW(Таб_Заправка9[[#Headers],[№]])","v":19},{"$f":"IF((D25)=0,NOW(),C25)","v":"2009-01-22T13:10:01.530"},"ML 1210",{"$f":"SUM((Таб_Samsung16[SAMSUNG]=Таб_Заправка9[[#This Row],[Модель\n картриджа]])*Таб_Samsung16[стоимость],(Таб_Xerox17[XEROX]=Таб_Заправка9[[#This Row],[Модель\n картриджа]])*Таб_Xerox17[стоимость],(Таб_HP18[[HP ]]=Таб_Заправка9[[#This Row],[Модель\n картриджа]])*Таб_HP18[стоимось],(Таб_Canon19[CANON]=Таб_Заправка9[[#This Row],[Модель\n картриджа]])*Таб_Canon19[стоимость])","v":300},{"$f":"IF(Таб_Заправка9[[#This Row],[Стоимость\nзаправки]]<>0,Таб_Заправка9[[#This Row],[Стоимость\nзаправки]]-120,\"\")","v":180}]
[null,{"$f":"ROW(B26)-ROW(Таб_Заправка9[[#Headers],[№]])","v":20},{"$f":"IF((D26)=0,NOW(),C26)","v":"2009-01-23T15:57:23.820"},"PE220",{"$f":"SUM((Таб_Samsung16[SAMSUNG]=Таб_Заправка9[[#This Row],[Модель\n картриджа]])*Таб_Samsung16[стоимость],(Таб_Xerox17[XEROX]=Таб_Заправка9[[#This Row],[Модель\n картриджа]])*Таб_Xerox17[стоимость],(Таб_HP18[[HP ]]=Таб_Заправка9[[#This Row],[Модель\n картриджа]])*Таб_HP18[стоимось],(Таб_Canon19[CANON]=Таб_Заправка9[[#This Row],[Модель\n картриджа]])*Таб_Canon19[стоимость])","v":400},{"$f":"IF(Таб_Заправка9[[#This Row],[Стоимость\nзаправки]]<>0,Таб_Заправка9[[#This Row],[Стоимость\nзаправки]]-120,\"\")","v":280}]
[null,{"$f":"ROW(B27)-ROW(Таб_Заправка9[[#Headers],[№]])","v":21},{"$f":"IF((D27)=0,NOW(),C27)","v":"2009-01-26T11:18:44.140"},"SCX 4200",{"$f":"SUM((Таб_Samsung16[SAMSUNG]=Таб_Заправка9[[#This Row],[Модель\n картриджа]])*Таб_Samsung16[стоимость],(Таб_Xerox17[XEROX]=Таб_Заправка9[[#This Row],[Модель\n картриджа]])*Таб_Xerox17[стоимость],(Таб_HP18[[HP ]]=Таб_Заправка9[[#This Row],[Модель\n картриджа]])*Таб_HP18[стоимось],(Таб_Canon19[CANON]=Таб_Заправка9[[#This Row],[Модель\n картриджа]])*Таб_Canon19[стоимость])","v":400},{"$f":"IF(Таб_Заправка9[[#This Row],[Стоимость\nзаправки]]<>0,Таб_Заправка9[[#This Row],[Стоимость\nзаправки]]-120,\"\")","v":280}]
[null,{"$f":"ROW(B28)-ROW(Таб_Заправка9[[#Headers],[№]])","v":22},{"$f":"IF((D28)=0,NOW(),C28)","v":"2009-01-26T11:18:52.230"},"Q2612A     (HP1010)",{"$f":"SUM((Таб_Samsung16[SAMSUNG]=Таб_Заправка9[[#This Row],[Модель\n картриджа]])*Таб_Samsung16[стоимость],(Таб_Xerox17[XEROX]=Таб_Заправка9[[#This Row],[Модель\n картриджа]])*Таб_Xerox17[стоимость],(Таб_HP18[[HP ]]=Таб_Заправка9[[#This Row],[Модель\n картриджа]])*Таб_HP18[стоимось],(Таб_Canon19[CANON]=Таб_Заправка9[[#This Row],[Модель\n картриджа]])*Таб_Canon19[стоимость])","v":250},{"$f":"IF(Таб_Заправка9[[#This Row],[Стоимость\nзаправки]]<>0,Таб_Заправка9[[#This Row],[Стоимость\nзаправки]]-120,\"\")","v":130}]
[null,{"$f":"ROW(B29)-ROW(Таб_Заправка9[[#Headers],[№]])","v":23},{"$f":"IF((D29)=0,NOW(),C29)","v":"2009-01-26T11:19:02.980"},"Q2612A     (HP1010)",{"$f":"SUM((Таб_Samsung16[SAMSUNG]=Таб_Заправка9[[#This Row],[Модель\n картриджа]])*Таб_Samsung16[стоимость],(Таб_Xerox17[XEROX]=Таб_Заправка9[[#This Row],[Модель\n картриджа]])*Таб_Xerox17[стоимость],(Таб_HP18[[HP ]]=Таб_Заправка9[[#This Row],[Модель\n картриджа]])*Таб_HP18[стоимось],(Таб_Canon19[CANON]=Таб_Заправка9[[#This Row],[Модель\n картриджа]])*Таб_Canon19[стоимость])","v":250},{"$f":"IF(Таб_Заправка9[[#This Row],[Стоимость\nзаправки]]<>0,Таб_Заправка9[[#This Row],[Стоимость\nзаправки]]-120,\"\")","v":130}]
[null,{"$f":"ROW(B30)-ROW(Таб_Заправка9[[#Headers],[№]])","v":24},{"$f":"IF((D30)=0,NOW(),C30)","v":"2009-01-26T13:43:58.170"},"SCX 4100",{"$f":"SUM((Таб_Samsung16[SAMSUNG]=Таб_Заправка9[[#This Row],[Модель\n картриджа]])*Таб_Samsung16[стоимость],(Таб_Xerox17[XEROX]=Таб_Заправка9[[#This Row],[Модель\n картриджа]])*Таб_Xerox17[стоимость],(Таб_HP18[[HP ]]=Таб_Заправка9[[#This Row],[Модель\n картриджа]])*Таб_HP18[стоимось],(Таб_Canon19[CANON]=Таб_Заправка9[[#This Row],[Модель\n картриджа]])*Таб_Canon19[стоимость])","v":300},{"$f":"IF(Таб_Заправка9[[#This Row],[Стоимость\nзаправки]]<>0,Таб_Заправка9[[#This Row],[Стоимость\nзаправки]]-120,\"\")","v":180}]
[null,{"$f":"ROW(B31)-ROW(Таб_Заправка9[[#Headers],[№]])","v":25},{"$f":"IF((D31)=0,NOW(),C31)","v":"2009-01-27T11:29:37.540"},"SCX 4100",{"$f":"SUM((Таб_Samsung16[SAMSUNG]=Таб_Заправка9[[#This Row],[Модель\n картриджа]])*Таб_Samsung16[стоимость],(Таб_Xerox17[XEROX]=Таб_Заправка9[[#This Row],[Модель\n картриджа]])*Таб_Xerox17[стоимость],(Таб_HP18[[HP ]]=Таб_Заправка9[[#This Row],[Модель\n картриджа]])*Таб_HP18[стоимось],(Таб_Canon19[CANON]=Таб_Заправка9[[#This Row],[Модель\n картриджа]])*Таб_Canon19[стоимость])","v":300},{"$f":"IF(Таб_Заправка9[[#This Row],[Стоимость\nзаправки]]<>0,Таб_Заправка9[[#This Row],[Стоимость\nзаправки]]-120,\"\")","v":180}]
[null,{"$f":"ROW(B32)-ROW(Таб_Заправка9[[#Headers],[№]])","v":26},{"$f":"IF((D32)=0,NOW(),C32)","v":"2009-01-27T11:34:37.290"},"Q2612A     (HP1010)",{"$f":"SUM((Таб_Samsung16[SAMSUNG]=Таб_Заправка9[[#This Row],[Модель\n картриджа]])*Таб_Samsung16[стоимость],(Таб_Xerox17[XEROX]=Таб_Заправка9[[#This Row],[Модель\n картриджа]])*Таб_Xerox17[стоимость],(Таб_HP18[[HP ]]=Таб_Заправка9[[#This Row],[Модель\n картриджа]])*Таб_HP18[стоимось],(Таб_Canon19[CANON]=Таб_Заправка9[[#This Row],[Модель\n картриджа]])*Таб_Canon19[стоимость])","v":250},{"$f":"IF(Таб_Заправка9[[#This Row],[Стоимость\nзаправки]]<>0,Таб_Заправка9[[#This Row],[Стоимость\nзаправки]]-120,\"\")","v":130}]
[null,{"$f":"ROW(B33)-ROW(Таб_Заправка9[[#Headers],[№]])","v":27},{"$f":"IF((D33)=0,NOW(),C33)","v":"2009-01-27T11:34:45.320"},"FX-10   (L100/ L120)",{"$f":"SUM((Таб_Samsung16[SAMSUNG]=Таб_Заправка9[[#This Row],[Модель\n картриджа]])*Таб_Samsung16[стоимость],(Таб_Xerox17[XEROX]=Таб_Заправка9[[#This Row],[Модель\n картриджа]])*Таб_Xerox17[стоимость],(Таб_HP18[[HP ]]=Таб_Заправка9[[#This Row],[Модель\n картриджа]])*Таб_HP18[стоимось],(Таб_Canon19[CANON]=Таб_Заправка9[[#This Row],[Модель\n картриджа]])*Таб_Canon19[стоимость])","v":250},{"$f":"IF(Таб_Заправка9[[#This Row],[Стоимость\nзаправки]]<>0,Таб_Заправка9[[#This Row],[Стоимость\nзаправки]]-120,\"\")","v":130}]
[null,{"$f":"ROW(B34)-ROW(Таб_Заправка9[[#Headers],[№]])","v":28},{"$f":"IF((D34)=0,NOW(),C34)","v":"2009-01-27T11:34:51.570"},"EP22   (LBP 810)",{"$f":"SUM((Таб_Samsung16[SAMSUNG]=Таб_Заправка9[[#This Row],[Модель\n картриджа]])*Таб_Samsung16[стоимость],(Таб_Xerox17[XEROX]=Таб_Заправка9[[#This Row],[Модель\n картриджа]])*Таб_Xerox17[стоимость],(Таб_HP18[[HP ]]=Таб_Заправка9[[#This Row],[Модель\n картриджа]])*Таб_HP18[стоимось],(Таб_Canon19[CANON]=Таб_Заправка9[[#This Row],[Модель\n картриджа]])*Таб_Canon19[стоимость])","v":250},{"$f":"IF(Таб_Заправка9[[#This Row],[Стоимость\nзаправки]]<>0,Таб_Заправка9[[#This Row],[Стоимость\nзаправки]]-120,\"\")","v":130}]
[null,{"$f":"ROW(B35)-ROW(Таб_Заправка9[[#Headers],[№]])","v":29},{"$f":"IF((D35)=0,NOW(),C35)","v":"2009-01-27T13:56:07.980"},"SCX 4200",{"$f":"SUM((Таб_Samsung16[SAMSUNG]=Таб_Заправка9[[#This Row],[Модель\n картриджа]])*Таб_Samsung16[стоимость],(Таб_Xerox17[XEROX]=Таб_Заправка9[[#This Row],[Модель\n картриджа]])*Таб_Xerox17[стоимость],(Таб_HP18[[HP ]]=Таб_Заправка9[[#This Row],[Модель\n картриджа]])*Таб_HP18[стоимось],(Таб_Canon19[CANON]=Таб_Заправка9[[#This Row],[Модель\n картриджа]])*Таб_Canon19[стоимость])","v":400},{"$f":"IF(Таб_Заправка9[[#This Row],[Стоимость\nзаправки]]<>0,Таб_Заправка9[[#This Row],[Стоимость\nзаправки]]-120,\"\")","v":280}]
[null,{"$f":"ROW(B36)-ROW(Таб_Заправка9[[#Headers],[№]])","v":30},{"$f":"IF((D36)=0,NOW(),C36)","v":"2009-01-27T14:40:07.480"},"PE 114",{"$f":"SUM((Таб_Samsung16[SAMSUNG]=Таб_Заправка9[[#This Row],[Модель\n картриджа]])*Таб_Samsung16[стоимость],(Таб_Xerox17[XEROX]=Таб_Заправка9[[#This Row],[Модель\n картриджа]])*Таб_Xerox17[стоимость],(Таб_HP18[[HP ]]=Таб_Заправка9[[#This Row],[Модель\n картриджа]])*Таб_HP18[стоимось],(Таб_Canon19[CANON]=Таб_Заправка9[[#This Row],[Модель\n картриджа]])*Таб_Canon19[стоимость])","v":300},{"$f":"IF(Таб_Заправка9[[#This Row],[Стоимость\nзаправки]]<>0,Таб_Заправка9[[#This Row],[Стоимость\nзаправки]]-120,\"\")","v":180}]
[null,{"$f":"ROW(B37)-ROW(Таб_Заправка9[[#Headers],[№]])","v":31},{"$f":"IF((D37)=0,NOW(),C37)","v":"2009-01-27T14:40:30.340"},"SCX 4100",{"$f":"SUM((Таб_Samsung16[SAMSUNG]=Таб_Заправка9[[#This Row],[Модель\n картриджа]])*Таб_Samsung16[стоимость],(Таб_Xerox17[XEROX]=Таб_Заправка9[[#This Row],[Модель\n картриджа]])*Таб_Xerox17[стоимость],(Таб_HP18[[HP ]]=Таб_Заправка9[[#This Row],[Модель\n картриджа]])*Таб_HP18[стоимось],(Таб_Canon19[CANON]=Таб_Заправка9[[#This Row],[Модель\n картриджа]])*Таб_Canon19[стоимость])","v":300},{"$f":"IF(Таб_Заправка9[[#This Row],[Стоимость\nзаправки]]<>0,Таб_Заправка9[[#This Row],[Стоимость\nзаправки]]-120,\"\")","v":180}]
[null,{"$f":"ROW(B38)-ROW(Таб_Заправка9[[#Headers],[№]])","v":32},{"$f":"IF((D38)=0,NOW(),C38)","v":"2009-01-27T16:16:19.260"},"Q2612A     (HP1010)",{"$f":"SUM((Таб_Samsung16[SAMSUNG]=Таб_Заправка9[[#This Row],[Модель\n картриджа]])*Таб_Samsung16[стоимость],(Таб_Xerox17[XEROX]=Таб_Заправка9[[#This Row],[Модель\n картриджа]])*Таб_Xerox17[стоимость],(Таб_HP18[[HP ]]=Таб_Заправка9[[#This Row],[Модель\n картриджа]])*Таб_HP18[стоимось],(Таб_Canon19[CANON]=Таб_Заправка9[[#This Row],[Модель\n картриджа]])*Таб_Canon19[стоимость])","v":250},{"$f":"IF(Таб_Заправка9[[#This Row],[Стоимость\nзаправки]]<>0,Таб_Заправка9[[#This Row],[Стоимость\nзаправки]]-120,\"\")","v":130}]
[null,{"$f":"ROW(B39)-ROW(Таб_Заправка9[[#Headers],[№]])","v":33},{"$f":"IF((D39)=0,NOW(),C39)","v":"2009-01-28T10:50:39.310"},"С-703   (LBP2900)",{"$f":"SUM((Таб_Samsung16[SAMSUNG]=Таб_Заправка9[[#This Row],[Модель\n картриджа]])*Таб_Samsung16[стоимость],(Таб_Xerox17[XEROX]=Таб_Заправка9[[#This Row],[Модель\n картриджа]])*Таб_Xerox17[стоимость],(Таб_HP18[[HP ]]=Таб_Заправка9[[#This Row],[Модель\n картриджа]])*Таб_HP18[стоимось],(Таб_Canon19[CANON]=Таб_Заправка9[[#This Row],[Модель\n картриджа]])*Таб_Canon19[стоимость])","v":250},{"$f":"IF(Таб_Заправка9[[#This Row],[Стоимость\nзаправки]]<>0,Таб_Заправка9[[#This Row],[Стоимость\nзаправки]]-120,\"\")","v":130}]
[null,{"$f":"ROW(B40)-ROW(Таб_Заправка9[[#Headers],[№]])","v":34},{"$f":"IF((D40)=0,NOW(),C40)","v":"2009-01-28T12:02:04.260"},"E16/30",{"$f":"SUM((Таб_Samsung16[SAMSUNG]=Таб_Заправка9[[#This Row],[Модель\n картриджа]])*Таб_Samsung16[стоимость],(Таб_Xerox17[XEROX]=Таб_Заправка9[[#This Row],[Модель\n картриджа]])*Таб_Xerox17[стоимость],(Таб_HP18[[HP ]]=Таб_Заправка9[[#This Row],[Модель\n картриджа]])*Таб_HP18[стоимось],(Таб_Canon19[CANON]=Таб_Заправка9[[#This Row],[Модель\n картриджа]])*Таб_Canon19[стоимость])","v":250},{"$f":"IF(Таб_Заправка9[[#This Row],[Стоимость\nзаправки]]<>0,Таб_Заправка9[[#This Row],[Стоимость\nзаправки]]-120,\"\")","v":130}]
[null,{"$f":"ROW(B41)-ROW(Таб_Заправка9[[#Headers],[№]])","v":35},{"$f":"IF((D41)=0,NOW(),C41)","v":"2009-01-28T16:35:17.510"},"SCX 4200",{"$f":"SUM((Таб_Samsung16[SAMSUNG]=Таб_Заправка9[[#This Row],[Модель\n картриджа]])*Таб_Samsung16[стоимость],(Таб_Xerox17[XEROX]=Таб_Заправка9[[#This Row],[Модель\n картриджа]])*Таб_Xerox17[стоимость],(Таб_HP18[[HP ]]=Таб_Заправка9[[#This Row],[Модель\n картриджа]])*Таб_HP18[стоимось],(Таб_Canon19[CANON]=Таб_Заправка9[[#This Row],[Модель\n картриджа]])*Таб_Canon19[стоимость])","v":400},{"$f":"IF(Таб_Заправка9[[#This Row],[Стоимость\nзаправки]]<>0,Таб_Заправка9[[#This Row],[Стоимость\nзаправки]]-120,\"\")","v":280}]
[null,{"$f":"ROW(B42)-ROW(Таб_Заправка9[[#Headers],[№]])","v":36},{"$f":"IF((D42)=0,NOW(),C42)","v":"2009-01-29T15:01:03.230"},"Phaser 3250",{"$f":"SUM((Таб_Samsung16[SAMSUNG]=Таб_Заправка9[[#This Row],[Модель\n картриджа]])*Таб_Samsung16[стоимость],(Таб_Xerox17[XEROX]=Таб_Заправка9[[#This Row],[Модель\n картриджа]])*Таб_Xerox17[стоимость],(Таб_HP18[[HP ]]=Таб_Заправка9[[#This Row],[Модель\n картриджа]])*Таб_HP18[стоимось],(Таб_Canon19[CANON]=Таб_Заправка9[[#This Row],[Модель\n картриджа]])*Таб_Canon19[стоимость])","v":700},{"$f":"IF(Таб_Заправка9[[#This Row],[Стоимость\nзаправки]]<>0,Таб_Заправка9[[#This Row],[Стоимость\nзаправки]]-120,\"\")","v":580}]
[null,{"$f":"ROW(B43)-ROW(Таб_Заправка9[[#Headers],[№]])","v":37},{"$f":"IF((D43)=0,NOW(),C43)","v":"2009-01-30T13:50:52.900"},"PE -16",{"$f":"SUM((Таб_Samsung16[SAMSUNG]=Таб_Заправка9[[#This Row],[Модель\n картриджа]])*Таб_Samsung16[стоимость],(Таб_Xerox17[XEROX]=Таб_Заправка9[[#This Row],[Модель\n картриджа]])*Таб_Xerox17[стоимость],(Таб_HP18[[HP ]]=Таб_Заправка9[[#This Row],[Модель\n картриджа]])*Таб_HP18[стоимось],(Таб_Canon19[CANON]=Таб_Заправка9[[#This Row],[Модель\n картриджа]])*Таб_Canon19[стоимость])","v":300},{"$f":"IF(Таб_Заправка9[[#This Row],[Стоимость\nзаправки]]<>0,Таб_Заправка9[[#This Row],[Стоимость\nзаправки]]-120,\"\")","v":180}]
[null,{"$f":"ROW(B44)-ROW(Таб_Заправка9[[#Headers],[№]])","v":38},{"$f":"IF((D44)=0,NOW(),C44)","v":"2009-01-30T13:51:01.700"},"Q7553A   (HP P2015)",{"$f":"SUM((Таб_Samsung16[SAMSUNG]=Таб_Заправка9[[#This Row],[Модель\n картриджа]])*Таб_Samsung16[стоимость],(Таб_Xerox17[XEROX]=Таб_Заправка9[[#This Row],[Модель\n картриджа]])*Таб_Xerox17[стоимость],(Таб_HP18[[HP ]]=Таб_Заправка9[[#This Row],[Модель\n картриджа]])*Таб_HP18[стоимось],(Таб_Canon19[CANON]=Таб_Заправка9[[#This Row],[Модель\n картриджа]])*Таб_Canon19[стоимость])","v":300},{"$f":"IF(Таб_Заправка9[[#This Row],[Стоимость\nзаправки]]<>0,Таб_Заправка9[[#This Row],[Стоимость\nзаправки]]-120,\"\")","v":180}]
[null,{"$f":"ROW(B45)-ROW(Таб_Заправка9[[#Headers],[№]])","v":39},{"$f":"IF((D45)=0,NOW(),C45)","v":"2009-01-30T16:20:32.980"},"PE220",{"$f":"SUM((Таб_Samsung16[SAMSUNG]=Таб_Заправка9[[#This Row],[Модель\n картриджа]])*Таб_Samsung16[стоимость],(Таб_Xerox17[XEROX]=Таб_Заправка9[[#This Row],[Модель\n картриджа]])*Таб_Xerox17[стоимость],(Таб_HP18[[HP ]]=Таб_Заправка9[[#This Row],[Модель\n картриджа]])*Таб_HP18[стоимось],(Таб_Canon19[CANON]=Таб_Заправка9[[#This Row],[Модель\n картриджа]])*Таб_Canon19[стоимость])","v":400},{"$f":"IF(Таб_Заправка9[[#This Row],[Стоимость\nзаправки]]<>0,Таб_Заправка9[[#This Row],[Стоимость\nзаправки]]-120,\"\")","v":280}]
[null,{"$f":"ROW(B46)-ROW(Таб_Заправка9[[#Headers],[№]])","v":40},{"$f":"IF((D46)=0,NOW(),C46)","v":"2009-02-02T11:03:36.500"},"С-703   (LBP2900)",{"$f":"SUM((Таб_Samsung16[SAMSUNG]=Таб_Заправка9[[#This Row],[Модель\n картриджа]])*Таб_Samsung16[стоимость],(Таб_Xerox17[XEROX]=Таб_Заправка9[[#This Row],[Модель\n картриджа]])*Таб_Xerox17[стоимость],(Таб_HP18[[HP ]]=Таб_Заправка9[[#This Row],[Модель\n картриджа]])*Таб_HP18[стоимось],(Таб_Canon19[CANON]=Таб_Заправка9[[#This Row],[Модель\n картриджа]])*Таб_Canon19[стоимость])","v":250},{"$f":"IF(Таб_Заправка9[[#This Row],[Стоимость\nзаправки]]<>0,Таб_Заправка9[[#This Row],[Стоимость\nзаправки]]-120,\"\")","v":130}]
[null,{"$f":"ROW(B47)-ROW(Таб_Заправка9[[#Headers],[№]])","v":41},{"$f":"IF((D47)=0,NOW(),C47)","v":"2009-02-02T11:04:17.370"},"ML 1210",{"$f":"SUM((Таб_Samsung16[SAMSUNG]=Таб_Заправка9[[#This Row],[Модель\n картриджа]])*Таб_Samsung16[стоимость],(Таб_Xerox17[XEROX]=Таб_Заправка9[[#This Row],[Модель\n картриджа]])*Таб_Xerox17[стоимость],(Таб_HP18[[HP ]]=Таб_Заправка9[[#This Row],[Модель\n картриджа]])*Таб_HP18[стоимось],(Таб_Canon19[CANON]=Таб_Заправка9[[#This Row],[Модель\n картриджа]])*Таб_Canon19[стоимость])","v":300},{"$f":"IF(Таб_Заправка9[[#This Row],[Стоимость\nзаправки]]<>0,Таб_Заправка9[[#This Row],[Стоимость\nзаправки]]-120,\"\")","v":180}]
[null,{"$f":"ROW(B48)-ROW(Таб_Заправка9[[#Headers],[№]])","v":42},{"$f":"IF((D48)=0,NOW(),C48)","v":"2009-02-02T11:04:21.760"},"Q2612A     (HP1010)",{"$f":"SUM((Таб_Samsung16[SAMSUNG]=Таб_Заправка9[[#This Row],[Модель\n картриджа]])*Таб_Samsung16[стоимость],(Таб_Xerox17[XEROX]=Таб_Заправка9[[#This Row],[Модель\n картриджа]])*Таб_Xerox17[стоимость],(Таб_HP18[[HP ]]=Таб_Заправка9[[#This Row],[Модель\n картриджа]])*Таб_HP18[стоимось],(Таб_Canon19[CANON]=Таб_Заправка9[[#This Row],[Модель\n картриджа]])*Таб_Canon19[стоимость])","v":250},{"$f":"IF(Таб_Заправка9[[#This Row],[Стоимость\nзаправки]]<>0,Таб_Заправка9[[#This Row],[Стоимость\nзаправки]]-120,\"\")","v":130}]
[null,{"$f":"ROW(B49)-ROW(Таб_Заправка9[[#Headers],[№]])","v":43},{"$f":"IF((D49)=0,NOW(),C49)","v":"2009-02-02T11:04:35.760"},"EP-27   (LBP3200)",{"$f":"SUM((Таб_Samsung16[SAMSUNG]=Таб_Заправка9[[#This Row],[Модель\n картриджа]])*Таб_Samsung16[стоимость],(Таб_Xerox17[XEROX]=Таб_Заправка9[[#This Row],[Модель\n картриджа]])*Таб_Xerox17[стоимость],(Таб_HP18[[HP ]]=Таб_Заправка9[[#This Row],[Модель\n картриджа]])*Таб_HP18[стоимось],(Таб_Canon19[CANON]=Таб_Заправка9[[#This Row],[Модель\n картриджа]])*Таб_Canon19[стоимость])","v":250},{"$f":"IF(Таб_Заправка9[[#This Row],[Стоимость\nзаправки]]<>0,Таб_Заправка9[[#This Row],[Стоимость\nзаправки]]-120,\"\")","v":130}]
[null,{"$f":"ROW(B50)-ROW(Таб_Заправка9[[#Headers],[№]])","v":44},{"$f":"IF((D50)=0,NOW(),C50)","v":"2009-02-02T11:59:34.340"},"ML 1610/2010",{"$f":"SUM((Таб_Samsung16[SAMSUNG]=Таб_Заправка9[[#This Row],[Модель\n картриджа]])*Таб_Samsung16[стоимость],(Таб_Xerox17[XEROX]=Таб_Заправка9[[#This Row],[Модель\n картриджа]])*Таб_Xerox17[стоимость],(Таб_HP18[[HP ]]=Таб_Заправка9[[#This Row],[Модель\n картриджа]])*Таб_HP18[стоимось],(Таб_Canon19[CANON]=Таб_Заправка9[[#This Row],[Модель\n картриджа]])*Таб_Canon19[стоимость])","v":300},{"$f":"IF(Таб_Заправка9[[#This Row],[Стоимость\nзаправки]]<>0,Таб_Заправка9[[#This Row],[Стоимость\nзаправки]]-120,\"\")","v":180}]
[null,{"$f":"ROW(B51)-ROW(Таб_Заправка9[[#Headers],[№]])","v":45},{"$f":"IF((D51)=0,NOW(),C51)","v":"2009-02-02T11:59:43.290"},"Q2612A     (HP1010)",{"$f":"SUM((Таб_Samsung16[SAMSUNG]=Таб_Заправка9[[#This Row],[Модель\n картриджа]])*Таб_Samsung16[стоимость],(Таб_Xerox17[XEROX]=Таб_Заправка9[[#This Row],[Модель\n картриджа]])*Таб_Xerox17[стоимость],(Таб_HP18[[HP ]]=Таб_Заправка9[[#This Row],[Модель\n картриджа]])*Таб_HP18[стоимось],(Таб_Canon19[CANON]=Таб_Заправка9[[#This Row],[Модель\n картриджа]])*Таб_Canon19[стоимость])","v":250},{"$f":"IF(Таб_Заправка9[[#This Row],[Стоимость\nзаправки]]<>0,Таб_Заправка9[[#This Row],[Стоимость\nзаправки]]-120,\"\")","v":130}]
[null,{"$f":"ROW(B52)-ROW(Таб_Заправка9[[#Headers],[№]])","v":46},{"$f":"IF((D52)=0,NOW(),C52)","v":"2009-02-02T12:02:08.700"},"WC- 3119",{"$f":"SUM((Таб_Samsung16[SAMSUNG]=Таб_Заправка9[[#This Row],[Модель\n картриджа]])*Таб_Samsung16[стоимость],(Таб_Xerox17[XEROX]=Таб_Заправка9[[#This Row],[Модель\n картриджа]])*Таб_Xerox17[стоимость],(Таб_HP18[[HP ]]=Таб_Заправка9[[#This Row],[Модель\n картриджа]])*Таб_HP18[стоимось],(Таб_Canon19[CANON]=Таб_Заправка9[[#This Row],[Модель\n картриджа]])*Таб_Canon19[стоимость])","v":400},{"$f":"IF(Таб_Заправка9[[#This Row],[Стоимость\nзаправки]]<>0,Таб_Заправка9[[#This Row],[Стоимость\nзаправки]]-120,\"\")","v":280}]
[null,{"$f":"ROW(B53)-ROW(Таб_Заправка9[[#Headers],[№]])","v":47},{"$f":"IF((D53)=0,NOW(),C53)","v":"2009-02-02T12:02:45.780"},"SCX 4200",{"$f":"SUM((Таб_Samsung16[SAMSUNG]=Таб_Заправка9[[#This Row],[Модель\n картриджа]])*Таб_Samsung16[стоимость],(Таб_Xerox17[XEROX]=Таб_Заправка9[[#This Row],[Модель\n картриджа]])*Таб_Xerox17[стоимость],(Таб_HP18[[HP ]]=Таб_Заправка9[[#This Row],[Модель\n картриджа]])*Таб_HP18[стоимось],(Таб_Canon19[CANON]=Таб_Заправка9[[#This Row],[Модель\n картриджа]])*Таб_Canon19[стоимость])","v":400},{"$f":"IF(Таб_Заправка9[[#This Row],[Стоимость\nзаправки]]<>0,Таб_Заправка9[[#This Row],[Стоимость\nзаправки]]-120,\"\")","v":280}]
[null,{"$f":"ROW(B54)-ROW(Таб_Заправка9[[#Headers],[№]])","v":48},{"$f":"IF((D54)=0,NOW(),C54)","v":"2009-02-03T10:44:06.850"},"SCX 4200",{"$f":"SUM((Таб_Samsung16[SAMSUNG]=Таб_Заправка9[[#This Row],[Модель\n картриджа]])*Таб_Samsung16[стоимость],(Таб_Xerox17[XEROX]=Таб_Заправка9[[#This Row],[Модель\n картриджа]])*Таб_Xerox17[стоимость],(Таб_HP18[[HP ]]=Таб_Заправка9[[#This Row],[Модель\n картриджа]])*Таб_HP18[стоимось],(Таб_Canon19[CANON]=Таб_Заправка9[[#This Row],[Модель\n картриджа]])*Таб_Canon19[стоимость])","v":400},{"$f":"IF(Таб_Заправка9[[#This Row],[Стоимость\nзаправки]]<>0,Таб_Заправка9[[#This Row],[Стоимость\nзаправки]]-120,\"\")","v":280}]
[null,{"$f":"ROW(B55)-ROW(Таб_Заправка9[[#Headers],[№]])","v":49},{"$f":"IF((D55)=0,NOW(),C55)","v":"2009-02-03T10:44:24.010"},"SCX 4200",{"$f":"SUM((Таб_Samsung16[SAMSUNG]=Таб_Заправка9[[#This Row],[Модель\n картриджа]])*Таб_Samsung16[стоимость],(Таб_Xerox17[XEROX]=Таб_Заправка9[[#This Row],[Модель\n картриджа]])*Таб_Xerox17[стоимость],(Таб_HP18[[HP ]]=Таб_Заправка9[[#This Row],[Модель\n картриджа]])*Таб_HP18[стоимось],(Таб_Canon19[CANON]=Таб_Заправка9[[#This Row],[Модель\n картриджа]])*Таб_Canon19[стоимость])","v":400},{"$f":"IF(Таб_Заправка9[[#This Row],[Стоимость\nзаправки]]<>0,Таб_Заправка9[[#This Row],[Стоимость\nзаправки]]-120,\"\")","v":280}]
[null,{"$f":"ROW(B56)-ROW(Таб_Заправка9[[#Headers],[№]])","v":50},{"$f":"IF((D56)=0,NOW(),C56)","v":"2009-02-03T10:44:24.010"},"SCX 4200",{"$f":"SUM((Таб_Samsung16[SAMSUNG]=Таб_Заправка9[[#This Row],[Модель\n картриджа]])*Таб_Samsung16[стоимость],(Таб_Xerox17[XEROX]=Таб_Заправка9[[#This Row],[Модель\n картриджа]])*Таб_Xerox17[стоимость],(Таб_HP18[[HP ]]=Таб_Заправка9[[#This Row],[Модель\n картриджа]])*Таб_HP18[стоимось],(Таб_Canon19[CANON]=Таб_Заправка9[[#This Row],[Модель\n картриджа]])*Таб_Canon19[стоимость])","v":400},{"$f":"IF(Таб_Заправка9[[#This Row],[Стоимость\nзаправки]]<>0,Таб_Заправка9[[#This Row],[Стоимость\nзаправки]]-120,\"\")","v":280}]
[null,{"$f":"ROW(B57)-ROW(Таб_Заправка9[[#Headers],[№]])","v":51},{"$f":"IF((D57)=0,NOW(),C57)","v":"2009-02-03T10:44:24.010"},"SCX 4200",{"$f":"SUM((Таб_Samsung16[SAMSUNG]=Таб_Заправка9[[#This Row],[Модель\n картриджа]])*Таб_Samsung16[стоимость],(Таб_Xerox17[XEROX]=Таб_Заправка9[[#This Row],[Модель\n картриджа]])*Таб_Xerox17[стоимость],(Таб_HP18[[HP ]]=Таб_Заправка9[[#This Row],[Модель\n картриджа]])*Таб_HP18[стоимось],(Таб_Canon19[CANON]=Таб_Заправка9[[#This Row],[Модель\n картриджа]])*Таб_Canon19[стоимость])","v":400},{"$f":"IF(Таб_Заправка9[[#This Row],[Стоимость\nзаправки]]<>0,Таб_Заправка9[[#This Row],[Стоимость\nзаправки]]-120,\"\")","v":280}]
[null,{"$f":"ROW(B58)-ROW(Таб_Заправка9[[#Headers],[№]])","v":52},{"$f":"IF((D58)=0,NOW(),C58)","v":"2009-02-03T10:44:24.010"},"SCX 4200",{"$f":"SUM((Таб_Samsung16[SAMSUNG]=Таб_Заправка9[[#This Row],[Модель\n картриджа]])*Таб_Samsung16[стоимость],(Таб_Xerox17[XEROX]=Таб_Заправка9[[#This Row],[Модель\n картриджа]])*Таб_Xerox17[стоимость],(Таб_HP18[[HP ]]=Таб_Заправка9[[#This Row],[Модель\n картриджа]])*Таб_HP18[стоимось],(Таб_Canon19[CANON]=Таб_Заправка9[[#This Row],[Модель\n картриджа]])*Таб_Canon19[стоимость])","v":400},{"$f":"IF(Таб_Заправка9[[#This Row],[Стоимость\nзаправки]]<>0,Таб_Заправка9[[#This Row],[Стоимость\nзаправки]]-120,\"\")","v":280}]
[null,{"$f":"ROW(B59)-ROW(Таб_Заправка9[[#Headers],[№]])","v":53},{"$f":"IF((D59)=0,NOW(),C59)","v":"2009-02-03T10:44:24.010"},"SCX 4200",{"$f":"SUM((Таб_Samsung16[SAMSUNG]=Таб_Заправка9[[#This Row],[Модель\n картриджа]])*Таб_Samsung16[стоимость],(Таб_Xerox17[XEROX]=Таб_Заправка9[[#This Row],[Модель\n картриджа]])*Таб_Xerox17[стоимость],(Таб_HP18[[HP ]]=Таб_Заправка9[[#This Row],[Модель\n картриджа]])*Таб_HP18[стоимось],(Таб_Canon19[CANON]=Таб_Заправка9[[#This Row],[Модель\n картриджа]])*Таб_Canon19[стоимость])","v":400},{"$f":"IF(Таб_Заправка9[[#This Row],[Стоимость\nзаправки]]<>0,Таб_Заправка9[[#This Row],[Стоимость\nзаправки]]-120,\"\")","v":280}]
[null,{"$f":"ROW(B60)-ROW(Таб_Заправка9[[#Headers],[№]])","v":54},{"$f":"IF((D60)=0,NOW(),C60)","v":"2009-02-03T10:44:24.010"},"SCX 4200",{"$f":"SUM((Таб_Samsung16[SAMSUNG]=Таб_Заправка9[[#This Row],[Модель\n картриджа]])*Таб_Samsung16[стоимость],(Таб_Xerox17[XEROX]=Таб_Заправка9[[#This Row],[Модель\n картриджа]])*Таб_Xerox17[стоимость],(Таб_HP18[[HP ]]=Таб_Заправка9[[#This Row],[Модель\n картриджа]])*Таб_HP18[стоимось],(Таб_Canon19[CANON]=Таб_Заправка9[[#This Row],[Модель\n картриджа]])*Таб_Canon19[стоимость])","v":400},{"$f":"IF(Таб_Заправка9[[#This Row],[Стоимость\nзаправки]]<>0,Таб_Заправка9[[#This Row],[Стоимость\nзаправки]]-120,\"\")","v":280}]
[null,{"$f":"ROW(B61)-ROW(Таб_Заправка9[[#Headers],[№]])","v":55},{"$f":"IF((D61)=0,NOW(),C61)","v":"2009-02-03T10:44:24.010"},"SCX 4200",{"$f":"SUM((Таб_Samsung16[SAMSUNG]=Таб_Заправка9[[#This Row],[Модель\n картриджа]])*Таб_Samsung16[стоимость],(Таб_Xerox17[XEROX]=Таб_Заправка9[[#This Row],[Модель\n картриджа]])*Таб_Xerox17[стоимость],(Таб_HP18[[HP ]]=Таб_Заправка9[[#This Row],[Модель\n картриджа]])*Таб_HP18[стоимось],(Таб_Canon19[CANON]=Таб_Заправка9[[#This Row],[Модель\n картриджа]])*Таб_Canon19[стоимость])","v":400},{"$f":"IF(Таб_Заправка9[[#This Row],[Стоимость\nзаправки]]<>0,Таб_Заправка9[[#This Row],[Стоимость\nзаправки]]-120,\"\")","v":280}]
[null,{"$f":"ROW(B62)-ROW(Таб_Заправка9[[#Headers],[№]])","v":56},{"$f":"IF((D62)=0,NOW(),C62)","v":"2009-02-03T10:48:52.390"},"SCX 4*16",{"$f":"SUM((Таб_Samsung16[SAMSUNG]=Таб_Заправка9[[#This Row],[Модель\n картриджа]])*Таб_Samsung16[стоимость],(Таб_Xerox17[XEROX]=Таб_Заправка9[[#This Row],[Модель\n картриджа]])*Таб_Xerox17[стоимость],(Таб_HP18[[HP ]]=Таб_Заправка9[[#This Row],[Модель\n картриджа]])*Таб_HP18[стоимось],(Таб_Canon19[CANON]=Таб_Заправка9[[#This Row],[Модель\n картриджа]])*Таб_Canon19[стоимость])","v":300},{"$f":"IF(Таб_Заправка9[[#This Row],[Стоимость\nзаправки]]<>0,Таб_Заправка9[[#This Row],[Стоимость\nзаправки]]-120,\"\")","v":180}]
[null,{"$f":"ROW(B63)-ROW(Таб_Заправка9[[#Headers],[№]])","v":57},{"$f":"IF((D63)=0,NOW(),C63)","v":"2009-02-03T10:48:58.960"},"SCX 4*16",{"$f":"SUM((Таб_Samsung16[SAMSUNG]=Таб_Заправка9[[#This Row],[Модель\n картриджа]])*Таб_Samsung16[стоимость],(Таб_Xerox17[XEROX]=Таб_Заправка9[[#This Row],[Модель\n картриджа]])*Таб_Xerox17[стоимость],(Таб_HP18[[HP ]]=Таб_Заправка9[[#This Row],[Модель\n картриджа]])*Таб_HP18[стоимось],(Таб_Canon19[CANON]=Таб_Заправка9[[#This Row],[Модель\n картриджа]])*Таб_Canon19[стоимость])","v":300},{"$f":"IF(Таб_Заправка9[[#This Row],[Стоимость\nзаправки]]<>0,Таб_Заправка9[[#This Row],[Стоимость\nзаправки]]-120,\"\")","v":180}]
[null,{"$f":"ROW(B64)-ROW(Таб_Заправка9[[#Headers],[№]])","v":58},{"$f":"IF((D64)=0,NOW(),C64)","v":"2009-02-03T10:49:08.960"},"SCX 4*16",{"$f":"SUM((Таб_Samsung16[SAMSUNG]=Таб_Заправка9[[#This Row],[Модель\n картриджа]])*Таб_Samsung16[стоимость],(Таб_Xerox17[XEROX]=Таб_Заправка9[[#This Row],[Модель\n картриджа]])*Таб_Xerox17[стоимость],(Таб_HP18[[HP ]]=Таб_Заправка9[[#This Row],[Модель\n картриджа]])*Таб_HP18[стоимось],(Таб_Canon19[CANON]=Таб_Заправка9[[#This Row],[Модель\n картриджа]])*Таб_Canon19[стоимость])","v":300},{"$f":"IF(Таб_Заправка9[[#This Row],[Стоимость\nзаправки]]<>0,Таб_Заправка9[[#This Row],[Стоимость\nзаправки]]-120,\"\")","v":180}]
[null,{"$f":"ROW(B65)-ROW(Таб_Заправка9[[#Headers],[№]])","v":59},{"$f":"IF((D65)=0,NOW(),C65)","v":"2009-02-03T10:49:08.960"},"SCX 4*16",{"$f":"SUM((Таб_Samsung16[SAMSUNG]=Таб_Заправка9[[#This Row],[Модель\n картриджа]])*Таб_Samsung16[стоимость],(Таб_Xerox17[XEROX]=Таб_Заправка9[[#This Row],[Модель\n картриджа]])*Таб_Xerox17[стоимость],(Таб_HP18[[HP ]]=Таб_Заправка9[[#This Row],[Модель\n картриджа]])*Таб_HP18[стоимось],(Таб_Canon19[CANON]=Таб_Заправка9[[#This Row],[Модель\n картриджа]])*Таб_Canon19[стоимость])","v":300},{"$f":"IF(Таб_Заправка9[[#This Row],[Стоимость\nзаправки]]<>0,Таб_Заправка9[[#This Row],[Стоимость\nзаправки]]-120,\"\")","v":180}]
[null,{"$f":"ROW(B66)-ROW(Таб_Заправка9[[#Headers],[№]])","v":60},{"$f":"IF((D66)=0,NOW(),C66)","v":"2009-02-03T10:49:08.960"},"SCX 4*16",{"$f":"SUM((Таб_Samsung16[SAMSUNG]=Таб_Заправка9[[#This Row],[Модель\n картриджа]])*Таб_Samsung16[стоимость],(Таб_Xerox17[XEROX]=Таб_Заправка9[[#This Row],[Модель\n картриджа]])*Таб_Xerox17[стоимость],(Таб_HP18[[HP ]]=Таб_Заправка9[[#This Row],[Модель\n картриджа]])*Таб_HP18[стоимось],(Таб_Canon19[CANON]=Таб_Заправка9[[#This Row],[Модель\n картриджа]])*Таб_Canon19[стоимость])","v":300},{"$f":"IF(Таб_Заправка9[[#This Row],[Стоимость\nзаправки]]<>0,Таб_Заправка9[[#This Row],[Стоимость\nзаправки]]-120,\"\")","v":180}]
[null,{"$f":"ROW(B67)-ROW(Таб_Заправка9[[#Headers],[№]])","v":61},{"$f":"IF((D67)=0,NOW(),C67)","v":"2009-02-03T11:22:56.870"},"Q2612A     (HP1010)",{"$f":"SUM((Таб_Samsung16[SAMSUNG]=Таб_Заправка9[[#This Row],[Модель\n картриджа]])*Таб_Samsung16[стоимость],(Таб_Xerox17[XEROX]=Таб_Заправка9[[#This Row],[Модель\n картриджа]])*Таб_Xerox17[стоимость],(Таб_HP18[[HP ]]=Таб_Заправка9[[#This Row],[Модель\n картриджа]])*Таб_HP18[стоимось],(Таб_Canon19[CANON]=Таб_Заправка9[[#This Row],[Модель\n картриджа]])*Таб_Canon19[стоимость])","v":250},{"$f":"IF(Таб_Заправка9[[#This Row],[Стоимость\nзаправки]]<>0,Таб_Заправка9[[#This Row],[Стоимость\nзаправки]]-120,\"\")","v":130}]
[null,{"$f":"ROW(B68)-ROW(Таб_Заправка9[[#Headers],[№]])","v":62},{"$f":"IF((D68)=0,NOW(),C68)","v":"2009-02-04T10:49:44.100"},"PE -16",{"$f":"SUM((Таб_Samsung16[SAMSUNG]=Таб_Заправка9[[#This Row],[Модель\n картриджа]])*Таб_Samsung16[стоимость],(Таб_Xerox17[XEROX]=Таб_Заправка9[[#This Row],[Модель\n картриджа]])*Таб_Xerox17[стоимость],(Таб_HP18[[HP ]]=Таб_Заправка9[[#This Row],[Модель\n картриджа]])*Таб_HP18[стоимось],(Таб_Canon19[CANON]=Таб_Заправка9[[#This Row],[Модель\n картриджа]])*Таб_Canon19[стоимость])","v":300},{"$f":"IF(Таб_Заправка9[[#This Row],[Стоимость\nзаправки]]<>0,Таб_Заправка9[[#This Row],[Стоимость\nзаправки]]-120,\"\")","v":180}]
[null,{"$f":"ROW(B69)-ROW(Таб_Заправка9[[#Headers],[№]])","v":63},{"$f":"IF((D69)=0,NOW(),C69)","v":"2009-02-04T10:49:53.650"},"PE220",{"$f":"SUM((Таб_Samsung16[SAMSUNG]=Таб_Заправка9[[#This Row],[Модель\n картриджа]])*Таб_Samsung16[стоимость],(Таб_Xerox17[XEROX]=Таб_Заправка9[[#This Row],[Модель\n картриджа]])*Таб_Xerox17[стоимость],(Таб_HP18[[HP ]]=Таб_Заправка9[[#This Row],[Модель\n картриджа]])*Таб_HP18[стоимось],(Таб_Canon19[CANON]=Таб_Заправка9[[#This Row],[Модель\n картриджа]])*Таб_Canon19[стоимость])","v":400},{"$f":"IF(Таб_Заправка9[[#This Row],[Стоимость\nзаправки]]<>0,Таб_Заправка9[[#This Row],[Стоимость\nзаправки]]-120,\"\")","v":280}]
[null,{"$f":"ROW(B70)-ROW(Таб_Заправка9[[#Headers],[№]])","v":64},{"$f":"IF((D70)=0,NOW(),C70)","v":"2009-02-04T10:50:02.100"},"CB436A   (HP P1505n)",{"$f":"SUM((Таб_Samsung16[SAMSUNG]=Таб_Заправка9[[#This Row],[Модель\n картриджа]])*Таб_Samsung16[стоимость],(Таб_Xerox17[XEROX]=Таб_Заправка9[[#This Row],[Модель\n картриджа]])*Таб_Xerox17[стоимость],(Таб_HP18[[HP ]]=Таб_Заправка9[[#This Row],[Модель\n картриджа]])*Таб_HP18[стоимось],(Таб_Canon19[CANON]=Таб_Заправка9[[#This Row],[Модель\n картриджа]])*Таб_Canon19[стоимость])","v":250},{"$f":"IF(Таб_Заправка9[[#This Row],[Стоимость\nзаправки]]<>0,Таб_Заправка9[[#This Row],[Стоимость\nзаправки]]-120,\"\")","v":130}]
[null,{"$f":"ROW(B71)-ROW(Таб_Заправка9[[#Headers],[№]])","v":65},{"$f":"IF((D71)=0,NOW(),C71)","v":"2009-02-04T14:04:42.420"},"Q2612A     (HP1010)",{"$f":"SUM((Таб_Samsung16[SAMSUNG]=Таб_Заправка9[[#This Row],[Модель\n картриджа]])*Таб_Samsung16[стоимость],(Таб_Xerox17[XEROX]=Таб_Заправка9[[#This Row],[Модель\n картриджа]])*Таб_Xerox17[стоимость],(Таб_HP18[[HP ]]=Таб_Заправка9[[#This Row],[Модель\n картриджа]])*Таб_HP18[стоимось],(Таб_Canon19[CANON]=Таб_Заправка9[[#This Row],[Модель\n картриджа]])*Таб_Canon19[стоимость])","v":250},{"$f":"IF(Таб_Заправка9[[#This Row],[Стоимость\nзаправки]]<>0,Таб_Заправка9[[#This Row],[Стоимость\nзаправки]]-120,\"\")","v":130}]
[null,{"$f":"ROW(B72)-ROW(Таб_Заправка9[[#Headers],[№]])","v":66},{"$f":"IF((D72)=0,NOW(),C72)","v":"2009-02-04T14:05:49.890"},"PE 114",{"$f":"SUM((Таб_Samsung16[SAMSUNG]=Таб_Заправка9[[#This Row],[Модель\n картриджа]])*Таб_Samsung16[стоимость],(Таб_Xerox17[XEROX]=Таб_Заправка9[[#This Row],[Модель\n картриджа]])*Таб_Xerox17[стоимость],(Таб_HP18[[HP ]]=Таб_Заправка9[[#This Row],[Модель\n картриджа]])*Таб_HP18[стоимось],(Таб_Canon19[CANON]=Таб_Заправка9[[#This Row],[Модель\n картриджа]])*Таб_Canon19[стоимость])","v":300},{"$f":"IF(Таб_Заправка9[[#This Row],[Стоимость\nзаправки]]<>0,Таб_Заправка9[[#This Row],[Стоимость\nзаправки]]-120,\"\")","v":180}]
[null,{"$f":"ROW(B73)-ROW(Таб_Заправка9[[#Headers],[№]])","v":67},{"$f":"IF((D73)=0,NOW(),C73)","v":"2009-02-04T16:16:00.310"},"Q2612A     (HP1010)",{"$f":"SUM((Таб_Samsung16[SAMSUNG]=Таб_Заправка9[[#This Row],[Модель\n картриджа]])*Таб_Samsung16[стоимость],(Таб_Xerox17[XEROX]=Таб_Заправка9[[#This Row],[Модель\n картриджа]])*Таб_Xerox17[стоимость],(Таб_HP18[[HP ]]=Таб_Заправка9[[#This Row],[Модель\n картриджа]])*Таб_HP18[стоимось],(Таб_Canon19[CANON]=Таб_Заправка9[[#This Row],[Модель\n картриджа]])*Таб_Canon19[стоимость])","v":250},{"$f":"IF(Таб_Заправка9[[#This Row],[Стоимость\nзаправки]]<>0,Таб_Заправка9[[#This Row],[Стоимость\nзаправки]]-120,\"\")","v":130}]
[null,{"$f":"ROW(B74)-ROW(Таб_Заправка9[[#Headers],[№]])","v":68},{"$f":"IF((D74)=0,NOW(),C74)","v":"2009-02-04T16:16:11.500"},"C7115 A     (HP1200)",{"$f":"SUM((Таб_Samsung16[SAMSUNG]=Таб_Заправка9[[#This Row],[Модель\n картриджа]])*Таб_Samsung16[стоимость],(Таб_Xerox17[XEROX]=Таб_Заправка9[[#This Row],[Модель\n картриджа]])*Таб_Xerox17[стоимость],(Таб_HP18[[HP ]]=Таб_Заправка9[[#This Row],[Модель\n картриджа]])*Таб_HP18[стоимось],(Таб_Canon19[CANON]=Таб_Заправка9[[#This Row],[Модель\n картриджа]])*Таб_Canon19[стоимость])","v":250},{"$f":"IF(Таб_Заправка9[[#This Row],[Стоимость\nзаправки]]<>0,Таб_Заправка9[[#This Row],[Стоимость\nзаправки]]-120,\"\")","v":130}]
[null,{"$f":"ROW(B75)-ROW(Таб_Заправка9[[#Headers],[№]])","v":69},{"$f":"IF((D75)=0,NOW(),C75)","v":"2009-02-04T16:16:18.530"},"EP-27   (LBP3200)",{"$f":"SUM((Таб_Samsung16[SAMSUNG]=Таб_Заправка9[[#This Row],[Модель\n картриджа]])*Таб_Samsung16[стоимость],(Таб_Xerox17[XEROX]=Таб_Заправка9[[#This Row],[Модель\n картриджа]])*Таб_Xerox17[стоимость],(Таб_HP18[[HP ]]=Таб_Заправка9[[#This Row],[Модель\n картриджа]])*Таб_HP18[стоимось],(Таб_Canon19[CANON]=Таб_Заправка9[[#This Row],[Модель\n картриджа]])*Таб_Canon19[стоимость])","v":250},{"$f":"IF(Таб_Заправка9[[#This Row],[Стоимость\nзаправки]]<>0,Таб_Заправка9[[#This Row],[Стоимость\nзаправки]]-120,\"\")","v":130}]
[null,{"$f":"ROW(B76)-ROW(Таб_Заправка9[[#Headers],[№]])","v":70},{"$f":"IF((D76)=0,NOW(),C76)","v":"2009-02-05T12:02:25.150"},"Q7553A   (HP P2015)",{"$f":"SUM((Таб_Samsung16[SAMSUNG]=Таб_Заправка9[[#This Row],[Модель\n картриджа]])*Таб_Samsung16[стоимость],(Таб_Xerox17[XEROX]=Таб_Заправка9[[#This Row],[Модель\n картриджа]])*Таб_Xerox17[стоимость],(Таб_HP18[[HP ]]=Таб_Заправка9[[#This Row],[Модель\n картриджа]])*Таб_HP18[стоимось],(Таб_Canon19[CANON]=Таб_Заправка9[[#This Row],[Модель\n картриджа]])*Таб_Canon19[стоимость])","v":300},{"$f":"IF(Таб_Заправка9[[#This Row],[Стоимость\nзаправки]]<>0,Таб_Заправка9[[#This Row],[Стоимость\nзаправки]]-120,\"\")","v":180}]
[null,{"$f":"ROW(B77)-ROW(Таб_Заправка9[[#Headers],[№]])","v":71},{"$f":"IF((D77)=0,NOW(),C77)","v":"2009-02-05T14:44:16.590"},"C-712   (LBP 3010)",{"$f":"SUM((Таб_Samsung16[SAMSUNG]=Таб_Заправка9[[#This Row],[Модель\n картриджа]])*Таб_Samsung16[стоимость],(Таб_Xerox17[XEROX]=Таб_Заправка9[[#This Row],[Модель\n картриджа]])*Таб_Xerox17[стоимость],(Таб_HP18[[HP ]]=Таб_Заправка9[[#This Row],[Модель\n картриджа]])*Таб_HP18[стоимось],(Таб_Canon19[CANON]=Таб_Заправка9[[#This Row],[Модель\n картриджа]])*Таб_Canon19[стоимость])","v":250},{"$f":"IF(Таб_Заправка9[[#This Row],[Стоимость\nзаправки]]<>0,Таб_Заправка9[[#This Row],[Стоимость\nзаправки]]-120,\"\")","v":130}]
[null,{"$f":"ROW(B78)-ROW(Таб_Заправка9[[#Headers],[№]])","v":72},{"$f":"IF((D78)=0,NOW(),C78)","v":"2009-02-06T13:07:22.070"},"SCX 4200",{"$f":"SUM((Таб_Samsung16[SAMSUNG]=Таб_Заправка9[[#This Row],[Модель\n картриджа]])*Таб_Samsung16[стоимость],(Таб_Xerox17[XEROX]=Таб_Заправка9[[#This Row],[Модель\n картриджа]])*Таб_Xerox17[стоимость],(Таб_HP18[[HP ]]=Таб_Заправка9[[#This Row],[Модель\n картриджа]])*Таб_HP18[стоимось],(Таб_Canon19[CANON]=Таб_Заправка9[[#This Row],[Модель\n картриджа]])*Таб_Canon19[стоимость])","v":400},{"$f":"IF(Таб_Заправка9[[#This Row],[Стоимость\nзаправки]]<>0,Таб_Заправка9[[#This Row],[Стоимость\nзаправки]]-120,\"\")","v":280}]
[null,{"$f":"ROW(B79)-ROW(Таб_Заправка9[[#Headers],[№]])","v":73},{"$f":"IF((D79)=0,NOW(),C79)","v":"2009-02-06T13:07:30.560"},"SCX 4*16",{"$f":"SUM((Таб_Samsung16[SAMSUNG]=Таб_Заправка9[[#This Row],[Модель\n картриджа]])*Таб_Samsung16[стоимость],(Таб_Xerox17[XEROX]=Таб_Заправка9[[#This Row],[Модель\n картриджа]])*Таб_Xerox17[стоимость],(Таб_HP18[[HP ]]=Таб_Заправка9[[#This Row],[Модель\n картриджа]])*Таб_HP18[стоимось],(Таб_Canon19[CANON]=Таб_Заправка9[[#This Row],[Модель\n картриджа]])*Таб_Canon19[стоимость])","v":300},{"$f":"IF(Таб_Заправка9[[#This Row],[Стоимость\nзаправки]]<>0,Таб_Заправка9[[#This Row],[Стоимость\nзаправки]]-120,\"\")","v":180}]
[null,{"$f":"ROW(B80)-ROW(Таб_Заправка9[[#Headers],[№]])","v":74},{"$f":"IF((D80)=0,NOW(),C80)","v":"2009-02-06T13:07:34.090"},"SCX 4*16",{"$f":"SUM((Таб_Samsung16[SAMSUNG]=Таб_Заправка9[[#This Row],[Модель\n картриджа]])*Таб_Samsung16[стоимость],(Таб_Xerox17[XEROX]=Таб_Заправка9[[#This Row],[Модель\n картриджа]])*Таб_Xerox17[стоимость],(Таб_HP18[[HP ]]=Таб_Заправка9[[#This Row],[Модель\n картриджа]])*Таб_HP18[стоимось],(Таб_Canon19[CANON]=Таб_Заправка9[[#This Row],[Модель\n картриджа]])*Таб_Canon19[стоимость])","v":300},{"$f":"IF(Таб_Заправка9[[#This Row],[Стоимость\nзаправки]]<>0,Таб_Заправка9[[#This Row],[Стоимость\nзаправки]]-120,\"\")","v":180}]
[null,{"$f":"ROW(B81)-ROW(Таб_Заправка9[[#Headers],[№]])","v":75},{"$f":"IF((D81)=0,NOW(),C81)","v":"2009-02-06T14:18:00.730"},"SCX 4200",{"$f":"SUM((Таб_Samsung16[SAMSUNG]=Таб_Заправка9[[#This Row],[Модель\n картриджа]])*Таб_Samsung16[стоимость],(Таб_Xerox17[XEROX]=Таб_Заправка9[[#This Row],[Модель\n картриджа]])*Таб_Xerox17[стоимость],(Таб_HP18[[HP ]]=Таб_Заправка9[[#This Row],[Модель\n картриджа]])*Таб_HP18[стоимось],(Таб_Canon19[CANON]=Таб_Заправка9[[#This Row],[Модель\n картриджа]])*Таб_Canon19[стоимость])","v":400},{"$f":"IF(Таб_Заправка9[[#This Row],[Стоимость\nзаправки]]<>0,Таб_Заправка9[[#This Row],[Стоимость\nзаправки]]-120,\"\")","v":280}]
[null,{"$f":"ROW(B82)-ROW(Таб_Заправка9[[#Headers],[№]])","v":76},{"$f":"IF((D82)=0,NOW(),C82)","v":"2009-02-06T14:18:09.570"},"C7113 A     (HP1300)",{"$f":"SUM((Таб_Samsung16[SAMSUNG]=Таб_Заправка9[[#This Row],[Модель\n картриджа]])*Таб_Samsung16[стоимость],(Таб_Xerox17[XEROX]=Таб_Заправка9[[#This Row],[Модель\n картриджа]])*Таб_Xerox17[стоимость],(Таб_HP18[[HP ]]=Таб_Заправка9[[#This Row],[Модель\n картриджа]])*Таб_HP18[стоимось],(Таб_Canon19[CANON]=Таб_Заправка9[[#This Row],[Модель\n картриджа]])*Таб_Canon19[стоимость])","v":250},{"$f":"IF(Таб_Заправка9[[#This Row],[Стоимость\nзаправки]]<>0,Таб_Заправка9[[#This Row],[Стоимость\nзаправки]]-120,\"\")","v":130}]
[null,{"$f":"ROW(B83)-ROW(Таб_Заправка9[[#Headers],[№]])","v":77},{"$f":"IF((D83)=0,NOW(),C83)","v":"2009-02-09T13:09:28.400"},"SCX 4*16",{"$f":"SUM((Таб_Samsung16[SAMSUNG]=Таб_Заправка9[[#This Row],[Модель\n картриджа]])*Таб_Samsung16[стоимость],(Таб_Xerox17[XEROX]=Таб_Заправка9[[#This Row],[Модель\n картриджа]])*Таб_Xerox17[стоимость],(Таб_HP18[[HP ]]=Таб_Заправка9[[#This Row],[Модель\n картриджа]])*Таб_HP18[стоимось],(Таб_Canon19[CANON]=Таб_Заправка9[[#This Row],[Модель\n картриджа]])*Таб_Canon19[стоимость])","v":300},{"$f":"IF(Таб_Заправка9[[#This Row],[Стоимость\nзаправки]]<>0,Таб_Заправка9[[#This Row],[Стоимость\nзаправки]]-120,\"\")","v":180}]
[null,{"$f":"ROW(B84)-ROW(Таб_Заправка9[[#Headers],[№]])","v":78},{"$f":"IF((D84)=0,NOW(),C84)","v":"2009-02-09T13:09:37.400"},"SCX 4200",{"$f":"SUM((Таб_Samsung16[SAMSUNG]=Таб_Заправка9[[#This Row],[Модель\n картриджа]])*Таб_Samsung16[стоимость],(Таб_Xerox17[XEROX]=Таб_Заправка9[[#This Row],[Модель\n картриджа]])*Таб_Xerox17[стоимость],(Таб_HP18[[HP ]]=Таб_Заправка9[[#This Row],[Модель\n картриджа]])*Таб_HP18[стоимось],(Таб_Canon19[CANON]=Таб_Заправка9[[#This Row],[Модель\n картриджа]])*Таб_Canon19[стоимость])","v":400},{"$f":"IF(Таб_Заправка9[[#This Row],[Стоимость\nзаправки]]<>0,Таб_Заправка9[[#This Row],[Стоимость\nзаправки]]-120,\"\")","v":280}]
[null,{"$f":"ROW(B85)-ROW(Таб_Заправка9[[#Headers],[№]])","v":79},{"$f":"IF((D85)=0,NOW(),C85)","v":"2009-02-09T13:09:44.710"},"SCX 4200",{"$f":"SUM((Таб_Samsung16[SAMSUNG]=Таб_Заправка9[[#This Row],[Модель\n картриджа]])*Таб_Samsung16[стоимость],(Таб_Xerox17[XEROX]=Таб_Заправка9[[#This Row],[Модель\n картриджа]])*Таб_Xerox17[стоимость],(Таб_HP18[[HP ]]=Таб_Заправка9[[#This Row],[Модель\n картриджа]])*Таб_HP18[стоимось],(Таб_Canon19[CANON]=Таб_Заправка9[[#This Row],[Модель\n картриджа]])*Таб_Canon19[стоимость])","v":400},{"$f":"IF(Таб_Заправка9[[#This Row],[Стоимость\nзаправки]]<>0,Таб_Заправка9[[#This Row],[Стоимость\nзаправки]]-120,\"\")","v":280}]
[null,{"$f":"ROW(B86)-ROW(Таб_Заправка9[[#Headers],[№]])","v":80},{"$f":"IF((D86)=0,NOW(),C86)","v":"2009-02-09T13:10:52.030"},"SCX 4200",{"$f":"SUM((Таб_Samsung16[SAMSUNG]=Таб_Заправка9[[#This Row],[Модель\n картриджа]])*Таб_Samsung16[стоимость],(Таб_Xerox17[XEROX]=Таб_Заправка9[[#This Row],[Модель\n картриджа]])*Таб_Xerox17[стоимость],(Таб_HP18[[HP ]]=Таб_Заправка9[[#This Row],[Модель\n картриджа]])*Таб_HP18[стоимось],(Таб_Canon19[CANON]=Таб_Заправка9[[#This Row],[Модель\n картриджа]])*Таб_Canon19[стоимость])","v":400},{"$f":"IF(Таб_Заправка9[[#This Row],[Стоимость\nзаправки]]<>0,Таб_Заправка9[[#This Row],[Стоимость\nзаправки]]-120,\"\")","v":280}]
[null,{"$f":"ROW(B87)-ROW(Таб_Заправка9[[#Headers],[№]])","v":81},{"$f":"IF((D87)=0,NOW(),C87)","v":"2009-02-09T13:10:52.030"},"SCX 4200",{"$f":"SUM((Таб_Samsung16[SAMSUNG]=Таб_Заправка9[[#This Row],[Модель\n картриджа]])*Таб_Samsung16[стоимость],(Таб_Xerox17[XEROX]=Таб_Заправка9[[#This Row],[Модель\n картриджа]])*Таб_Xerox17[стоимость],(Таб_HP18[[HP ]]=Таб_Заправка9[[#This Row],[Модель\n картриджа]])*Таб_HP18[стоимось],(Таб_Canon19[CANON]=Таб_Заправка9[[#This Row],[Модель\n картриджа]])*Таб_Canon19[стоимость])","v":400},{"$f":"IF(Таб_Заправка9[[#This Row],[Стоимость\nзаправки]]<>0,Таб_Заправка9[[#This Row],[Стоимость\nзаправки]]-120,\"\")","v":280}]
[null,{"$f":"ROW(B88)-ROW(Таб_Заправка9[[#Headers],[№]])","v":82},{"$f":"IF((D88)=0,NOW(),C88)","v":"2009-02-09T13:10:52.030"},"SCX 4200",{"$f":"SUM((Таб_Samsung16[SAMSUNG]=Таб_Заправка9[[#This Row],[Модель\n картриджа]])*Таб_Samsung16[стоимость],(Таб_Xerox17[XEROX]=Таб_Заправка9[[#This Row],[Модель\n картриджа]])*Таб_Xerox17[стоимость],(Таб_HP18[[HP ]]=Таб_Заправка9[[#This Row],[Модель\n картриджа]])*Таб_HP18[стоимось],(Таб_Canon19[CANON]=Таб_Заправка9[[#This Row],[Модель\n картриджа]])*Таб_Canon19[стоимость])","v":400},{"$f":"IF(Таб_Заправка9[[#This Row],[Стоимость\nзаправки]]<>0,Таб_Заправка9[[#This Row],[Стоимость\nзаправки]]-120,\"\")","v":280}]
[null,{"$f":"ROW(B89)-ROW(Таб_Заправка9[[#Headers],[№]])","v":83},{"$f":"IF((D89)=0,NOW(),C89)","v":"2009-02-09T13:10:52.030"},"SCX 4200",{"$f":"SUM((Таб_Samsung16[SAMSUNG]=Таб_Заправка9[[#This Row],[Модель\n картриджа]])*Таб_Samsung16[стоимость],(Таб_Xerox17[XEROX]=Таб_Заправка9[[#This Row],[Модель\n картриджа]])*Таб_Xerox17[стоимость],(Таб_HP18[[HP ]]=Таб_Заправка9[[#This Row],[Модель\n картриджа]])*Таб_HP18[стоимось],(Таб_Canon19[CANON]=Таб_Заправка9[[#This Row],[Модель\n картриджа]])*Таб_Canon19[стоимость])","v":400},{"$f":"IF(Таб_Заправка9[[#This Row],[Стоимость\nзаправки]]<>0,Таб_Заправка9[[#This Row],[Стоимость\nзаправки]]-120,\"\")","v":280}]
[null,{"$f":"ROW(B90)-ROW(Таб_Заправка9[[#Headers],[№]])","v":84},{"$f":"IF((D90)=0,NOW(),C90)","v":"2009-02-09T13:10:52.030"},"SCX 4200",{"$f":"SUM((Таб_Samsung16[SAMSUNG]=Таб_Заправка9[[#This Row],[Модель\n картриджа]])*Таб_Samsung16[стоимость],(Таб_Xerox17[XEROX]=Таб_Заправка9[[#This Row],[Модель\n картриджа]])*Таб_Xerox17[стоимость],(Таб_HP18[[HP ]]=Таб_Заправка9[[#This Row],[Модель\n картриджа]])*Таб_HP18[стоимось],(Таб_Canon19[CANON]=Таб_Заправка9[[#This Row],[Модель\n картриджа]])*Таб_Canon19[стоимость])","v":400},{"$f":"IF(Таб_Заправка9[[#This Row],[Стоимость\nзаправки]]<>0,Таб_Заправка9[[#This Row],[Стоимость\nзаправки]]-120,\"\")","v":280}]
[null,{"$f":"ROW(B91)-ROW(Таб_Заправка9[[#Headers],[№]])","v":85},{"$f":"IF((D91)=0,NOW(),C91)","v":"2009-02-09T13:10:52.030"},"SCX 4200",{"$f":"SUM((Таб_Samsung16[SAMSUNG]=Таб_Заправка9[[#This Row],[Модель\n картриджа]])*Таб_Samsung16[стоимость],(Таб_Xerox17[XEROX]=Таб_Заправка9[[#This Row],[Модель\n картриджа]])*Таб_Xerox17[стоимость],(Таб_HP18[[HP ]]=Таб_Заправка9[[#This Row],[Модель\n картриджа]])*Таб_HP18[стоимось],(Таб_Canon19[CANON]=Таб_Заправка9[[#This Row],[Модель\n картриджа]])*Таб_Canon19[стоимость])","v":400},{"$f":"IF(Таб_Заправка9[[#This Row],[Стоимость\nзаправки]]<>0,Таб_Заправка9[[#This Row],[Стоимость\nзаправки]]-120,\"\")","v":280}]
[null,{"$f":"ROW(B92)-ROW(Таб_Заправка9[[#Headers],[№]])","v":86},{"$f":"IF((D92)=0,NOW(),C92)","v":"2009-02-09T13:10:52.030"},"SCX 4200",{"$f":"SUM((Таб_Samsung16[SAMSUNG]=Таб_Заправка9[[#This Row],[Модель\n картриджа]])*Таб_Samsung16[стоимость],(Таб_Xerox17[XEROX]=Таб_Заправка9[[#This Row],[Модель\n картриджа]])*Таб_Xerox17[стоимость],(Таб_HP18[[HP ]]=Таб_Заправка9[[#This Row],[Модель\n картриджа]])*Таб_HP18[стоимось],(Таб_Canon19[CANON]=Таб_Заправка9[[#This Row],[Модель\n картриджа]])*Таб_Canon19[стоимость])","v":400},{"$f":"IF(Таб_Заправка9[[#This Row],[Стоимость\nзаправки]]<>0,Таб_Заправка9[[#This Row],[Стоимость\nзаправки]]-120,\"\")","v":280}]
[null,{"$f":"ROW(B93)-ROW(Таб_Заправка9[[#Headers],[№]])","v":87},{"$f":"IF((D93)=0,NOW(),C93)","v":"2009-02-09T17:03:48.630"},"Q2612A     (HP1010)",{"$f":"SUM((Таб_Samsung16[SAMSUNG]=Таб_Заправка9[[#This Row],[Модель\n картриджа]])*Таб_Samsung16[стоимость],(Таб_Xerox17[XEROX]=Таб_Заправка9[[#This Row],[Модель\n картриджа]])*Таб_Xerox17[стоимость],(Таб_HP18[[HP ]]=Таб_Заправка9[[#This Row],[Модель\n картриджа]])*Таб_HP18[стоимось],(Таб_Canon19[CANON]=Таб_Заправка9[[#This Row],[Модель\n картриджа]])*Таб_Canon19[стоимость])","v":250},{"$f":"IF(Таб_Заправка9[[#This Row],[Стоимость\nзаправки]]<>0,Таб_Заправка9[[#This Row],[Стоимость\nзаправки]]-120,\"\")","v":130}]
[null,{"$f":"ROW(B94)-ROW(Таб_Заправка9[[#Headers],[№]])","v":88},{"$f":"IF((D94)=0,NOW(),C94)","v":"2009-02-09T17:03:57.680"},"Q7553A   (HP P2015)",{"$f":"SUM((Таб_Samsung16[SAMSUNG]=Таб_Заправка9[[#This Row],[Модель\n картриджа]])*Таб_Samsung16[стоимость],(Таб_Xerox17[XEROX]=Таб_Заправка9[[#This Row],[Модель\n картриджа]])*Таб_Xerox17[стоимость],(Таб_HP18[[HP ]]=Таб_Заправка9[[#This Row],[Модель\n картриджа]])*Таб_HP18[стоимось],(Таб_Canon19[CANON]=Таб_Заправка9[[#This Row],[Модель\n картриджа]])*Таб_Canon19[стоимость])","v":300},{"$f":"IF(Таб_Заправка9[[#This Row],[Стоимость\nзаправки]]<>0,Таб_Заправка9[[#This Row],[Стоимость\nзаправки]]-120,\"\")","v":180}]
[null,{"$f":"ROW(B95)-ROW(Таб_Заправка9[[#Headers],[№]])","v":89},{"$f":"IF((D95)=0,NOW(),C95)","v":"2009-02-10T10:02:42.700"},"Q7553A   (HP P2015)",{"$f":"SUM((Таб_Samsung16[SAMSUNG]=Таб_Заправка9[[#This Row],[Модель\n картриджа]])*Таб_Samsung16[стоимость],(Таб_Xerox17[XEROX]=Таб_Заправка9[[#This Row],[Модель\n картриджа]])*Таб_Xerox17[стоимость],(Таб_HP18[[HP ]]=Таб_Заправка9[[#This Row],[Модель\n картриджа]])*Таб_HP18[стоимось],(Таб_Canon19[CANON]=Таб_Заправка9[[#This Row],[Модель\n картриджа]])*Таб_Canon19[стоимость])","v":300},{"$f":"IF(Таб_Заправка9[[#This Row],[Стоимость\nзаправки]]<>0,Таб_Заправка9[[#This Row],[Стоимость\nзаправки]]-120,\"\")","v":180}]
[null,{"$f":"ROW(B96)-ROW(Таб_Заправка9[[#Headers],[№]])","v":90},{"$f":"IF((D96)=0,NOW(),C96)","v":"2009-02-10T10:02:50.750"},"Q2612A     (HP1010)",{"$f":"SUM((Таб_Samsung16[SAMSUNG]=Таб_Заправка9[[#This Row],[Модель\n картриджа]])*Таб_Samsung16[стоимость],(Таб_Xerox17[XEROX]=Таб_Заправка9[[#This Row],[Модель\n картриджа]])*Таб_Xerox17[стоимость],(Таб_HP18[[HP ]]=Таб_Заправка9[[#This Row],[Модель\n картриджа]])*Таб_HP18[стоимось],(Таб_Canon19[CANON]=Таб_Заправка9[[#This Row],[Модель\n картриджа]])*Таб_Canon19[стоимость])","v":250},{"$f":"IF(Таб_Заправка9[[#This Row],[Стоимость\nзаправки]]<>0,Таб_Заправка9[[#This Row],[Стоимость\nзаправки]]-120,\"\")","v":130}]
[null,{"$f":"ROW(B97)-ROW(Таб_Заправка9[[#Headers],[№]])","v":91},{"$f":"IF((D97)=0,NOW(),C97)","v":"2009-02-11T13:01:42.510"},"Phaser 3117/22",{"$f":"SUM((Таб_Samsung16[SAMSUNG]=Таб_Заправка9[[#This Row],[Модель\n картриджа]])*Таб_Samsung16[стоимость],(Таб_Xerox17[XEROX]=Таб_Заправка9[[#This Row],[Модель\n картриджа]])*Таб_Xerox17[стоимость],(Таб_HP18[[HP ]]=Таб_Заправка9[[#This Row],[Модель\n картриджа]])*Таб_HP18[стоимось],(Таб_Canon19[CANON]=Таб_Заправка9[[#This Row],[Модель\n картриджа]])*Таб_Canon19[стоимость])","v":300},{"$f":"IF(Таб_Заправка9[[#This Row],[Стоимость\nзаправки]]<>0,Таб_Заправка9[[#This Row],[Стоимость\nзаправки]]-120,\"\")","v":180}]
[null,{"$f":"ROW(B98)-ROW(Таб_Заправка9[[#Headers],[№]])","v":92},{"$f":"IF((D98)=0,NOW(),C98)","v":"2009-02-11T13:01:50.090"},"Phaser 3117/22",{"$f":"SUM((Таб_Samsung16[SAMSUNG]=Таб_Заправка9[[#This Row],[Модель\n картриджа]])*Таб_Samsung16[стоимость],(Таб_Xerox17[XEROX]=Таб_Заправка9[[#This Row],[Модель\n картриджа]])*Таб_Xerox17[стоимость],(Таб_HP18[[HP ]]=Таб_Заправка9[[#This Row],[Модель\n картриджа]])*Таб_HP18[стоимось],(Таб_Canon19[CANON]=Таб_Заправка9[[#This Row],[Модель\n картриджа]])*Таб_Canon19[стоимость])","v":300},{"$f":"IF(Таб_Заправка9[[#This Row],[Стоимость\nзаправки]]<>0,Таб_Заправка9[[#This Row],[Стоимость\nзаправки]]-120,\"\")","v":180}]
[null,{"$f":"ROW(B99)-ROW(Таб_Заправка9[[#Headers],[№]])","v":93},{"$f":"IF((D99)=0,NOW(),C99)","v":"2009-02-11T13:01:55.890"},"MFP-3200",{"$f":"SUM((Таб_Samsung16[SAMSUNG]=Таб_Заправка9[[#This Row],[Модель\n картриджа]])*Таб_Samsung16[стоимость],(Таб_Xerox17[XEROX]=Таб_Заправка9[[#This Row],[Модель\n картриджа]])*Таб_Xerox17[стоимость],(Таб_HP18[[HP ]]=Таб_Заправка9[[#This Row],[Модель\n картриджа]])*Таб_HP18[стоимось],(Таб_Canon19[CANON]=Таб_Заправка9[[#This Row],[Модель\n картриджа]])*Таб_Canon19[стоимость])","v":600},{"$f":"IF(Таб_Заправка9[[#This Row],[Стоимость\nзаправки]]<>0,Таб_Заправка9[[#This Row],[Стоимость\nзаправки]]-120,\"\")","v":480}]
[null,{"$f":"ROW(B100)-ROW(Таб_Заправка9[[#Headers],[№]])","v":94},{"$f":"IF((D100)=0,NOW(),C100)","v":"2009-02-13T11:16:20.790"},"SCX 4200",{"$f":"SUM((Таб_Samsung16[SAMSUNG]=Таб_Заправка9[[#This Row],[Модель\n картриджа]])*Таб_Samsung16[стоимость],(Таб_Xerox17[XEROX]=Таб_Заправка9[[#This Row],[Модель\n картриджа]])*Таб_Xerox17[стоимость],(Таб_HP18[[HP ]]=Таб_Заправка9[[#This Row],[Модель\n картриджа]])*Таб_HP18[стоимось],(Таб_Canon19[CANON]=Таб_Заправка9[[#This Row],[Модель\n картриджа]])*Таб_Canon19[стоимость])","v":400},{"$f":"IF(Таб_Заправка9[[#This Row],[Стоимость\nзаправки]]<>0,Таб_Заправка9[[#This Row],[Стоимость\nзаправки]]-120,\"\")","v":280}]
[null,{"$f":"ROW(B101)-ROW(Таб_Заправка9[[#Headers],[№]])","v":95},{"$f":"IF((D101)=0,NOW(),C101)","v":"2009-02-13T11:16:29.100"},"SCX 4200",{"$f":"SUM((Таб_Samsung16[SAMSUNG]=Таб_Заправка9[[#This Row],[Модель\n картриджа]])*Таб_Samsung16[стоимость],(Таб_Xerox17[XEROX]=Таб_Заправка9[[#This Row],[Модель\n картриджа]])*Таб_Xerox17[стоимость],(Таб_HP18[[HP ]]=Таб_Заправка9[[#This Row],[Модель\n картриджа]])*Таб_HP18[стоимось],(Таб_Canon19[CANON]=Таб_Заправка9[[#This Row],[Модель\n картриджа]])*Таб_Canon19[стоимость])","v":400},{"$f":"IF(Таб_Заправка9[[#This Row],[Стоимость\nзаправки]]<>0,Таб_Заправка9[[#This Row],[Стоимость\nзаправки]]-120,\"\")","v":280}]
[null,{"$f":"ROW(B102)-ROW(Таб_Заправка9[[#Headers],[№]])","v":96},{"$f":"IF((D102)=0,NOW(),C102)","v":"2009-02-13T11:16:41.120"},"SCX 4200",{"$f":"SUM((Таб_Samsung16[SAMSUNG]=Таб_Заправка9[[#This Row],[Модель\n картриджа]])*Таб_Samsung16[стоимость],(Таб_Xerox17[XEROX]=Таб_Заправка9[[#This Row],[Модель\n картриджа]])*Таб_Xerox17[стоимость],(Таб_HP18[[HP ]]=Таб_Заправка9[[#This Row],[Модель\n картриджа]])*Таб_HP18[стоимось],(Таб_Canon19[CANON]=Таб_Заправка9[[#This Row],[Модель\n картриджа]])*Таб_Canon19[стоимость])","v":400},{"$f":"IF(Таб_Заправка9[[#This Row],[Стоимость\nзаправки]]<>0,Таб_Заправка9[[#This Row],[Стоимость\nзаправки]]-120,\"\")","v":280}]
[null,{"$f":"ROW(B103)-ROW(Таб_Заправка9[[#Headers],[№]])","v":97},{"$f":"IF((D103)=0,NOW(),C103)","v":"2009-02-13T11:16:41.120"},"SCX 4200",{"$f":"SUM((Таб_Samsung16[SAMSUNG]=Таб_Заправка9[[#This Row],[Модель\n картриджа]])*Таб_Samsung16[стоимость],(Таб_Xerox17[XEROX]=Таб_Заправка9[[#This Row],[Модель\n картриджа]])*Таб_Xerox17[стоимость],(Таб_HP18[[HP ]]=Таб_Заправка9[[#This Row],[Модель\n картриджа]])*Таб_HP18[стоимось],(Таб_Canon19[CANON]=Таб_Заправка9[[#This Row],[Модель\n картриджа]])*Таб_Canon19[стоимость])","v":400},{"$f":"IF(Таб_Заправка9[[#This Row],[Стоимость\nзаправки]]<>0,Таб_Заправка9[[#This Row],[Стоимость\nзаправки]]-120,\"\")","v":280}]
[null,{"$f":"ROW(B104)-ROW(Таб_Заправка9[[#Headers],[№]])","v":98},{"$f":"IF((D104)=0,NOW(),C104)","v":"2009-02-13T11:16:41.120"},"SCX 4200",{"$f":"SUM((Таб_Samsung16[SAMSUNG]=Таб_Заправка9[[#This Row],[Модель\n картриджа]])*Таб_Samsung16[стоимость],(Таб_Xerox17[XEROX]=Таб_Заправка9[[#This Row],[Модель\n картриджа]])*Таб_Xerox17[стоимость],(Таб_HP18[[HP ]]=Таб_Заправка9[[#This Row],[Модель\n картриджа]])*Таб_HP18[стоимось],(Таб_Canon19[CANON]=Таб_Заправка9[[#This Row],[Модель\n картриджа]])*Таб_Canon19[стоимость])","v":400},{"$f":"IF(Таб_Заправка9[[#This Row],[Стоимость\nзаправки]]<>0,Таб_Заправка9[[#This Row],[Стоимость\nзаправки]]-120,\"\")","v":280}]
[null,{"$f":"ROW(B105)-ROW(Таб_Заправка9[[#Headers],[№]])","v":99},{"$f":"IF((D105)=0,NOW(),C105)","v":"2009-02-16T11:23:27.320"},"Q2612A     (HP1010)",{"$f":"SUM((Таб_Samsung16[SAMSUNG]=Таб_Заправка9[[#This Row],[Модель\n картриджа]])*Таб_Samsung16[стоимость],(Таб_Xerox17[XEROX]=Таб_Заправка9[[#This Row],[Модель\n картриджа]])*Таб_Xerox17[стоимость],(Таб_HP18[[HP ]]=Таб_Заправка9[[#This Row],[Модель\n картриджа]])*Таб_HP18[стоимось],(Таб_Canon19[CANON]=Таб_Заправка9[[#This Row],[Модель\n картриджа]])*Таб_Canon19[стоимость])","v":250},{"$f":"IF(Таб_Заправка9[[#This Row],[Стоимость\nзаправки]]<>0,Таб_Заправка9[[#This Row],[Стоимость\nзаправки]]-120,\"\")","v":130}]
[null,{"$f":"ROW(B106)-ROW(Таб_Заправка9[[#Headers],[№]])","v":100},{"$f":"IF((D106)=0,NOW(),C106)","v":"2009-02-16T12:46:29.340"},"C4092A     (HP1100)",{"$f":"SUM((Таб_Samsung16[SAMSUNG]=Таб_Заправка9[[#This Row],[Модель\n картриджа]])*Таб_Samsung16[стоимость],(Таб_Xerox17[XEROX]=Таб_Заправка9[[#This Row],[Модель\n картриджа]])*Таб_Xerox17[стоимость],(Таб_HP18[[HP ]]=Таб_Заправка9[[#This Row],[Модель\n картриджа]])*Таб_HP18[стоимось],(Таб_Canon19[CANON]=Таб_Заправка9[[#This Row],[Модель\n картриджа]])*Таб_Canon19[стоимость])","v":250},{"$f":"IF(Таб_Заправка9[[#This Row],[Стоимость\nзаправки]]<>0,Таб_Заправка9[[#This Row],[Стоимость\nзаправки]]-120,\"\")","v":130}]
[null,{"$f":"ROW(B107)-ROW(Таб_Заправка9[[#Headers],[№]])","v":101},{"$f":"IF((D107)=0,NOW(),C107)","v":"2009-02-16T16:35:24.340"},"Q2612A     (HP1010)",{"$f":"SUM((Таб_Samsung16[SAMSUNG]=Таб_Заправка9[[#This Row],[Модель\n картриджа]])*Таб_Samsung16[стоимость],(Таб_Xerox17[XEROX]=Таб_Заправка9[[#This Row],[Модель\n картриджа]])*Таб_Xerox17[стоимость],(Таб_HP18[[HP ]]=Таб_Заправка9[[#This Row],[Модель\n картриджа]])*Таб_HP18[стоимось],(Таб_Canon19[CANON]=Таб_Заправка9[[#This Row],[Модель\n картриджа]])*Таб_Canon19[стоимость])","v":250},{"$f":"IF(Таб_Заправка9[[#This Row],[Стоимость\nзаправки]]<>0,Таб_Заправка9[[#This Row],[Стоимость\nзаправки]]-120,\"\")","v":130}]
[null,{"$f":"ROW(B108)-ROW(Таб_Заправка9[[#Headers],[№]])","v":102},{"$f":"IF((D108)=0,NOW(),C108)","v":"2009-02-18T12:33:07.750"},"EP-27   (LBP3200)",{"$f":"SUM((Таб_Samsung16[SAMSUNG]=Таб_Заправка9[[#This Row],[Модель\n картриджа]])*Таб_Samsung16[стоимость],(Таб_Xerox17[XEROX]=Таб_Заправка9[[#This Row],[Модель\n картриджа]])*Таб_Xerox17[стоимость],(Таб_HP18[[HP ]]=Таб_Заправка9[[#This Row],[Модель\n картриджа]])*Таб_HP18[стоимось],(Таб_Canon19[CANON]=Таб_Заправка9[[#This Row],[Модель\n картриджа]])*Таб_Canon19[стоимость])","v":250},{"$f":"IF(Таб_Заправка9[[#This Row],[Стоимость\nзаправки]]<>0,Таб_Заправка9[[#This Row],[Стоимость\nзаправки]]-120,\"\")","v":130}]
[null,{"$f":"ROW(B109)-ROW(Таб_Заправка9[[#Headers],[№]])","v":103},{"$f":"IF((D109)=0,NOW(),C109)","v":"2009-02-18T12:33:25.980"},"MFP-3200",{"$f":"SUM((Таб_Samsung16[SAMSUNG]=Таб_Заправка9[[#This Row],[Модель\n картриджа]])*Таб_Samsung16[стоимость],(Таб_Xerox17[XEROX]=Таб_Заправка9[[#This Row],[Модель\n картриджа]])*Таб_Xerox17[стоимость],(Таб_HP18[[HP ]]=Таб_Заправка9[[#This Row],[Модель\n картриджа]])*Таб_HP18[стоимось],(Таб_Canon19[CANON]=Таб_Заправка9[[#This Row],[Модель\n картриджа]])*Таб_Canon19[стоимость])","v":600},{"$f":"IF(Таб_Заправка9[[#This Row],[Стоимость\nзаправки]]<>0,Таб_Заправка9[[#This Row],[Стоимость\nзаправки]]-120,\"\")","v":480}]
[null,{"$f":"ROW(B110)-ROW(Таб_Заправка9[[#Headers],[№]])","v":104},{"$f":"IF((D110)=0,NOW(),C110)","v":"2009-02-18T16:18:12.090"},"С-703   (LBP2900)",{"$f":"SUM((Таб_Samsung16[SAMSUNG]=Таб_Заправка9[[#This Row],[Модель\n картриджа]])*Таб_Samsung16[стоимость],(Таб_Xerox17[XEROX]=Таб_Заправка9[[#This Row],[Модель\n картриджа]])*Таб_Xerox17[стоимость],(Таб_HP18[[HP ]]=Таб_Заправка9[[#This Row],[Модель\n картриджа]])*Таб_HP18[стоимось],(Таб_Canon19[CANON]=Таб_Заправка9[[#This Row],[Модель\n картриджа]])*Таб_Canon19[стоимость])","v":250},{"$f":"IF(Таб_Заправка9[[#This Row],[Стоимость\nзаправки]]<>0,Таб_Заправка9[[#This Row],[Стоимость\nзаправки]]-120,\"\")","v":130}]
[null,{"$f":"ROW(B111)-ROW(Таб_Заправка9[[#Headers],[№]])","v":105},{"$f":"IF((D111)=0,NOW(),C111)","v":"2009-02-18T16:18:18.600"},"Phaser 3117/22",{"$f":"SUM((Таб_Samsung16[SAMSUNG]=Таб_Заправка9[[#This Row],[Модель\n картриджа]])*Таб_Samsung16[стоимость],(Таб_Xerox17[XEROX]=Таб_Заправка9[[#This Row],[Модель\n картриджа]])*Таб_Xerox17[стоимость],(Таб_HP18[[HP ]]=Таб_Заправка9[[#This Row],[Модель\n картриджа]])*Таб_HP18[стоимось],(Таб_Canon19[CANON]=Таб_Заправка9[[#This Row],[Модель\n картриджа]])*Таб_Canon19[стоимость])","v":300},{"$f":"IF(Таб_Заправка9[[#This Row],[Стоимость\nзаправки]]<>0,Таб_Заправка9[[#This Row],[Стоимость\nзаправки]]-120,\"\")","v":180}]
[null,{"$f":"ROW(B112)-ROW(Таб_Заправка9[[#Headers],[№]])","v":106},{"$f":"IF((D112)=0,NOW(),C112)","v":"2009-02-19T12:52:41.140"},"SCX 4200",{"$f":"SUM((Таб_Samsung16[SAMSUNG]=Таб_Заправка9[[#This Row],[Модель\n картриджа]])*Таб_Samsung16[стоимость],(Таб_Xerox17[XEROX]=Таб_Заправка9[[#This Row],[Модель\n картриджа]])*Таб_Xerox17[стоимость],(Таб_HP18[[HP ]]=Таб_Заправка9[[#This Row],[Модель\n картриджа]])*Таб_HP18[стоимось],(Таб_Canon19[CANON]=Таб_Заправка9[[#This Row],[Модель\n картриджа]])*Таб_Canon19[стоимость])","v":400},{"$f":"IF(Таб_Заправка9[[#This Row],[Стоимость\nзаправки]]<>0,Таб_Заправка9[[#This Row],[Стоимость\nзаправки]]-120,\"\")","v":280}]
[null,{"$f":"ROW(B113)-ROW(Таб_Заправка9[[#Headers],[№]])","v":107},{"$f":"IF((D113)=0,NOW(),C113)","v":"2009-02-19T12:52:54.870"},"Phaser 3120",{"$f":"SUM((Таб_Samsung16[SAMSUNG]=Таб_Заправка9[[#This Row],[Модель\n картриджа]])*Таб_Samsung16[стоимость],(Таб_Xerox17[XEROX]=Таб_Заправка9[[#This Row],[Модель\n картриджа]])*Таб_Xerox17[стоимость],(Таб_HP18[[HP ]]=Таб_Заправка9[[#This Row],[Модель\n картриджа]])*Таб_HP18[стоимось],(Таб_Canon19[CANON]=Таб_Заправка9[[#This Row],[Модель\n картриджа]])*Таб_Canon19[стоимость])","v":300},{"$f":"IF(Таб_Заправка9[[#This Row],[Стоимость\nзаправки]]<>0,Таб_Заправка9[[#This Row],[Стоимость\nзаправки]]-120,\"\")","v":180}]
[null,{"$f":"ROW(B114)-ROW(Таб_Заправка9[[#Headers],[№]])","v":108},{"$f":"IF((D114)=0,NOW(),C114)","v":"2009-02-19T16:12:59.460"},"EP22   (LBP 810)",{"$f":"SUM((Таб_Samsung16[SAMSUNG]=Таб_Заправка9[[#This Row],[Модель\n картриджа]])*Таб_Samsung16[стоимость],(Таб_Xerox17[XEROX]=Таб_Заправка9[[#This Row],[Модель\n картриджа]])*Таб_Xerox17[стоимость],(Таб_HP18[[HP ]]=Таб_Заправка9[[#This Row],[Модель\n картриджа]])*Таб_HP18[стоимось],(Таб_Canon19[CANON]=Таб_Заправка9[[#This Row],[Модель\n картриджа]])*Таб_Canon19[стоимость])","v":250},{"$f":"IF(Таб_Заправка9[[#This Row],[Стоимость\nзаправки]]<>0,Таб_Заправка9[[#This Row],[Стоимость\nзаправки]]-120,\"\")","v":130}]
[null,{"$f":"ROW(B115)-ROW(Таб_Заправка9[[#Headers],[№]])","v":109},{"$f":"IF((D115)=0,NOW(),C115)","v":"2009-02-20T13:32:20.220"},"Q2612A     (HP1010)",{"$f":"SUM((Таб_Samsung16[SAMSUNG]=Таб_Заправка9[[#This Row],[Модель\n картриджа]])*Таб_Samsung16[стоимость],(Таб_Xerox17[XEROX]=Таб_Заправка9[[#This Row],[Модель\n картриджа]])*Таб_Xerox17[стоимость],(Таб_HP18[[HP ]]=Таб_Заправка9[[#This Row],[Модель\n картриджа]])*Таб_HP18[стоимось],(Таб_Canon19[CANON]=Таб_Заправка9[[#This Row],[Модель\n картриджа]])*Таб_Canon19[стоимость])","v":250},{"$f":"IF(Таб_Заправка9[[#This Row],[Стоимость\nзаправки]]<>0,Таб_Заправка9[[#This Row],[Стоимость\nзаправки]]-120,\"\")","v":130}]
[null,{"$f":"ROW(B116)-ROW(Таб_Заправка9[[#Headers],[№]])","v":110},{"$f":"IF((D116)=0,NOW(),C116)","v":"2009-02-25T13:17:36.680"},"ML 1610/2010",{"$f":"SUM((Таб_Samsung16[SAMSUNG]=Таб_Заправка9[[#This Row],[Модель\n картриджа]])*Таб_Samsung16[стоимость],(Таб_Xerox17[XEROX]=Таб_Заправка9[[#This Row],[Модель\n картриджа]])*Таб_Xerox17[стоимость],(Таб_HP18[[HP ]]=Таб_Заправка9[[#This Row],[Модель\n картриджа]])*Таб_HP18[стоимось],(Таб_Canon19[CANON]=Таб_Заправка9[[#This Row],[Модель\n картриджа]])*Таб_Canon19[стоимость])","v":300},{"$f":"IF(Таб_Заправка9[[#This Row],[Стоимость\nзаправки]]<>0,Таб_Заправка9[[#This Row],[Стоимость\nзаправки]]-120,\"\")","v":180}]
[null,{"$f":"ROW(B117)-ROW(Таб_Заправка9[[#Headers],[№]])","v":111},{"$f":"IF((D117)=0,NOW(),C117)","v":"2009-02-25T15:20:10.200"},"ML 1610/2010",{"$f":"SUM((Таб_Samsung16[SAMSUNG]=Таб_Заправка9[[#This Row],[Модель\n картриджа]])*Таб_Samsung16[стоимость],(Таб_Xerox17[XEROX]=Таб_Заправка9[[#This Row],[Модель\n картриджа]])*Таб_Xerox17[стоимость],(Таб_HP18[[HP ]]=Таб_Заправка9[[#This Row],[Модель\n картриджа]])*Таб_HP18[стоимось],(Таб_Canon19[CANON]=Таб_Заправка9[[#This Row],[Модель\n картриджа]])*Таб_Canon19[стоимость])","v":300},{"$f":"IF(Таб_Заправка9[[#This Row],[Стоимость\nзаправки]]<>0,Таб_Заправка9[[#This Row],[Стоимость\nзаправки]]-120,\"\")","v":180}]
[null,{"$f":"ROW(B118)-ROW(Таб_Заправка9[[#Headers],[№]])","v":112},{"$f":"IF((D118)=0,NOW(),C118)","v":"2009-02-25T15:20:10.200"},"ML 1610/2010",{"$f":"SUM((Таб_Samsung16[SAMSUNG]=Таб_Заправка9[[#This Row],[Модель\n картриджа]])*Таб_Samsung16[стоимость],(Таб_Xerox17[XEROX]=Таб_Заправка9[[#This Row],[Модель\n картриджа]])*Таб_Xerox17[стоимость],(Таб_HP18[[HP ]]=Таб_Заправка9[[#This Row],[Модель\n картриджа]])*Таб_HP18[стоимось],(Таб_Canon19[CANON]=Таб_Заправка9[[#This Row],[Модель\n картриджа]])*Таб_Canon19[стоимость])","v":300},{"$f":"IF(Таб_Заправка9[[#This Row],[Стоимость\nзаправки]]<>0,Таб_Заправка9[[#This Row],[Стоимость\nзаправки]]-120,\"\")","v":180}]
[null,{"$f":"ROW(B119)-ROW(Таб_Заправка9[[#Headers],[№]])","v":113},{"$f":"IF((D119)=0,NOW(),C119)","v":"2009-02-26T12:14:02.810"},"С-703   (LBP2900)",{"$f":"SUM((Таб_Samsung16[SAMSUNG]=Таб_Заправка9[[#This Row],[Модель\n картриджа]])*Таб_Samsung16[стоимость],(Таб_Xerox17[XEROX]=Таб_Заправка9[[#This Row],[Модель\n картриджа]])*Таб_Xerox17[стоимость],(Таб_HP18[[HP ]]=Таб_Заправка9[[#This Row],[Модель\n картриджа]])*Таб_HP18[стоимось],(Таб_Canon19[CANON]=Таб_Заправка9[[#This Row],[Модель\n картриджа]])*Таб_Canon19[стоимость])","v":250},{"$f":"IF(Таб_Заправка9[[#This Row],[Стоимость\nзаправки]]<>0,Таб_Заправка9[[#This Row],[Стоимость\nзаправки]]-120,\"\")","v":130}]
[null,{"$f":"ROW(B120)-ROW(Таб_Заправка9[[#Headers],[№]])","v":114},{"$f":"IF((D120)=0,NOW(),C120)","v":"2009-02-26T13:52:27.250"},"С-703   (LBP2900)",{"$f":"SUM((Таб_Samsung16[SAMSUNG]=Таб_Заправка9[[#This Row],[Модель\n картриджа]])*Таб_Samsung16[стоимость],(Таб_Xerox17[XEROX]=Таб_Заправка9[[#This Row],[Модель\n картриджа]])*Таб_Xerox17[стоимость],(Таб_HP18[[HP ]]=Таб_Заправка9[[#This Row],[Модель\n картриджа]])*Таб_HP18[стоимось],(Таб_Canon19[CANON]=Таб_Заправка9[[#This Row],[Модель\n картриджа]])*Таб_Canon19[стоимость])","v":250},{"$f":"IF(Таб_Заправка9[[#This Row],[Стоимость\nзаправки]]<>0,Таб_Заправка9[[#This Row],[Стоимость\nзаправки]]-120,\"\")","v":130}]
[null,{"$f":"ROW(B121)-ROW(Таб_Заправка9[[#Headers],[№]])","v":115},{"$f":"IF((D121)=0,NOW(),C121)","v":"2009-02-26T16:36:28.560"},"E16/30",{"$f":"SUM((Таб_Samsung16[SAMSUNG]=Таб_Заправка9[[#This Row],[Модель\n картриджа]])*Таб_Samsung16[стоимость],(Таб_Xerox17[XEROX]=Таб_Заправка9[[#This Row],[Модель\n картриджа]])*Таб_Xerox17[стоимость],(Таб_HP18[[HP ]]=Таб_Заправка9[[#This Row],[Модель\n картриджа]])*Таб_HP18[стоимось],(Таб_Canon19[CANON]=Таб_Заправка9[[#This Row],[Модель\n картриджа]])*Таб_Canon19[стоимость])","v":250},{"$f":"IF(Таб_Заправка9[[#This Row],[Стоимость\nзаправки]]<>0,Таб_Заправка9[[#This Row],[Стоимость\nзаправки]]-120,\"\")","v":130}]
[null,{"$f":"ROW(B122)-ROW(Таб_Заправка9[[#Headers],[№]])","v":116},{"$f":"IF((D122)=0,NOW(),C122)","v":"2009-02-27T09:21:32.620"},"E16/30",{"$f":"SUM((Таб_Samsung16[SAMSUNG]=Таб_Заправка9[[#This Row],[Модель\n картриджа]])*Таб_Samsung16[стоимость],(Таб_Xerox17[XEROX]=Таб_Заправка9[[#This Row],[Модель\n картриджа]])*Таб_Xerox17[стоимость],(Таб_HP18[[HP ]]=Таб_Заправка9[[#This Row],[Модель\n картриджа]])*Таб_HP18[стоимось],(Таб_Canon19[CANON]=Таб_Заправка9[[#This Row],[Модель\n картриджа]])*Таб_Canon19[стоимость])","v":250},{"$f":"IF(Таб_Заправка9[[#This Row],[Стоимость\nзаправки]]<>0,Таб_Заправка9[[#This Row],[Стоимость\nзаправки]]-120,\"\")","v":130}]
[null,{"$f":"ROW(B123)-ROW(Таб_Заправка9[[#Headers],[№]])","v":117},{"$f":"IF((D123)=0,NOW(),C123)","v":"2009-02-27T10:54:17.540"},"MFP-3200",{"$f":"SUM((Таб_Samsung16[SAMSUNG]=Таб_Заправка9[[#This Row],[Модель\n картриджа]])*Таб_Samsung16[стоимость],(Таб_Xerox17[XEROX]=Таб_Заправка9[[#This Row],[Модель\n картриджа]])*Таб_Xerox17[стоимость],(Таб_HP18[[HP ]]=Таб_Заправка9[[#This Row],[Модель\n картриджа]])*Таб_HP18[стоимось],(Таб_Canon19[CANON]=Таб_Заправка9[[#This Row],[Модель\n картриджа]])*Таб_Canon19[стоимость])","v":600},{"$f":"IF(Таб_Заправка9[[#This Row],[Стоимость\nзаправки]]<>0,Таб_Заправка9[[#This Row],[Стоимость\nзаправки]]-120,\"\")","v":480}]
[null,{"$f":"ROW(B124)-ROW(Таб_Заправка9[[#Headers],[№]])","v":118},{"$f":"IF((D124)=0,NOW(),C124)","v":"2009-02-27T12:40:42.980"},"ML 1520",{"$f":"SUM((Таб_Samsung16[SAMSUNG]=Таб_Заправка9[[#This Row],[Модель\n картриджа]])*Таб_Samsung16[стоимость],(Таб_Xerox17[XEROX]=Таб_Заправка9[[#This Row],[Модель\n картриджа]])*Таб_Xerox17[стоимость],(Таб_HP18[[HP ]]=Таб_Заправка9[[#This Row],[Модель\n картриджа]])*Таб_HP18[стоимось],(Таб_Canon19[CANON]=Таб_Заправка9[[#This Row],[Модель\n картриджа]])*Таб_Canon19[стоимость])","v":300},{"$f":"IF(Таб_Заправка9[[#This Row],[Стоимость\nзаправки]]<>0,Таб_Заправка9[[#This Row],[Стоимость\nзаправки]]-120,\"\")","v":180}]
[null,{"$f":"ROW(B125)-ROW(Таб_Заправка9[[#Headers],[№]])","v":119},{"$f":"IF((D125)=0,NOW(),C125)","v":"2009-02-27T14:43:50.640"},"С-703   (LBP2900)",{"$f":"SUM((Таб_Samsung16[SAMSUNG]=Таб_Заправка9[[#This Row],[Модель\n картриджа]])*Таб_Samsung16[стоимость],(Таб_Xerox17[XEROX]=Таб_Заправка9[[#This Row],[Модель\n картриджа]])*Таб_Xerox17[стоимость],(Таб_HP18[[HP ]]=Таб_Заправка9[[#This Row],[Модель\n картриджа]])*Таб_HP18[стоимось],(Таб_Canon19[CANON]=Таб_Заправка9[[#This Row],[Модель\n картриджа]])*Таб_Canon19[стоимость])","v":250},{"$f":"IF(Таб_Заправка9[[#This Row],[Стоимость\nзаправки]]<>0,Таб_Заправка9[[#This Row],[Стоимость\nзаправки]]-120,\"\")","v":130}]
[null,{"$f":"ROW(B126)-ROW(Таб_Заправка9[[#Headers],[№]])","v":120},{"$f":"IF((D126)=0,NOW(),C126)","v":"2009-03-02T13:45:25.010"},"CB435A   (HP P1006)",{"$f":"SUM((Таб_Samsung16[SAMSUNG]=Таб_Заправка9[[#This Row],[Модель\n картриджа]])*Таб_Samsung16[стоимость],(Таб_Xerox17[XEROX]=Таб_Заправка9[[#This Row],[Модель\n картриджа]])*Таб_Xerox17[стоимость],(Таб_HP18[[HP ]]=Таб_Заправка9[[#This Row],[Модель\n картриджа]])*Таб_HP18[стоимось],(Таб_Canon19[CANON]=Таб_Заправка9[[#This Row],[Модель\n картриджа]])*Таб_Canon19[стоимость])","v":250},{"$f":"IF(Таб_Заправка9[[#This Row],[Стоимость\nзаправки]]<>0,Таб_Заправка9[[#This Row],[Стоимость\nзаправки]]-120,\"\")","v":130}]
[null,{"$f":"ROW(B127)-ROW(Таб_Заправка9[[#Headers],[№]])","v":121},{"$f":"IF((D127)=0,NOW(),C127)","v":"2009-03-02T14:34:50.510"},"ML 1610/2010",{"$f":"SUM((Таб_Samsung16[SAMSUNG]=Таб_Заправка9[[#This Row],[Модель\n картриджа]])*Таб_Samsung16[стоимость],(Таб_Xerox17[XEROX]=Таб_Заправка9[[#This Row],[Модель\n картриджа]])*Таб_Xerox17[стоимость],(Таб_HP18[[HP ]]=Таб_Заправка9[[#This Row],[Модель\n картриджа]])*Таб_HP18[стоимось],(Таб_Canon19[CANON]=Таб_Заправка9[[#This Row],[Модель\n картриджа]])*Таб_Canon19[стоимость])","v":300},{"$f":"IF(Таб_Заправка9[[#This Row],[Стоимость\nзаправки]]<>0,Таб_Заправка9[[#This Row],[Стоимость\nзаправки]]-120,\"\")","v":180}]
[null,{"$f":"ROW(B128)-ROW(Таб_Заправка9[[#Headers],[№]])","v":122},{"$f":"IF((D128)=0,NOW(),C128)","v":"2009-03-02T14:40:42.790"},"C7115 A     (HP1200)",{"$f":"SUM((Таб_Samsung16[SAMSUNG]=Таб_Заправка9[[#This Row],[Модель\n картриджа]])*Таб_Samsung16[стоимость],(Таб_Xerox17[XEROX]=Таб_Заправка9[[#This Row],[Модель\n картриджа]])*Таб_Xerox17[стоимость],(Таб_HP18[[HP ]]=Таб_Заправка9[[#This Row],[Модель\n картриджа]])*Таб_HP18[стоимось],(Таб_Canon19[CANON]=Таб_Заправка9[[#This Row],[Модель\n картриджа]])*Таб_Canon19[стоимость])","v":250},{"$f":"IF(Таб_Заправка9[[#This Row],[Стоимость\nзаправки]]<>0,Таб_Заправка9[[#This Row],[Стоимость\nзаправки]]-120,\"\")","v":130}]
[null,{"$f":"ROW(B129)-ROW(Таб_Заправка9[[#Headers],[№]])","v":123},{"$f":"IF((D129)=0,NOW(),C129)","v":"2009-03-02T15:59:06.730"},"Q2612A     (HP1010)",{"$f":"SUM((Таб_Samsung16[SAMSUNG]=Таб_Заправка9[[#This Row],[Модель\n картриджа]])*Таб_Samsung16[стоимость],(Таб_Xerox17[XEROX]=Таб_Заправка9[[#This Row],[Модель\n картриджа]])*Таб_Xerox17[стоимость],(Таб_HP18[[HP ]]=Таб_Заправка9[[#This Row],[Модель\n картриджа]])*Таб_HP18[стоимось],(Таб_Canon19[CANON]=Таб_Заправка9[[#This Row],[Модель\n картриджа]])*Таб_Canon19[стоимость])","v":250},{"$f":"IF(Таб_Заправка9[[#This Row],[Стоимость\nзаправки]]<>0,Таб_Заправка9[[#This Row],[Стоимость\nзаправки]]-120,\"\")","v":130}]
[null,{"$f":"ROW(B130)-ROW(Таб_Заправка9[[#Headers],[№]])","v":124},{"$f":"IF((D130)=0,NOW(),C130)","v":"2009-03-03T09:33:10.840"},"Q2612A     (HP1010)",{"$f":"SUM((Таб_Samsung16[SAMSUNG]=Таб_Заправка9[[#This Row],[Модель\n картриджа]])*Таб_Samsung16[стоимость],(Таб_Xerox17[XEROX]=Таб_Заправка9[[#This Row],[Модель\n картриджа]])*Таб_Xerox17[стоимость],(Таб_HP18[[HP ]]=Таб_Заправка9[[#This Row],[Модель\n картриджа]])*Таб_HP18[стоимось],(Таб_Canon19[CANON]=Таб_Заправка9[[#This Row],[Модель\n картриджа]])*Таб_Canon19[стоимость])","v":250},{"$f":"IF(Таб_Заправка9[[#This Row],[Стоимость\nзаправки]]<>0,Таб_Заправка9[[#This Row],[Стоимость\nзаправки]]-120,\"\")","v":130}]
[null,{"$f":"ROW(B131)-ROW(Таб_Заправка9[[#Headers],[№]])","v":125},{"$f":"IF((D131)=0,NOW(),C131)","v":"2009-03-03T11:12:58.870"},"Q2612A     (HP1010)",{"$f":"SUM((Таб_Samsung16[SAMSUNG]=Таб_Заправка9[[#This Row],[Модель\n картриджа]])*Таб_Samsung16[стоимость],(Таб_Xerox17[XEROX]=Таб_Заправка9[[#This Row],[Модель\n картриджа]])*Таб_Xerox17[стоимость],(Таб_HP18[[HP ]]=Таб_Заправка9[[#This Row],[Модель\n картриджа]])*Таб_HP18[стоимось],(Таб_Canon19[CANON]=Таб_Заправка9[[#This Row],[Модель\n картриджа]])*Таб_Canon19[стоимость])","v":250},{"$f":"IF(Таб_Заправка9[[#This Row],[Стоимость\nзаправки]]<>0,Таб_Заправка9[[#This Row],[Стоимость\nзаправки]]-120,\"\")","v":130}]
[null,{"$f":"ROW(B132)-ROW(Таб_Заправка9[[#Headers],[№]])","v":126},{"$f":"IF((D132)=0,NOW(),C132)","v":"2009-03-03T11:13:12.100"},"WC- 3119",{"$f":"SUM((Таб_Samsung16[SAMSUNG]=Таб_Заправка9[[#This Row],[Модель\n картриджа]])*Таб_Samsung16[стоимость],(Таб_Xerox17[XEROX]=Таб_Заправка9[[#This Row],[Модель\n картриджа]])*Таб_Xerox17[стоимость],(Таб_HP18[[HP ]]=Таб_Заправка9[[#This Row],[Модель\n картриджа]])*Таб_HP18[стоимось],(Таб_Canon19[CANON]=Таб_Заправка9[[#This Row],[Модель\n картриджа]])*Таб_Canon19[стоимость])","v":400},{"$f":"IF(Таб_Заправка9[[#This Row],[Стоимость\nзаправки]]<>0,Таб_Заправка9[[#This Row],[Стоимость\nзаправки]]-120,\"\")","v":280}]
[null,{"$f":"ROW(B133)-ROW(Таб_Заправка9[[#Headers],[№]])","v":127},{"$f":"IF((D133)=0,NOW(),C133)","v":"2009-03-04T16:16:41.450"},"Q2612A     (HP1010)",{"$f":"SUM((Таб_Samsung16[SAMSUNG]=Таб_Заправка9[[#This Row],[Модель\n картриджа]])*Таб_Samsung16[стоимость],(Таб_Xerox17[XEROX]=Таб_Заправка9[[#This Row],[Модель\n картриджа]])*Таб_Xerox17[стоимость],(Таб_HP18[[HP ]]=Таб_Заправка9[[#This Row],[Модель\n картриджа]])*Таб_HP18[стоимось],(Таб_Canon19[CANON]=Таб_Заправка9[[#This Row],[Модель\n картриджа]])*Таб_Canon19[стоимость])","v":250},{"$f":"IF(Таб_Заправка9[[#This Row],[Стоимость\nзаправки]]<>0,Таб_Заправка9[[#This Row],[Стоимость\nзаправки]]-120,\"\")","v":130}]
[null,{"$f":"ROW(B134)-ROW(Таб_Заправка9[[#Headers],[№]])","v":128},{"$f":"IF((D134)=0,NOW(),C134)","v":"2009-03-05T12:16:15.980"},"ML 1610/2010",{"$f":"SUM((Таб_Samsung16[SAMSUNG]=Таб_Заправка9[[#This Row],[Модель\n картриджа]])*Таб_Samsung16[стоимость],(Таб_Xerox17[XEROX]=Таб_Заправка9[[#This Row],[Модель\n картриджа]])*Таб_Xerox17[стоимость],(Таб_HP18[[HP ]]=Таб_Заправка9[[#This Row],[Модель\n картриджа]])*Таб_HP18[стоимось],(Таб_Canon19[CANON]=Таб_Заправка9[[#This Row],[Модель\n картриджа]])*Таб_Canon19[стоимость])","v":300},{"$f":"IF(Таб_Заправка9[[#This Row],[Стоимость\nзаправки]]<>0,Таб_Заправка9[[#This Row],[Стоимость\nзаправки]]-120,\"\")","v":180}]
[null,{"$f":"ROW(B135)-ROW(Таб_Заправка9[[#Headers],[№]])","v":129},{"$f":"IF((D135)=0,NOW(),C135)","v":"2009-03-05T12:57:53.650"},"Q2612A     (HP1010)",{"$f":"SUM((Таб_Samsung16[SAMSUNG]=Таб_Заправка9[[#This Row],[Модель\n картриджа]])*Таб_Samsung16[стоимость],(Таб_Xerox17[XEROX]=Таб_Заправка9[[#This Row],[Модель\n картриджа]])*Таб_Xerox17[стоимость],(Таб_HP18[[HP ]]=Таб_Заправка9[[#This Row],[Модель\n картриджа]])*Таб_HP18[стоимось],(Таб_Canon19[CANON]=Таб_Заправка9[[#This Row],[Модель\n картриджа]])*Таб_Canon19[стоимость])","v":250},{"$f":"IF(Таб_Заправка9[[#This Row],[Стоимость\nзаправки]]<>0,Таб_Заправка9[[#This Row],[Стоимость\nзаправки]]-120,\"\")","v":130}]
[null,{"$f":"ROW(B136)-ROW(Таб_Заправка9[[#Headers],[№]])","v":130},{"$f":"IF((D136)=0,NOW(),C136)","v":"2009-03-05T15:06:06.890"},"Phaser 3117/22",{"$f":"SUM((Таб_Samsung16[SAMSUNG]=Таб_Заправка9[[#This Row],[Модель\n картриджа]])*Таб_Samsung16[стоимость],(Таб_Xerox17[XEROX]=Таб_Заправка9[[#This Row],[Модель\n картриджа]])*Таб_Xerox17[стоимость],(Таб_HP18[[HP ]]=Таб_Заправка9[[#This Row],[Модель\n картриджа]])*Таб_HP18[стоимось],(Таб_Canon19[CANON]=Таб_Заправка9[[#This Row],[Модель\n картриджа]])*Таб_Canon19[стоимость])","v":300},{"$f":"IF(Таб_Заправка9[[#This Row],[Стоимость\nзаправки]]<>0,Таб_Заправка9[[#This Row],[Стоимость\nзаправки]]-120,\"\")","v":180}]
[null,{"$f":"ROW(B137)-ROW(Таб_Заправка9[[#Headers],[№]])","v":131},{"$f":"IF((D137)=0,NOW(),C137)","v":"2009-03-05T16:24:00.600"},"EP-27   (LBP3200)",{"$f":"SUM((Таб_Samsung16[SAMSUNG]=Таб_Заправка9[[#This Row],[Модель\n картриджа]])*Таб_Samsung16[стоимость],(Таб_Xerox17[XEROX]=Таб_Заправка9[[#This Row],[Модель\n картриджа]])*Таб_Xerox17[стоимость],(Таб_HP18[[HP ]]=Таб_Заправка9[[#This Row],[Модель\n картриджа]])*Таб_HP18[стоимось],(Таб_Canon19[CANON]=Таб_Заправка9[[#This Row],[Модель\n картриджа]])*Таб_Canon19[стоимость])","v":250},{"$f":"IF(Таб_Заправка9[[#This Row],[Стоимость\nзаправки]]<>0,Таб_Заправка9[[#This Row],[Стоимость\nзаправки]]-120,\"\")","v":130}]
[null,{"$f":"ROW(B138)-ROW(Таб_Заправка9[[#Headers],[№]])","v":132},{"$f":"IF((D138)=0,NOW(),C138)","v":"2009-03-06T10:22:34.730"},"Phaser 3250",{"$f":"SUM((Таб_Samsung16[SAMSUNG]=Таб_Заправка9[[#This Row],[Модель\n картриджа]])*Таб_Samsung16[стоимость],(Таб_Xerox17[XEROX]=Таб_Заправка9[[#This Row],[Модель\n картриджа]])*Таб_Xerox17[стоимость],(Таб_HP18[[HP ]]=Таб_Заправка9[[#This Row],[Модель\n картриджа]])*Таб_HP18[стоимось],(Таб_Canon19[CANON]=Таб_Заправка9[[#This Row],[Модель\n картриджа]])*Таб_Canon19[стоимость])","v":700},{"$f":"IF(Таб_Заправка9[[#This Row],[Стоимость\nзаправки]]<>0,Таб_Заправка9[[#This Row],[Стоимость\nзаправки]]-120,\"\")","v":580}]
[null,{"$f":"ROW(B139)-ROW(Таб_Заправка9[[#Headers],[№]])","v":133},{"$f":"IF((D139)=0,NOW(),C139)","v":"2009-03-06T14:01:40.260"},"FX-10   (L100/ L120)",{"$f":"SUM((Таб_Samsung16[SAMSUNG]=Таб_Заправка9[[#This Row],[Модель\n картриджа]])*Таб_Samsung16[стоимость],(Таб_Xerox17[XEROX]=Таб_Заправка9[[#This Row],[Модель\n картриджа]])*Таб_Xerox17[стоимость],(Таб_HP18[[HP ]]=Таб_Заправка9[[#This Row],[Модель\n картриджа]])*Таб_HP18[стоимось],(Таб_Canon19[CANON]=Таб_Заправка9[[#This Row],[Модель\n картриджа]])*Таб_Canon19[стоимость])","v":250},{"$f":"IF(Таб_Заправка9[[#This Row],[Стоимость\nзаправки]]<>0,Таб_Заправка9[[#This Row],[Стоимость\nзаправки]]-120,\"\")","v":130}]
[null,{"$f":"ROW(B140)-ROW(Таб_Заправка9[[#Headers],[№]])","v":134},{"$f":"IF((D140)=0,NOW(),C140)","v":"2009-03-06T14:02:21.730"},"FX-10   (L100/ L120)",{"$f":"SUM((Таб_Samsung16[SAMSUNG]=Таб_Заправка9[[#This Row],[Модель\n картриджа]])*Таб_Samsung16[стоимость],(Таб_Xerox17[XEROX]=Таб_Заправка9[[#This Row],[Модель\n картриджа]])*Таб_Xerox17[стоимость],(Таб_HP18[[HP ]]=Таб_Заправка9[[#This Row],[Модель\n картриджа]])*Таб_HP18[стоимось],(Таб_Canon19[CANON]=Таб_Заправка9[[#This Row],[Модель\n картриджа]])*Таб_Canon19[стоимость])","v":250},{"$f":"IF(Таб_Заправка9[[#This Row],[Стоимость\nзаправки]]<>0,Таб_Заправка9[[#This Row],[Стоимость\nзаправки]]-120,\"\")","v":130}]
[null,{"$f":"ROW(B141)-ROW(Таб_Заправка9[[#Headers],[№]])","v":135},{"$f":"IF((D141)=0,NOW(),C141)","v":"2009-03-10T09:41:35.200"},"E16/30",{"$f":"SUM((Таб_Samsung16[SAMSUNG]=Таб_Заправка9[[#This Row],[Модель\n картриджа]])*Таб_Samsung16[стоимость],(Таб_Xerox17[XEROX]=Таб_Заправка9[[#This Row],[Модель\n картриджа]])*Таб_Xerox17[стоимость],(Таб_HP18[[HP ]]=Таб_Заправка9[[#This Row],[Модель\n картриджа]])*Таб_HP18[стоимось],(Таб_Canon19[CANON]=Таб_Заправка9[[#This Row],[Модель\n картриджа]])*Таб_Canon19[стоимость])","v":250},{"$f":"IF(Таб_Заправка9[[#This Row],[Стоимость\nзаправки]]<>0,Таб_Заправка9[[#This Row],[Стоимость\nзаправки]]-120,\"\")","v":130}]
[null,{"$f":"ROW(B142)-ROW(Таб_Заправка9[[#Headers],[№]])","v":136},{"$f":"IF((D142)=0,NOW(),C142)","v":"2009-03-10T13:40:30.140"},"Phaser 3117/22",{"$f":"SUM((Таб_Samsung16[SAMSUNG]=Таб_Заправка9[[#This Row],[Модель\n картриджа]])*Таб_Samsung16[стоимость],(Таб_Xerox17[XEROX]=Таб_Заправка9[[#This Row],[Модель\n картриджа]])*Таб_Xerox17[стоимость],(Таб_HP18[[HP ]]=Таб_Заправка9[[#This Row],[Модель\n картриджа]])*Таб_HP18[стоимось],(Таб_Canon19[CANON]=Таб_Заправка9[[#This Row],[Модель\n картриджа]])*Таб_Canon19[стоимость])","v":300},{"$f":"IF(Таб_Заправка9[[#This Row],[Стоимость\nзаправки]]<>0,Таб_Заправка9[[#This Row],[Стоимость\nзаправки]]-120,\"\")","v":180}]
[null,{"$f":"ROW(B143)-ROW(Таб_Заправка9[[#Headers],[№]])","v":137},{"$f":"IF((D143)=0,NOW(),C143)","v":"2009-03-10T13:40:45.250"},"C7115 A     (HP1200)",{"$f":"SUM((Таб_Samsung16[SAMSUNG]=Таб_Заправка9[[#This Row],[Модель\n картриджа]])*Таб_Samsung16[стоимость],(Таб_Xerox17[XEROX]=Таб_Заправка9[[#This Row],[Модель\n картриджа]])*Таб_Xerox17[стоимость],(Таб_HP18[[HP ]]=Таб_Заправка9[[#This Row],[Модель\n картриджа]])*Таб_HP18[стоимось],(Таб_Canon19[CANON]=Таб_Заправка9[[#This Row],[Модель\n картриджа]])*Таб_Canon19[стоимость])","v":250},{"$f":"IF(Таб_Заправка9[[#This Row],[Стоимость\nзаправки]]<>0,Таб_Заправка9[[#This Row],[Стоимость\nзаправки]]-120,\"\")","v":130}]
[null,{"$f":"ROW(B144)-ROW(Таб_Заправка9[[#Headers],[№]])","v":138},{"$f":"IF((D144)=0,NOW(),C144)","v":"2009-03-10T15:55:52.400"},"Q7553A   (HP P2015)",{"$f":"SUM((Таб_Samsung16[SAMSUNG]=Таб_Заправка9[[#This Row],[Модель\n картриджа]])*Таб_Samsung16[стоимость],(Таб_Xerox17[XEROX]=Таб_Заправка9[[#This Row],[Модель\n картриджа]])*Таб_Xerox17[стоимость],(Таб_HP18[[HP ]]=Таб_Заправка9[[#This Row],[Модель\n картриджа]])*Таб_HP18[стоимось],(Таб_Canon19[CANON]=Таб_Заправка9[[#This Row],[Модель\n картриджа]])*Таб_Canon19[стоимость])","v":300},{"$f":"IF(Таб_Заправка9[[#This Row],[Стоимость\nзаправки]]<>0,Таб_Заправка9[[#This Row],[Стоимость\nзаправки]]-120,\"\")","v":180}]
[null,{"$f":"ROW(B145)-ROW(Таб_Заправка9[[#Headers],[№]])","v":139},{"$f":"IF((D145)=0,NOW(),C145)","v":"2009-03-11T10:31:47.170"},"WC- 3119",{"$f":"SUM((Таб_Samsung16[SAMSUNG]=Таб_Заправка9[[#This Row],[Модель\n картриджа]])*Таб_Samsung16[стоимость],(Таб_Xerox17[XEROX]=Таб_Заправка9[[#This Row],[Модель\n картриджа]])*Таб_Xerox17[стоимость],(Таб_HP18[[HP ]]=Таб_Заправка9[[#This Row],[Модель\n картриджа]])*Таб_HP18[стоимось],(Таб_Canon19[CANON]=Таб_Заправка9[[#This Row],[Модель\n картриджа]])*Таб_Canon19[стоимость])","v":400},{"$f":"IF(Таб_Заправка9[[#This Row],[Стоимость\nзаправки]]<>0,Таб_Заправка9[[#This Row],[Стоимость\nзаправки]]-120,\"\")","v":280}]
[null,{"$f":"ROW(B146)-ROW(Таб_Заправка9[[#Headers],[№]])","v":140},{"$f":"IF((D146)=0,NOW(),C146)","v":"2009-03-11T10:31:54.510"},"WC- 3119",{"$f":"SUM((Таб_Samsung16[SAMSUNG]=Таб_Заправка9[[#This Row],[Модель\n картриджа]])*Таб_Samsung16[стоимость],(Таб_Xerox17[XEROX]=Таб_Заправка9[[#This Row],[Модель\n картриджа]])*Таб_Xerox17[стоимость],(Таб_HP18[[HP ]]=Таб_Заправка9[[#This Row],[Модель\n картриджа]])*Таб_HP18[стоимось],(Таб_Canon19[CANON]=Таб_Заправка9[[#This Row],[Модель\n картриджа]])*Таб_Canon19[стоимость])","v":400},{"$f":"IF(Таб_Заправка9[[#This Row],[Стоимость\nзаправки]]<>0,Таб_Заправка9[[#This Row],[Стоимость\nзаправки]]-120,\"\")","v":280}]
[null,{"$f":"ROW(B147)-ROW(Таб_Заправка9[[#Headers],[№]])","v":141},{"$f":"IF((D147)=0,NOW(),C147)","v":"2009-03-11T14:59:15.590"},"WC- 3119",{"$f":"SUM((Таб_Samsung16[SAMSUNG]=Таб_Заправка9[[#This Row],[Модель\n картриджа]])*Таб_Samsung16[стоимость],(Таб_Xerox17[XEROX]=Таб_Заправка9[[#This Row],[Модель\n картриджа]])*Таб_Xerox17[стоимость],(Таб_HP18[[HP ]]=Таб_Заправка9[[#This Row],[Модель\n картриджа]])*Таб_HP18[стоимось],(Таб_Canon19[CANON]=Таб_Заправка9[[#This Row],[Модель\n картриджа]])*Таб_Canon19[стоимость])","v":400},{"$f":"IF(Таб_Заправка9[[#This Row],[Стоимость\nзаправки]]<>0,Таб_Заправка9[[#This Row],[Стоимость\nзаправки]]-120,\"\")","v":280}]
[null,{"$f":"ROW(B148)-ROW(Таб_Заправка9[[#Headers],[№]])","v":142},{"$f":"IF((D148)=0,NOW(),C148)","v":"2009-03-12T10:52:12"},"PE -16",{"$f":"SUM((Таб_Samsung16[SAMSUNG]=Таб_Заправка9[[#This Row],[Модель\n картриджа]])*Таб_Samsung16[стоимость],(Таб_Xerox17[XEROX]=Таб_Заправка9[[#This Row],[Модель\n картриджа]])*Таб_Xerox17[стоимость],(Таб_HP18[[HP ]]=Таб_Заправка9[[#This Row],[Модель\n картриджа]])*Таб_HP18[стоимось],(Таб_Canon19[CANON]=Таб_Заправка9[[#This Row],[Модель\n картриджа]])*Таб_Canon19[стоимость])","v":300},{"$f":"IF(Таб_Заправка9[[#This Row],[Стоимость\nзаправки]]<>0,Таб_Заправка9[[#This Row],[Стоимость\nзаправки]]-120,\"\")","v":180}]
[null,{"$f":"ROW(B149)-ROW(Таб_Заправка9[[#Headers],[№]])","v":143},{"$f":"IF((D149)=0,NOW(),C149)","v":"2009-03-12T11:26:59.890"},"CB436A   (HP P1505n)",{"$f":"SUM((Таб_Samsung16[SAMSUNG]=Таб_Заправка9[[#This Row],[Модель\n картриджа]])*Таб_Samsung16[стоимость],(Таб_Xerox17[XEROX]=Таб_Заправка9[[#This Row],[Модель\n картриджа]])*Таб_Xerox17[стоимость],(Таб_HP18[[HP ]]=Таб_Заправка9[[#This Row],[Модель\n картриджа]])*Таб_HP18[стоимось],(Таб_Canon19[CANON]=Таб_Заправка9[[#This Row],[Модель\n картриджа]])*Таб_Canon19[стоимость])","v":250},{"$f":"IF(Таб_Заправка9[[#This Row],[Стоимость\nзаправки]]<>0,Таб_Заправка9[[#This Row],[Стоимость\nзаправки]]-120,\"\")","v":130}]
[null,{"$f":"ROW(B150)-ROW(Таб_Заправка9[[#Headers],[№]])","v":144},{"$f":"IF((D150)=0,NOW(),C150)","v":"2009-03-13T13:11:59.350"},"CB436A   (HP P1505n)",{"$f":"SUM((Таб_Samsung16[SAMSUNG]=Таб_Заправка9[[#This Row],[Модель\n картриджа]])*Таб_Samsung16[стоимость],(Таб_Xerox17[XEROX]=Таб_Заправка9[[#This Row],[Модель\n картриджа]])*Таб_Xerox17[стоимость],(Таб_HP18[[HP ]]=Таб_Заправка9[[#This Row],[Модель\n картриджа]])*Таб_HP18[стоимось],(Таб_Canon19[CANON]=Таб_Заправка9[[#This Row],[Модель\n картриджа]])*Таб_Canon19[стоимость])","v":250},{"$f":"IF(Таб_Заправка9[[#This Row],[Стоимость\nзаправки]]<>0,Таб_Заправка9[[#This Row],[Стоимость\nзаправки]]-120,\"\")","v":130}]
[null,{"$f":"ROW(B151)-ROW(Таб_Заправка9[[#Headers],[№]])","v":145},{"$f":"IF((D151)=0,NOW(),C151)","v":"2009-03-13T15:01:20.670"},"С-703   (LBP2900)",{"$f":"SUM((Таб_Samsung16[SAMSUNG]=Таб_Заправка9[[#This Row],[Модель\n картриджа]])*Таб_Samsung16[стоимость],(Таб_Xerox17[XEROX]=Таб_Заправка9[[#This Row],[Модель\n картриджа]])*Таб_Xerox17[стоимость],(Таб_HP18[[HP ]]=Таб_Заправка9[[#This Row],[Модель\n картриджа]])*Таб_HP18[стоимось],(Таб_Canon19[CANON]=Таб_Заправка9[[#This Row],[Модель\n картриджа]])*Таб_Canon19[стоимость])","v":250},{"$f":"IF(Таб_Заправка9[[#This Row],[Стоимость\nзаправки]]<>0,Таб_Заправка9[[#This Row],[Стоимость\nзаправки]]-120,\"\")","v":130}]
[null,{"$f":"ROW(B152)-ROW(Таб_Заправка9[[#Headers],[№]])","v":146},{"$f":"IF((D152)=0,NOW(),C152)","v":"2009-03-13T15:01:32.340"},"С-703   (LBP2900)",{"$f":"SUM((Таб_Samsung16[SAMSUNG]=Таб_Заправка9[[#This Row],[Модель\n картриджа]])*Таб_Samsung16[стоимость],(Таб_Xerox17[XEROX]=Таб_Заправка9[[#This Row],[Модель\n картриджа]])*Таб_Xerox17[стоимость],(Таб_HP18[[HP ]]=Таб_Заправка9[[#This Row],[Модель\n картриджа]])*Таб_HP18[стоимось],(Таб_Canon19[CANON]=Таб_Заправка9[[#This Row],[Модель\n картриджа]])*Таб_Canon19[стоимость])","v":250},{"$f":"IF(Таб_Заправка9[[#This Row],[Стоимость\nзаправки]]<>0,Таб_Заправка9[[#This Row],[Стоимость\nзаправки]]-120,\"\")","v":130}]
[null,{"$f":"ROW(B153)-ROW(Таб_Заправка9[[#Headers],[№]])","v":147},{"$f":"IF((D153)=0,NOW(),C153)","v":"2009-03-17T12:41:25.530"},"PE -16",{"$f":"SUM((Таб_Samsung16[SAMSUNG]=Таб_Заправка9[[#This Row],[Модель\n картриджа]])*Таб_Samsung16[стоимость],(Таб_Xerox17[XEROX]=Таб_Заправка9[[#This Row],[Модель\n картриджа]])*Таб_Xerox17[стоимость],(Таб_HP18[[HP ]]=Таб_Заправка9[[#This Row],[Модель\n картриджа]])*Таб_HP18[стоимось],(Таб_Canon19[CANON]=Таб_Заправка9[[#This Row],[Модель\n картриджа]])*Таб_Canon19[стоимость])","v":300},{"$f":"IF(Таб_Заправка9[[#This Row],[Стоимость\nзаправки]]<>0,Таб_Заправка9[[#This Row],[Стоимость\nзаправки]]-120,\"\")","v":180}]
[null,{"$f":"ROW(B154)-ROW(Таб_Заправка9[[#Headers],[№]])","v":148},{"$f":"IF((D154)=0,NOW(),C154)","v":"2009-03-17T14:53:37.080"},"E16/30",{"$f":"SUM((Таб_Samsung16[SAMSUNG]=Таб_Заправка9[[#This Row],[Модель\n картриджа]])*Таб_Samsung16[стоимость],(Таб_Xerox17[XEROX]=Таб_Заправка9[[#This Row],[Модель\n картриджа]])*Таб_Xerox17[стоимость],(Таб_HP18[[HP ]]=Таб_Заправка9[[#This Row],[Модель\n картриджа]])*Таб_HP18[стоимось],(Таб_Canon19[CANON]=Таб_Заправка9[[#This Row],[Модель\n картриджа]])*Таб_Canon19[стоимость])","v":250},{"$f":"IF(Таб_Заправка9[[#This Row],[Стоимость\nзаправки]]<>0,Таб_Заправка9[[#This Row],[Стоимость\nзаправки]]-120,\"\")","v":130}]
[null,{"$f":"ROW(B155)-ROW(Таб_Заправка9[[#Headers],[№]])","v":149},{"$f":"IF((D155)=0,NOW(),C155)","v":"2009-03-18T11:07:48.200"},"PE220",{"$f":"SUM((Таб_Samsung16[SAMSUNG]=Таб_Заправка9[[#This Row],[Модель\n картриджа]])*Таб_Samsung16[стоимость],(Таб_Xerox17[XEROX]=Таб_Заправка9[[#This Row],[Модель\n картриджа]])*Таб_Xerox17[стоимость],(Таб_HP18[[HP ]]=Таб_Заправка9[[#This Row],[Модель\n картриджа]])*Таб_HP18[стоимось],(Таб_Canon19[CANON]=Таб_Заправка9[[#This Row],[Модель\n картриджа]])*Таб_Canon19[стоимость])","v":400},{"$f":"IF(Таб_Заправка9[[#This Row],[Стоимость\nзаправки]]<>0,Таб_Заправка9[[#This Row],[Стоимость\nзаправки]]-120,\"\")","v":280}]
[null,{"$f":"ROW(B156)-ROW(Таб_Заправка9[[#Headers],[№]])","v":150},{"$f":"IF((D156)=0,NOW(),C156)","v":"2009-03-18T11:07:53.850"},"PE220",{"$f":"SUM((Таб_Samsung16[SAMSUNG]=Таб_Заправка9[[#This Row],[Модель\n картриджа]])*Таб_Samsung16[стоимость],(Таб_Xerox17[XEROX]=Таб_Заправка9[[#This Row],[Модель\n картриджа]])*Таб_Xerox17[стоимость],(Таб_HP18[[HP ]]=Таб_Заправка9[[#This Row],[Модель\n картриджа]])*Таб_HP18[стоимось],(Таб_Canon19[CANON]=Таб_Заправка9[[#This Row],[Модель\n картриджа]])*Таб_Canon19[стоимость])","v":400},{"$f":"IF(Таб_Заправка9[[#This Row],[Стоимость\nзаправки]]<>0,Таб_Заправка9[[#This Row],[Стоимость\nзаправки]]-120,\"\")","v":280}]
[null,{"$f":"ROW(B157)-ROW(Таб_Заправка9[[#Headers],[№]])","v":151},{"$f":"IF((D157)=0,NOW(),C157)","v":"2009-03-18T11:07:58.030"},"Phaser 3117/22",{"$f":"SUM((Таб_Samsung16[SAMSUNG]=Таб_Заправка9[[#This Row],[Модель\n картриджа]])*Таб_Samsung16[стоимость],(Таб_Xerox17[XEROX]=Таб_Заправка9[[#This Row],[Модель\n картриджа]])*Таб_Xerox17[стоимость],(Таб_HP18[[HP ]]=Таб_Заправка9[[#This Row],[Модель\n картриджа]])*Таб_HP18[стоимось],(Таб_Canon19[CANON]=Таб_Заправка9[[#This Row],[Модель\n картриджа]])*Таб_Canon19[стоимость])","v":300},{"$f":"IF(Таб_Заправка9[[#This Row],[Стоимость\nзаправки]]<>0,Таб_Заправка9[[#This Row],[Стоимость\nзаправки]]-120,\"\")","v":180}]
[null,{"$f":"ROW(B158)-ROW(Таб_Заправка9[[#Headers],[№]])","v":152},{"$f":"IF((D158)=0,NOW(),C158)","v":"2009-03-18T11:56:18.140"},"SCX 4200",{"$f":"SUM((Таб_Samsung16[SAMSUNG]=Таб_Заправка9[[#This Row],[Модель\n картриджа]])*Таб_Samsung16[стоимость],(Таб_Xerox17[XEROX]=Таб_Заправка9[[#This Row],[Модель\n картриджа]])*Таб_Xerox17[стоимость],(Таб_HP18[[HP ]]=Таб_Заправка9[[#This Row],[Модель\n картриджа]])*Таб_HP18[стоимось],(Таб_Canon19[CANON]=Таб_Заправка9[[#This Row],[Модель\n картриджа]])*Таб_Canon19[стоимость])","v":400},{"$f":"IF(Таб_Заправка9[[#This Row],[Стоимость\nзаправки]]<>0,Таб_Заправка9[[#This Row],[Стоимость\nзаправки]]-120,\"\")","v":280}]
[null,{"$f":"ROW(B159)-ROW(Таб_Заправка9[[#Headers],[№]])","v":153},{"$f":"IF((D159)=0,NOW(),C159)","v":"2009-04-06T13:03:25.420"},"Phaser 3250",{"$f":"SUM((Таб_Samsung16[SAMSUNG]=Таб_Заправка9[[#This Row],[Модель\n картриджа]])*Таб_Samsung16[стоимость],(Таб_Xerox17[XEROX]=Таб_Заправка9[[#This Row],[Модель\n картриджа]])*Таб_Xerox17[стоимость],(Таб_HP18[[HP ]]=Таб_Заправка9[[#This Row],[Модель\n картриджа]])*Таб_HP18[стоимось],(Таб_Canon19[CANON]=Таб_Заправка9[[#This Row],[Модель\n картриджа]])*Таб_Canon19[стоимость])","v":700},{"$f":"IF(Таб_Заправка9[[#This Row],[Стоимость\nзаправки]]<>0,Таб_Заправка9[[#This Row],[Стоимость\nзаправки]]-120,\"\")","v":580}]
[null,{"$f":"ROW(B160)-ROW(Таб_Заправка9[[#Headers],[№]])","v":154},{"$f":"IF((D160)=0,NOW(),C160)","v":"2009-04-06T13:03:34.400"},"Phaser 3250",{"$f":"SUM((Таб_Samsung16[SAMSUNG]=Таб_Заправка9[[#This Row],[Модель\n картриджа]])*Таб_Samsung16[стоимость],(Таб_Xerox17[XEROX]=Таб_Заправка9[[#This Row],[Модель\n картриджа]])*Таб_Xerox17[стоимость],(Таб_HP18[[HP ]]=Таб_Заправка9[[#This Row],[Модель\n картриджа]])*Таб_HP18[стоимось],(Таб_Canon19[CANON]=Таб_Заправка9[[#This Row],[Модель\n картриджа]])*Таб_Canon19[стоимость])","v":700},{"$f":"IF(Таб_Заправка9[[#This Row],[Стоимость\nзаправки]]<>0,Таб_Заправка9[[#This Row],[Стоимость\nзаправки]]-120,\"\")","v":580}]
[null,{"$f":"ROW(B161)-ROW(Таб_Заправка9[[#Headers],[№]])","v":155},{"$f":"IF((D161)=0,NOW(),C161)","v":"2009-04-06T13:03:39.790"},"SCX 4200",{"$f":"SUM((Таб_Samsung16[SAMSUNG]=Таб_Заправка9[[#This Row],[Модель\n картриджа]])*Таб_Samsung16[стоимость],(Таб_Xerox17[XEROX]=Таб_Заправка9[[#This Row],[Модель\n картриджа]])*Таб_Xerox17[стоимость],(Таб_HP18[[HP ]]=Таб_Заправка9[[#This Row],[Модель\n картриджа]])*Таб_HP18[стоимось],(Таб_Canon19[CANON]=Таб_Заправка9[[#This Row],[Модель\n картриджа]])*Таб_Canon19[стоимость])","v":400},{"$f":"IF(Таб_Заправка9[[#This Row],[Стоимость\nзаправки]]<>0,Таб_Заправка9[[#This Row],[Стоимость\nзаправки]]-120,\"\")","v":280}]
[null,{"$f":"ROW(B162)-ROW(Таб_Заправка9[[#Headers],[№]])","v":156},{"$f":"IF((D162)=0,NOW(),C162)","v":"2009-04-08T13:04:11.400"},"SCX 4200",{"$f":"SUM((Таб_Samsung16[SAMSUNG]=Таб_Заправка9[[#This Row],[Модель\n картриджа]])*Таб_Samsung16[стоимость],(Таб_Xerox17[XEROX]=Таб_Заправка9[[#This Row],[Модель\n картриджа]])*Таб_Xerox17[стоимость],(Таб_HP18[[HP ]]=Таб_Заправка9[[#This Row],[Модель\n картриджа]])*Таб_HP18[стоимось],(Таб_Canon19[CANON]=Таб_Заправка9[[#This Row],[Модель\n картриджа]])*Таб_Canon19[стоимость])","v":400},{"$f":"IF(Таб_Заправка9[[#This Row],[Стоимость\nзаправки]]<>0,Таб_Заправка9[[#This Row],[Стоимость\nзаправки]]-120,\"\")","v":280}]
[null,{"$f":"ROW(B163)-ROW(Таб_Заправка9[[#Headers],[№]])","v":157},{"$f":"IF((D163)=0,NOW(),C163)","v":"2009-04-08T13:04:20.750"},"SCX 4200",{"$f":"SUM((Таб_Samsung16[SAMSUNG]=Таб_Заправка9[[#This Row],[Модель\n картриджа]])*Таб_Samsung16[стоимость],(Таб_Xerox17[XEROX]=Таб_Заправка9[[#This Row],[Модель\n картриджа]])*Таб_Xerox17[стоимость],(Таб_HP18[[HP ]]=Таб_Заправка9[[#This Row],[Модель\n картриджа]])*Таб_HP18[стоимось],(Таб_Canon19[CANON]=Таб_Заправка9[[#This Row],[Модель\n картриджа]])*Таб_Canon19[стоимость])","v":400},{"$f":"IF(Таб_Заправка9[[#This Row],[Стоимость\nзаправки]]<>0,Таб_Заправка9[[#This Row],[Стоимость\nзаправки]]-120,\"\")","v":280}]
[null,{"$f":"ROW(B164)-ROW(Таб_Заправка9[[#Headers],[№]])","v":158},{"$f":"IF((D164)=0,NOW(),C164)","v":"2009-04-08T13:04:25.890"},"SCX 4200",{"$f":"SUM((Таб_Samsung16[SAMSUNG]=Таб_Заправка9[[#This Row],[Модель\n картриджа]])*Таб_Samsung16[стоимость],(Таб_Xerox17[XEROX]=Таб_Заправка9[[#This Row],[Модель\n картриджа]])*Таб_Xerox17[стоимость],(Таб_HP18[[HP ]]=Таб_Заправка9[[#This Row],[Модель\n картриджа]])*Таб_HP18[стоимось],(Таб_Canon19[CANON]=Таб_Заправка9[[#This Row],[Модель\n картриджа]])*Таб_Canon19[стоимость])","v":400},{"$f":"IF(Таб_Заправка9[[#This Row],[Стоимость\nзаправки]]<>0,Таб_Заправка9[[#This Row],[Стоимость\nзаправки]]-120,\"\")","v":280}]
[null,{"$f":"ROW(B165)-ROW(Таб_Заправка9[[#Headers],[№]])","v":159},{"$f":"IF((D165)=0,NOW(),C165)","v":"2009-04-08T13:04:25.890"},"SCX 4200",{"$f":"SUM((Таб_Samsung16[SAMSUNG]=Таб_Заправка9[[#This Row],[Модель\n картриджа]])*Таб_Samsung16[стоимость],(Таб_Xerox17[XEROX]=Таб_Заправка9[[#This Row],[Модель\n картриджа]])*Таб_Xerox17[стоимость],(Таб_HP18[[HP ]]=Таб_Заправка9[[#This Row],[Модель\n картриджа]])*Таб_HP18[стоимось],(Таб_Canon19[CANON]=Таб_Заправка9[[#This Row],[Модель\n картриджа]])*Таб_Canon19[стоимость])","v":400},{"$f":"IF(Таб_Заправка9[[#This Row],[Стоимость\nзаправки]]<>0,Таб_Заправка9[[#This Row],[Стоимость\nзаправки]]-120,\"\")","v":280}]
[null,{"$f":"ROW(B166)-ROW(Таб_Заправка9[[#Headers],[№]])","v":160},{"$f":"IF((D166)=0,NOW(),C166)","v":"2009-04-08T15:59:39.930"},"SCX 4200",{"$f":"SUM((Таб_Samsung16[SAMSUNG]=Таб_Заправка9[[#This Row],[Модель\n картриджа]])*Таб_Samsung16[стоимость],(Таб_Xerox17[XEROX]=Таб_Заправка9[[#This Row],[Модель\n картриджа]])*Таб_Xerox17[стоимость],(Таб_HP18[[HP ]]=Таб_Заправка9[[#This Row],[Модель\n картриджа]])*Таб_HP18[стоимось],(Таб_Canon19[CANON]=Таб_Заправка9[[#This Row],[Модель\n картриджа]])*Таб_Canon19[стоимость])","v":400},{"$f":"IF(Таб_Заправка9[[#This Row],[Стоимость\nзаправки]]<>0,Таб_Заправка9[[#This Row],[Стоимость\nзаправки]]-120,\"\")","v":280}]
[null,{"$f":"ROW(B167)-ROW(Таб_Заправка9[[#Headers],[№]])","v":161},{"$f":"IF((D167)=0,NOW(),C167)","v":"2009-04-08T15:59:39.930"},"SCX 4200",{"$f":"SUM((Таб_Samsung16[SAMSUNG]=Таб_Заправка9[[#This Row],[Модель\n картриджа]])*Таб_Samsung16[стоимость],(Таб_Xerox17[XEROX]=Таб_Заправка9[[#This Row],[Модель\n картриджа]])*Таб_Xerox17[стоимость],(Таб_HP18[[HP ]]=Таб_Заправка9[[#This Row],[Модель\n картриджа]])*Таб_HP18[стоимось],(Таб_Canon19[CANON]=Таб_Заправка9[[#This Row],[Модель\n картриджа]])*Таб_Canon19[стоимость])","v":400},{"$f":"IF(Таб_Заправка9[[#This Row],[Стоимость\nзаправки]]<>0,Таб_Заправка9[[#This Row],[Стоимость\nзаправки]]-120,\"\")","v":280}]
[null,{"$f":"ROW(B168)-ROW(Таб_Заправка9[[#Headers],[№]])","v":162},{"$f":"IF((D168)=0,NOW(),C168)","v":"2009-04-08T15:59:39.930"},"SCX 4200",{"$f":"SUM((Таб_Samsung16[SAMSUNG]=Таб_Заправка9[[#This Row],[Модель\n картриджа]])*Таб_Samsung16[стоимость],(Таб_Xerox17[XEROX]=Таб_Заправка9[[#This Row],[Модель\n картриджа]])*Таб_Xerox17[стоимость],(Таб_HP18[[HP ]]=Таб_Заправка9[[#This Row],[Модель\n картриджа]])*Таб_HP18[стоимось],(Таб_Canon19[CANON]=Таб_Заправка9[[#This Row],[Модель\n картриджа]])*Таб_Canon19[стоимость])","v":400},{"$f":"IF(Таб_Заправка9[[#This Row],[Стоимость\nзаправки]]<>0,Таб_Заправка9[[#This Row],[Стоимость\nзаправки]]-120,\"\")","v":280}]
[null,{"$f":"ROW(B169)-ROW(Таб_Заправка9[[#Headers],[№]])","v":163},{"$f":"IF((D169)=0,NOW(),C169)","v":"2009-04-08T15:59:39.930"},"SCX 4200",{"$f":"SUM((Таб_Samsung16[SAMSUNG]=Таб_Заправка9[[#This Row],[Модель\n картриджа]])*Таб_Samsung16[стоимость],(Таб_Xerox17[XEROX]=Таб_Заправка9[[#This Row],[Модель\n картриджа]])*Таб_Xerox17[стоимость],(Таб_HP18[[HP ]]=Таб_Заправка9[[#This Row],[Модель\n картриджа]])*Таб_HP18[стоимось],(Таб_Canon19[CANON]=Таб_Заправка9[[#This Row],[Модель\n картриджа]])*Таб_Canon19[стоимость])","v":400},{"$f":"IF(Таб_Заправка9[[#This Row],[Стоимость\nзаправки]]<>0,Таб_Заправка9[[#This Row],[Стоимость\nзаправки]]-120,\"\")","v":280}]
[null,{"$f":"ROW(B170)-ROW(Таб_Заправка9[[#Headers],[№]])","v":164},{"$f":"IF((D170)=0,NOW(),C170)","v":"2009-04-08T15:59:39.930"},"SCX 4200",{"$f":"SUM((Таб_Samsung16[SAMSUNG]=Таб_Заправка9[[#This Row],[Модель\n картриджа]])*Таб_Samsung16[стоимость],(Таб_Xerox17[XEROX]=Таб_Заправка9[[#This Row],[Модель\n картриджа]])*Таб_Xerox17[стоимость],(Таб_HP18[[HP ]]=Таб_Заправка9[[#This Row],[Модель\n картриджа]])*Таб_HP18[стоимось],(Таб_Canon19[CANON]=Таб_Заправка9[[#This Row],[Модель\n картриджа]])*Таб_Canon19[стоимость])","v":400},{"$f":"IF(Таб_Заправка9[[#This Row],[Стоимость\nзаправки]]<>0,Таб_Заправка9[[#This Row],[Стоимость\nзаправки]]-120,\"\")","v":280}]
[null,{"$f":"ROW(B171)-ROW(Таб_Заправка9[[#Headers],[№]])","v":165},{"$f":"IF((D171)=0,NOW(),C171)","v":"2009-04-08T15:59:39.930"},"SCX 4200",{"$f":"SUM((Таб_Samsung16[SAMSUNG]=Таб_Заправка9[[#This Row],[Модель\n картриджа]])*Таб_Samsung16[стоимость],(Таб_Xerox17[XEROX]=Таб_Заправка9[[#This Row],[Модель\n картриджа]])*Таб_Xerox17[стоимость],(Таб_HP18[[HP ]]=Таб_Заправка9[[#This Row],[Модель\n картриджа]])*Таб_HP18[стоимось],(Таб_Canon19[CANON]=Таб_Заправка9[[#This Row],[Модель\n картриджа]])*Таб_Canon19[стоимость])","v":400},{"$f":"IF(Таб_Заправка9[[#This Row],[Стоимость\nзаправки]]<>0,Таб_Заправка9[[#This Row],[Стоимость\nзаправки]]-120,\"\")","v":280}]
[null,{"$f":"ROW(B172)-ROW(Таб_Заправка9[[#Headers],[№]])","v":166},{"$f":"IF((D172)=0,NOW(),C172)","v":"2009-04-08T15:59:39.930"},"SCX 4200",{"$f":"SUM((Таб_Samsung16[SAMSUNG]=Таб_Заправка9[[#This Row],[Модель\n картриджа]])*Таб_Samsung16[стоимость],(Таб_Xerox17[XEROX]=Таб_Заправка9[[#This Row],[Модель\n картриджа]])*Таб_Xerox17[стоимость],(Таб_HP18[[HP ]]=Таб_Заправка9[[#This Row],[Модель\n картриджа]])*Таб_HP18[стоимось],(Таб_Canon19[CANON]=Таб_Заправка9[[#This Row],[Модель\n картриджа]])*Таб_Canon19[стоимость])","v":400},{"$f":"IF(Таб_Заправка9[[#This Row],[Стоимость\nзаправки]]<>0,Таб_Заправка9[[#This Row],[Стоимость\nзаправки]]-120,\"\")","v":280}]
[null,{"$f":"ROW(B173)-ROW(Таб_Заправка9[[#Headers],[№]])","v":167},{"$f":"IF((D173)=0,NOW(),C173)","v":"2009-04-08T15:59:48.510"},"SCX 4*16",{"$f":"SUM((Таб_Samsung16[SAMSUNG]=Таб_Заправка9[[#This Row],[Модель\n картриджа]])*Таб_Samsung16[стоимость],(Таб_Xerox17[XEROX]=Таб_Заправка9[[#This Row],[Модель\n картриджа]])*Таб_Xerox17[стоимость],(Таб_HP18[[HP ]]=Таб_Заправка9[[#This Row],[Модель\n картриджа]])*Таб_HP18[стоимось],(Таб_Canon19[CANON]=Таб_Заправка9[[#This Row],[Модель\n картриджа]])*Таб_Canon19[стоимость])","v":300},{"$f":"IF(Таб_Заправка9[[#This Row],[Стоимость\nзаправки]]<>0,Таб_Заправка9[[#This Row],[Стоимость\nзаправки]]-120,\"\")","v":180}]
[null,{"$f":"ROW(B174)-ROW(Таб_Заправка9[[#Headers],[№]])","v":168},{"$f":"IF((D174)=0,NOW(),C174)","v":"2009-04-09T10:15:12.180"},"SCX 4200",{"$f":"SUM((Таб_Samsung16[SAMSUNG]=Таб_Заправка9[[#This Row],[Модель\n картриджа]])*Таб_Samsung16[стоимость],(Таб_Xerox17[XEROX]=Таб_Заправка9[[#This Row],[Модель\n картриджа]])*Таб_Xerox17[стоимость],(Таб_HP18[[HP ]]=Таб_Заправка9[[#This Row],[Модель\n картриджа]])*Таб_HP18[стоимось],(Таб_Canon19[CANON]=Таб_Заправка9[[#This Row],[Модель\n картриджа]])*Таб_Canon19[стоимость])","v":400},{"$f":"IF(Таб_Заправка9[[#This Row],[Стоимость\nзаправки]]<>0,Таб_Заправка9[[#This Row],[Стоимость\nзаправки]]-120,\"\")","v":280}]
[null,{"$f":"ROW(B175)-ROW(Таб_Заправка9[[#Headers],[№]])","v":169},{"$f":"IF((D175)=0,NOW(),C175)","v":"2009-04-09T10:15:18.900"},"SCX 4*16",{"$f":"SUM((Таб_Samsung16[SAMSUNG]=Таб_Заправка9[[#This Row],[Модель\n картриджа]])*Таб_Samsung16[стоимость],(Таб_Xerox17[XEROX]=Таб_Заправка9[[#This Row],[Модель\n картриджа]])*Таб_Xerox17[стоимость],(Таб_HP18[[HP ]]=Таб_Заправка9[[#This Row],[Модель\n картриджа]])*Таб_HP18[стоимось],(Таб_Canon19[CANON]=Таб_Заправка9[[#This Row],[Модель\n картриджа]])*Таб_Canon19[стоимость])","v":300},{"$f":"IF(Таб_Заправка9[[#This Row],[Стоимость\nзаправки]]<>0,Таб_Заправка9[[#This Row],[Стоимость\nзаправки]]-120,\"\")","v":180}]
[null,{"$f":"ROW(B176)-ROW(Таб_Заправка9[[#Headers],[№]])","v":170},{"$f":"IF((D176)=0,NOW(),C176)","v":"2009-04-09T10:15:25.450"},"C7115 A     (HP1200)",{"$f":"SUM((Таб_Samsung16[SAMSUNG]=Таб_Заправка9[[#This Row],[Модель\n картриджа]])*Таб_Samsung16[стоимость],(Таб_Xerox17[XEROX]=Таб_Заправка9[[#This Row],[Модель\n картриджа]])*Таб_Xerox17[стоимость],(Таб_HP18[[HP ]]=Таб_Заправка9[[#This Row],[Модель\n картриджа]])*Таб_HP18[стоимось],(Таб_Canon19[CANON]=Таб_Заправка9[[#This Row],[Модель\n картриджа]])*Таб_Canon19[стоимость])","v":250},{"$f":"IF(Таб_Заправка9[[#This Row],[Стоимость\nзаправки]]<>0,Таб_Заправка9[[#This Row],[Стоимость\nзаправки]]-120,\"\")","v":130}]
[null,{"$f":"ROW(B177)-ROW(Таб_Заправка9[[#Headers],[№]])","v":171},{"$f":"IF((D177)=0,NOW(),C177)","v":"2009-04-09T11:41:29.250"},"SCX 4200",{"$f":"SUM((Таб_Samsung16[SAMSUNG]=Таб_Заправка9[[#This Row],[Модель\n картриджа]])*Таб_Samsung16[стоимость],(Таб_Xerox17[XEROX]=Таб_Заправка9[[#This Row],[Модель\n картриджа]])*Таб_Xerox17[стоимость],(Таб_HP18[[HP ]]=Таб_Заправка9[[#This Row],[Модель\n картриджа]])*Таб_HP18[стоимось],(Таб_Canon19[CANON]=Таб_Заправка9[[#This Row],[Модель\n картриджа]])*Таб_Canon19[стоимость])","v":400},{"$f":"IF(Таб_Заправка9[[#This Row],[Стоимость\nзаправки]]<>0,Таб_Заправка9[[#This Row],[Стоимость\nзаправки]]-120,\"\")","v":280}]
[null,{"$f":"ROW(B178)-ROW(Таб_Заправка9[[#Headers],[№]])","v":172},{"$f":"IF((D178)=0,NOW(),C178)","v":"2009-04-09T11:41:38.890"},"SCX 4200",{"$f":"SUM((Таб_Samsung16[SAMSUNG]=Таб_Заправка9[[#This Row],[Модель\n картриджа]])*Таб_Samsung16[стоимость],(Таб_Xerox17[XEROX]=Таб_Заправка9[[#This Row],[Модель\n картриджа]])*Таб_Xerox17[стоимость],(Таб_HP18[[HP ]]=Таб_Заправка9[[#This Row],[Модель\n картриджа]])*Таб_HP18[стоимось],(Таб_Canon19[CANON]=Таб_Заправка9[[#This Row],[Модель\n картриджа]])*Таб_Canon19[стоимость])","v":400},{"$f":"IF(Таб_Заправка9[[#This Row],[Стоимость\nзаправки]]<>0,Таб_Заправка9[[#This Row],[Стоимость\nзаправки]]-120,\"\")","v":280}]
[null,{"$f":"ROW(B179)-ROW(Таб_Заправка9[[#Headers],[№]])","v":173},{"$f":"IF((D179)=0,NOW(),C179)","v":"2009-04-09T11:41:43.920"},"SCX 4200",{"$f":"SUM((Таб_Samsung16[SAMSUNG]=Таб_Заправка9[[#This Row],[Модель\n картриджа]])*Таб_Samsung16[стоимость],(Таб_Xerox17[XEROX]=Таб_Заправка9[[#This Row],[Модель\n картриджа]])*Таб_Xerox17[стоимость],(Таб_HP18[[HP ]]=Таб_Заправка9[[#This Row],[Модель\n картриджа]])*Таб_HP18[стоимось],(Таб_Canon19[CANON]=Таб_Заправка9[[#This Row],[Модель\n картриджа]])*Таб_Canon19[стоимость])","v":400},{"$f":"IF(Таб_Заправка9[[#This Row],[Стоимость\nзаправки]]<>0,Таб_Заправка9[[#This Row],[Стоимость\nзаправки]]-120,\"\")","v":280}]
[null,{"$f":"ROW(B180)-ROW(Таб_Заправка9[[#Headers],[№]])","v":174},{"$f":"IF((D180)=0,NOW(),C180)","v":"2009-04-09T11:41:43.920"},"SCX 4200",{"$f":"SUM((Таб_Samsung16[SAMSUNG]=Таб_Заправка9[[#This Row],[Модель\n картриджа]])*Таб_Samsung16[стоимость],(Таб_Xerox17[XEROX]=Таб_Заправка9[[#This Row],[Модель\n картриджа]])*Таб_Xerox17[стоимость],(Таб_HP18[[HP ]]=Таб_Заправка9[[#This Row],[Модель\n картриджа]])*Таб_HP18[стоимось],(Таб_Canon19[CANON]=Таб_Заправка9[[#This Row],[Модель\n картриджа]])*Таб_Canon19[стоимость])","v":400},{"$f":"IF(Таб_Заправка9[[#This Row],[Стоимость\nзаправки]]<>0,Таб_Заправка9[[#This Row],[Стоимость\nзаправки]]-120,\"\")","v":280}]
[null,{"$f":"ROW(B181)-ROW(Таб_Заправка9[[#Headers],[№]])","v":175},{"$f":"IF((D181)=0,NOW(),C181)","v":"2009-04-09T11:41:43.920"},"SCX 4200",{"$f":"SUM((Таб_Samsung16[SAMSUNG]=Таб_Заправка9[[#This Row],[Модель\n картриджа]])*Таб_Samsung16[стоимость],(Таб_Xerox17[XEROX]=Таб_Заправка9[[#This Row],[Модель\n картриджа]])*Таб_Xerox17[стоимость],(Таб_HP18[[HP ]]=Таб_Заправка9[[#This Row],[Модель\n картриджа]])*Таб_HP18[стоимось],(Таб_Canon19[CANON]=Таб_Заправка9[[#This Row],[Модель\n картриджа]])*Таб_Canon19[стоимость])","v":400},{"$f":"IF(Таб_Заправка9[[#This Row],[Стоимость\nзаправки]]<>0,Таб_Заправка9[[#This Row],[Стоимость\nзаправки]]-120,\"\")","v":280}]
[null,{"$f":"ROW(B182)-ROW(Таб_Заправка9[[#Headers],[№]])","v":176},{"$f":"IF((D182)=0,NOW(),C182)","v":"2009-04-14T09:42:05.390"},"PE -16",{"$f":"SUM((Таб_Samsung16[SAMSUNG]=Таб_Заправка9[[#This Row],[Модель\n картриджа]])*Таб_Samsung16[стоимость],(Таб_Xerox17[XEROX]=Таб_Заправка9[[#This Row],[Модель\n картриджа]])*Таб_Xerox17[стоимость],(Таб_HP18[[HP ]]=Таб_Заправка9[[#This Row],[Модель\n картриджа]])*Таб_HP18[стоимось],(Таб_Canon19[CANON]=Таб_Заправка9[[#This Row],[Модель\n картриджа]])*Таб_Canon19[стоимость])","v":300},{"$f":"IF(Таб_Заправка9[[#This Row],[Стоимость\nзаправки]]<>0,Таб_Заправка9[[#This Row],[Стоимость\nзаправки]]-120,\"\")","v":180}]
[null,{"$f":"ROW(B183)-ROW(Таб_Заправка9[[#Headers],[№]])","v":177},{"$f":"IF((D183)=0,NOW(),C183)","v":"2009-04-14T09:42:20.920"},"WC- 3119",{"$f":"SUM((Таб_Samsung16[SAMSUNG]=Таб_Заправка9[[#This Row],[Модель\n картриджа]])*Таб_Samsung16[стоимость],(Таб_Xerox17[XEROX]=Таб_Заправка9[[#This Row],[Модель\n картриджа]])*Таб_Xerox17[стоимость],(Таб_HP18[[HP ]]=Таб_Заправка9[[#This Row],[Модель\n картриджа]])*Таб_HP18[стоимось],(Таб_Canon19[CANON]=Таб_Заправка9[[#This Row],[Модель\n картриджа]])*Таб_Canon19[стоимость])","v":400},{"$f":"IF(Таб_Заправка9[[#This Row],[Стоимость\nзаправки]]<>0,Таб_Заправка9[[#This Row],[Стоимость\nзаправки]]-120,\"\")","v":280}]
[null,{"$f":"ROW(B184)-ROW(Таб_Заправка9[[#Headers],[№]])","v":178},{"$f":"IF((D184)=0,NOW(),C184)","v":"2009-04-14T09:42:35.040"},"MFP-3200",{"$f":"SUM((Таб_Samsung16[SAMSUNG]=Таб_Заправка9[[#This Row],[Модель\n картриджа]])*Таб_Samsung16[стоимость],(Таб_Xerox17[XEROX]=Таб_Заправка9[[#This Row],[Модель\n картриджа]])*Таб_Xerox17[стоимость],(Таб_HP18[[HP ]]=Таб_Заправка9[[#This Row],[Модель\n картриджа]])*Таб_HP18[стоимось],(Таб_Canon19[CANON]=Таб_Заправка9[[#This Row],[Модель\n картриджа]])*Таб_Canon19[стоимость])","v":600},{"$f":"IF(Таб_Заправка9[[#This Row],[Стоимость\nзаправки]]<>0,Таб_Заправка9[[#This Row],[Стоимость\nзаправки]]-120,\"\")","v":480}]
[null,{"$f":"ROW(B185)-ROW(Таб_Заправка9[[#Headers],[№]])","v":179},{"$f":"IF((D185)=0,NOW(),C185)","v":"2009-04-14T09:42:51.810"},"MFP-3200",{"$f":"SUM((Таб_Samsung16[SAMSUNG]=Таб_Заправка9[[#This Row],[Модель\n картриджа]])*Таб_Samsung16[стоимость],(Таб_Xerox17[XEROX]=Таб_Заправка9[[#This Row],[Модель\n картриджа]])*Таб_Xerox17[стоимость],(Таб_HP18[[HP ]]=Таб_Заправка9[[#This Row],[Модель\n картриджа]])*Таб_HP18[стоимось],(Таб_Canon19[CANON]=Таб_Заправка9[[#This Row],[Модель\n картриджа]])*Таб_Canon19[стоимость])","v":600},{"$f":"IF(Таб_Заправка9[[#This Row],[Стоимость\nзаправки]]<>0,Таб_Заправка9[[#This Row],[Стоимость\nзаправки]]-120,\"\")","v":480}]
[null,{"$f":"ROW(B186)-ROW(Таб_Заправка9[[#Headers],[№]])","v":180},{"$f":"IF((D186)=0,NOW(),C186)","v":"2009-04-14T09:42:56.870"},"MFP-3200",{"$f":"SUM((Таб_Samsung16[SAMSUNG]=Таб_Заправка9[[#This Row],[Модель\n картриджа]])*Таб_Samsung16[стоимость],(Таб_Xerox17[XEROX]=Таб_Заправка9[[#This Row],[Модель\n картриджа]])*Таб_Xerox17[стоимость],(Таб_HP18[[HP ]]=Таб_Заправка9[[#This Row],[Модель\n картриджа]])*Таб_HP18[стоимось],(Таб_Canon19[CANON]=Таб_Заправка9[[#This Row],[Модель\n картриджа]])*Таб_Canon19[стоимость])","v":600},{"$f":"IF(Таб_Заправка9[[#This Row],[Стоимость\nзаправки]]<>0,Таб_Заправка9[[#This Row],[Стоимость\nзаправки]]-120,\"\")","v":480}]
[null,{"$f":"ROW(B187)-ROW(Таб_Заправка9[[#Headers],[№]])","v":181},{"$f":"IF((D187)=0,NOW(),C187)","v":"2009-04-14T09:42:56.870"},"MFP-3200",{"$f":"SUM((Таб_Samsung16[SAMSUNG]=Таб_Заправка9[[#This Row],[Модель\n картриджа]])*Таб_Samsung16[стоимость],(Таб_Xerox17[XEROX]=Таб_Заправка9[[#This Row],[Модель\n картриджа]])*Таб_Xerox17[стоимость],(Таб_HP18[[HP ]]=Таб_Заправка9[[#This Row],[Модель\n картриджа]])*Таб_HP18[стоимось],(Таб_Canon19[CANON]=Таб_Заправка9[[#This Row],[Модель\n картриджа]])*Таб_Canon19[стоимость])","v":600},{"$f":"IF(Таб_Заправка9[[#This Row],[Стоимость\nзаправки]]<>0,Таб_Заправка9[[#This Row],[Стоимость\nзаправки]]-120,\"\")","v":480}]
[null,{"$f":"ROW(B188)-ROW(Таб_Заправка9[[#Headers],[№]])","v":182},{"$f":"IF((D188)=0,NOW(),C188)","v":"2009-04-14T09:42:56.870"},"MFP-3200",{"$f":"SUM((Таб_Samsung16[SAMSUNG]=Таб_Заправка9[[#This Row],[Модель\n картриджа]])*Таб_Samsung16[стоимость],(Таб_Xerox17[XEROX]=Таб_Заправка9[[#This Row],[Модель\n картриджа]])*Таб_Xerox17[стоимость],(Таб_HP18[[HP ]]=Таб_Заправка9[[#This Row],[Модель\n картриджа]])*Таб_HP18[стоимось],(Таб_Canon19[CANON]=Таб_Заправка9[[#This Row],[Модель\n картриджа]])*Таб_Canon19[стоимость])","v":600},{"$f":"IF(Таб_Заправка9[[#This Row],[Стоимость\nзаправки]]<>0,Таб_Заправка9[[#This Row],[Стоимость\nзаправки]]-120,\"\")","v":480}]
[null,{"$f":"ROW(B189)-ROW(Таб_Заправка9[[#Headers],[№]])","v":183},{"$f":"IF((D189)=0,NOW(),C189)","v":"2009-04-14T09:42:56.870"},"MFP-3200",{"$f":"SUM((Таб_Samsung16[SAMSUNG]=Таб_Заправка9[[#This Row],[Модель\n картриджа]])*Таб_Samsung16[стоимость],(Таб_Xerox17[XEROX]=Таб_Заправка9[[#This Row],[Модель\n картриджа]])*Таб_Xerox17[стоимость],(Таб_HP18[[HP ]]=Таб_Заправка9[[#This Row],[Модель\n картриджа]])*Таб_HP18[стоимось],(Таб_Canon19[CANON]=Таб_Заправка9[[#This Row],[Модель\n картриджа]])*Таб_Canon19[стоимость])","v":600},{"$f":"IF(Таб_Заправка9[[#This Row],[Стоимость\nзаправки]]<>0,Таб_Заправка9[[#This Row],[Стоимость\nзаправки]]-120,\"\")","v":480}]
[null,{"$f":"ROW(B190)-ROW(Таб_Заправка9[[#Headers],[№]])","v":184},{"$f":"IF((D190)=0,NOW(),C190)","v":"2009-04-14T09:42:56.870"},"MFP-3200",{"$f":"SUM((Таб_Samsung16[SAMSUNG]=Таб_Заправка9[[#This Row],[Модель\n картриджа]])*Таб_Samsung16[стоимость],(Таб_Xerox17[XEROX]=Таб_Заправка9[[#This Row],[Модель\n картриджа]])*Таб_Xerox17[стоимость],(Таб_HP18[[HP ]]=Таб_Заправка9[[#This Row],[Модель\n картриджа]])*Таб_HP18[стоимось],(Таб_Canon19[CANON]=Таб_Заправка9[[#This Row],[Модель\n картриджа]])*Таб_Canon19[стоимость])","v":600},{"$f":"IF(Таб_Заправка9[[#This Row],[Стоимость\nзаправки]]<>0,Таб_Заправка9[[#This Row],[Стоимость\nзаправки]]-120,\"\")","v":480}]
[null,{"$f":"ROW(B191)-ROW(Таб_Заправка9[[#Headers],[№]])","v":185},{"$f":"IF((D191)=0,NOW(),C191)","v":"2009-04-14T09:43:25.590"},"Q7553A   (HP P2015)",{"$f":"SUM((Таб_Samsung16[SAMSUNG]=Таб_Заправка9[[#This Row],[Модель\n картриджа]])*Таб_Samsung16[стоимость],(Таб_Xerox17[XEROX]=Таб_Заправка9[[#This Row],[Модель\n картриджа]])*Таб_Xerox17[стоимость],(Таб_HP18[[HP ]]=Таб_Заправка9[[#This Row],[Модель\n картриджа]])*Таб_HP18[стоимось],(Таб_Canon19[CANON]=Таб_Заправка9[[#This Row],[Модель\n картриджа]])*Таб_Canon19[стоимость])","v":300},{"$f":"IF(Таб_Заправка9[[#This Row],[Стоимость\nзаправки]]<>0,Таб_Заправка9[[#This Row],[Стоимость\nзаправки]]-120,\"\")","v":180}]
[null,{"$f":"ROW(B192)-ROW(Таб_Заправка9[[#Headers],[№]])","v":186},{"$f":"IF((D192)=0,NOW(),C192)","v":"2009-04-14T09:43:47.590"},"Q2612A     (HP1010)",{"$f":"SUM((Таб_Samsung16[SAMSUNG]=Таб_Заправка9[[#This Row],[Модель\n картриджа]])*Таб_Samsung16[стоимость],(Таб_Xerox17[XEROX]=Таб_Заправка9[[#This Row],[Модель\n картриджа]])*Таб_Xerox17[стоимость],(Таб_HP18[[HP ]]=Таб_Заправка9[[#This Row],[Модель\n картриджа]])*Таб_HP18[стоимось],(Таб_Canon19[CANON]=Таб_Заправка9[[#This Row],[Модель\n картриджа]])*Таб_Canon19[стоимость])","v":250},{"$f":"IF(Таб_Заправка9[[#This Row],[Стоимость\nзаправки]]<>0,Таб_Заправка9[[#This Row],[Стоимость\nзаправки]]-120,\"\")","v":130}]
[null,{"$f":"ROW(B193)-ROW(Таб_Заправка9[[#Headers],[№]])","v":187},{"$f":"IF((D193)=0,NOW(),C193)","v":"2009-04-14T09:44:02.120"},"EP-27   (LBP3200)",{"$f":"SUM((Таб_Samsung16[SAMSUNG]=Таб_Заправка9[[#This Row],[Модель\n картриджа]])*Таб_Samsung16[стоимость],(Таб_Xerox17[XEROX]=Таб_Заправка9[[#This Row],[Модель\n картриджа]])*Таб_Xerox17[стоимость],(Таб_HP18[[HP ]]=Таб_Заправка9[[#This Row],[Модель\n картриджа]])*Таб_HP18[стоимось],(Таб_Canon19[CANON]=Таб_Заправка9[[#This Row],[Модель\n картриджа]])*Таб_Canon19[стоимость])","v":250},{"$f":"IF(Таб_Заправка9[[#This Row],[Стоимость\nзаправки]]<>0,Таб_Заправка9[[#This Row],[Стоимость\nзаправки]]-120,\"\")","v":130}]
[null,{"$f":"ROW(B194)-ROW(Таб_Заправка9[[#Headers],[№]])","v":188},{"$f":"IF((D194)=0,NOW(),C194)","v":"2009-04-16T15:56:48.700"},"С-703   (LBP2900)",{"$f":"SUM((Таб_Samsung16[SAMSUNG]=Таб_Заправка9[[#This Row],[Модель\n картриджа]])*Таб_Samsung16[стоимость],(Таб_Xerox17[XEROX]=Таб_Заправка9[[#This Row],[Модель\n картриджа]])*Таб_Xerox17[стоимость],(Таб_HP18[[HP ]]=Таб_Заправка9[[#This Row],[Модель\n картриджа]])*Таб_HP18[стоимось],(Таб_Canon19[CANON]=Таб_Заправка9[[#This Row],[Модель\n картриджа]])*Таб_Canon19[стоимость])","v":250},{"$f":"IF(Таб_Заправка9[[#This Row],[Стоимость\nзаправки]]<>0,Таб_Заправка9[[#This Row],[Стоимость\nзаправки]]-120,\"\")","v":130}]
[null,{"$f":"ROW(B195)-ROW(Таб_Заправка9[[#Headers],[№]])","v":189},{"$f":"IF((D195)=0,NOW(),C195)","v":"2009-04-16T15:57:04.310"},"ML 1610/2010",{"$f":"SUM((Таб_Samsung16[SAMSUNG]=Таб_Заправка9[[#This Row],[Модель\n картриджа]])*Таб_Samsung16[стоимость],(Таб_Xerox17[XEROX]=Таб_Заправка9[[#This Row],[Модель\n картриджа]])*Таб_Xerox17[стоимость],(Таб_HP18[[HP ]]=Таб_Заправка9[[#This Row],[Модель\n картриджа]])*Таб_HP18[стоимось],(Таб_Canon19[CANON]=Таб_Заправка9[[#This Row],[Модель\n картриджа]])*Таб_Canon19[стоимость])","v":300},{"$f":"IF(Таб_Заправка9[[#This Row],[Стоимость\nзаправки]]<>0,Таб_Заправка9[[#This Row],[Стоимость\nзаправки]]-120,\"\")","v":180}]
[null,{"$f":"ROW(B196)-ROW(Таб_Заправка9[[#Headers],[№]])","v":190},{"$f":"IF((D196)=0,NOW(),C196)","v":"2009-04-16T15:57:11.760"},"C7115 A     (HP1200)",{"$f":"SUM((Таб_Samsung16[SAMSUNG]=Таб_Заправка9[[#This Row],[Модель\n картриджа]])*Таб_Samsung16[стоимость],(Таб_Xerox17[XEROX]=Таб_Заправка9[[#This Row],[Модель\n картриджа]])*Таб_Xerox17[стоимость],(Таб_HP18[[HP ]]=Таб_Заправка9[[#This Row],[Модель\n картриджа]])*Таб_HP18[стоимось],(Таб_Canon19[CANON]=Таб_Заправка9[[#This Row],[Модель\n картриджа]])*Таб_Canon19[стоимость])","v":250},{"$f":"IF(Таб_Заправка9[[#This Row],[Стоимость\nзаправки]]<>0,Таб_Заправка9[[#This Row],[Стоимость\nзаправки]]-120,\"\")","v":130}]
[null,{"$f":"ROW(B197)-ROW(Таб_Заправка9[[#Headers],[№]])","v":191},{"$f":"IF((D197)=0,NOW(),C197)","v":"2009-04-27T11:03:05.030"},"ML 1210",{"$f":"SUM((Таб_Samsung16[SAMSUNG]=Таб_Заправка9[[#This Row],[Модель\n картриджа]])*Таб_Samsung16[стоимость],(Таб_Xerox17[XEROX]=Таб_Заправка9[[#This Row],[Модель\n картриджа]])*Таб_Xerox17[стоимость],(Таб_HP18[[HP ]]=Таб_Заправка9[[#This Row],[Модель\n картриджа]])*Таб_HP18[стоимось],(Таб_Canon19[CANON]=Таб_Заправка9[[#This Row],[Модель\n картриджа]])*Таб_Canon19[стоимость])","v":300},{"$f":"IF(Таб_Заправка9[[#This Row],[Стоимость\nзаправки]]<>0,Таб_Заправка9[[#This Row],[Стоимость\nзаправки]]-120,\"\")","v":180}]
[null,{"$f":"ROW(B198)-ROW(Таб_Заправка9[[#Headers],[№]])","v":192},{"$f":"IF((D198)=0,NOW(),C198)","v":"2009-04-27T11:03:14.140"},"Q2612A     (HP1010)",{"$f":"SUM((Таб_Samsung16[SAMSUNG]=Таб_Заправка9[[#This Row],[Модель\n картриджа]])*Таб_Samsung16[стоимость],(Таб_Xerox17[XEROX]=Таб_Заправка9[[#This Row],[Модель\n картриджа]])*Таб_Xerox17[стоимость],(Таб_HP18[[HP ]]=Таб_Заправка9[[#This Row],[Модель\n картриджа]])*Таб_HP18[стоимось],(Таб_Canon19[CANON]=Таб_Заправка9[[#This Row],[Модель\n картриджа]])*Таб_Canon19[стоимость])","v":250},{"$f":"IF(Таб_Заправка9[[#This Row],[Стоимость\nзаправки]]<>0,Таб_Заправка9[[#This Row],[Стоимость\nзаправки]]-120,\"\")","v":130}]
[null,{"$f":"ROW(B199)-ROW(Таб_Заправка9[[#Headers],[№]])","v":193},{"$f":"IF((D199)=0,NOW(),C199)","v":"2009-04-27T11:03:27.010"},"CB436A   (HP P1505n)",{"$f":"SUM((Таб_Samsung16[SAMSUNG]=Таб_Заправка9[[#This Row],[Модель\n картриджа]])*Таб_Samsung16[стоимость],(Таб_Xerox17[XEROX]=Таб_Заправка9[[#This Row],[Модель\n картриджа]])*Таб_Xerox17[стоимость],(Таб_HP18[[HP ]]=Таб_Заправка9[[#This Row],[Модель\n картриджа]])*Таб_HP18[стоимось],(Таб_Canon19[CANON]=Таб_Заправка9[[#This Row],[Модель\n картриджа]])*Таб_Canon19[стоимость])","v":250},{"$f":"IF(Таб_Заправка9[[#This Row],[Стоимость\nзаправки]]<>0,Таб_Заправка9[[#This Row],[Стоимость\nзаправки]]-120,\"\")","v":130}]
[null,{"$f":"ROW(B200)-ROW(Таб_Заправка9[[#Headers],[№]])","v":194},{"$f":"IF((D200)=0,NOW(),C200)","v":"2009-04-27T11:41:16.870"},"MFP-3200",{"$f":"SUM((Таб_Samsung16[SAMSUNG]=Таб_Заправка9[[#This Row],[Модель\n картриджа]])*Таб_Samsung16[стоимость],(Таб_Xerox17[XEROX]=Таб_Заправка9[[#This Row],[Модель\n картриджа]])*Таб_Xerox17[стоимость],(Таб_HP18[[HP ]]=Таб_Заправка9[[#This Row],[Модель\n картриджа]])*Таб_HP18[стоимось],(Таб_Canon19[CANON]=Таб_Заправка9[[#This Row],[Модель\n картриджа]])*Таб_Canon19[стоимость])","v":600},{"$f":"IF(Таб_Заправка9[[#This Row],[Стоимость\nзаправки]]<>0,Таб_Заправка9[[#This Row],[Стоимость\nзаправки]]-120,\"\")","v":480}]
[null,{"$f":"ROW(B201)-ROW(Таб_Заправка9[[#Headers],[№]])","v":195},{"$f":"IF((D201)=0,NOW(),C201)","v":"2009-04-27T11:41:31.900"},"MFP-3200",{"$f":"SUM((Таб_Samsung16[SAMSUNG]=Таб_Заправка9[[#This Row],[Модель\n картриджа]])*Таб_Samsung16[стоимость],(Таб_Xerox17[XEROX]=Таб_Заправка9[[#This Row],[Модель\n картриджа]])*Таб_Xerox17[стоимость],(Таб_HP18[[HP ]]=Таб_Заправка9[[#This Row],[Модель\n картриджа]])*Таб_HP18[стоимось],(Таб_Canon19[CANON]=Таб_Заправка9[[#This Row],[Модель\n картриджа]])*Таб_Canon19[стоимость])","v":600},{"$f":"IF(Таб_Заправка9[[#This Row],[Стоимость\nзаправки]]<>0,Таб_Заправка9[[#This Row],[Стоимость\nзаправки]]-120,\"\")","v":480}]
[null,{"$f":"ROW(B202)-ROW(Таб_Заправка9[[#Headers],[№]])","v":196},{"$f":"IF((D202)=0,NOW(),C202)","v":"2009-04-28T10:54:20.120"},"Phaser 3116",{"$f":"SUM((Таб_Samsung16[SAMSUNG]=Таб_Заправка9[[#This Row],[Модель\n картриджа]])*Таб_Samsung16[стоимость],(Таб_Xerox17[XEROX]=Таб_Заправка9[[#This Row],[Модель\n картриджа]])*Таб_Xerox17[стоимость],(Таб_HP18[[HP ]]=Таб_Заправка9[[#This Row],[Модель\n картриджа]])*Таб_HP18[стоимось],(Таб_Canon19[CANON]=Таб_Заправка9[[#This Row],[Модель\n картриджа]])*Таб_Canon19[стоимость])","v":300},{"$f":"IF(Таб_Заправка9[[#This Row],[Стоимость\nзаправки]]<>0,Таб_Заправка9[[#This Row],[Стоимость\nзаправки]]-120,\"\")","v":180}]
[null,{"$f":"ROW(B203)-ROW(Таб_Заправка9[[#Headers],[№]])","v":197},{"$f":"IF((D203)=0,NOW(),C203)","v":"2009-04-28T10:54:26.840"},"Phaser 3117/22",{"$f":"SUM((Таб_Samsung16[SAMSUNG]=Таб_Заправка9[[#This Row],[Модель\n картриджа]])*Таб_Samsung16[стоимость],(Таб_Xerox17[XEROX]=Таб_Заправка9[[#This Row],[Модель\n картриджа]])*Таб_Xerox17[стоимость],(Таб_HP18[[HP ]]=Таб_Заправка9[[#This Row],[Модель\n картриджа]])*Таб_HP18[стоимось],(Таб_Canon19[CANON]=Таб_Заправка9[[#This Row],[Модель\n картриджа]])*Таб_Canon19[стоимость])","v":300},{"$f":"IF(Таб_Заправка9[[#This Row],[Стоимость\nзаправки]]<>0,Таб_Заправка9[[#This Row],[Стоимость\nзаправки]]-120,\"\")","v":180}]
[null,{"$f":"ROW(B204)-ROW(Таб_Заправка9[[#Headers],[№]])","v":198},{"$f":"IF((D204)=0,NOW(),C204)","v":"2009-04-28T10:54:32.140"},"Phaser 3117/22",{"$f":"SUM((Таб_Samsung16[SAMSUNG]=Таб_Заправка9[[#This Row],[Модель\n картриджа]])*Таб_Samsung16[стоимость],(Таб_Xerox17[XEROX]=Таб_Заправка9[[#This Row],[Модель\n картриджа]])*Таб_Xerox17[стоимость],(Таб_HP18[[HP ]]=Таб_Заправка9[[#This Row],[Модель\n картриджа]])*Таб_HP18[стоимось],(Таб_Canon19[CANON]=Таб_Заправка9[[#This Row],[Модель\n картриджа]])*Таб_Canon19[стоимость])","v":300},{"$f":"IF(Таб_Заправка9[[#This Row],[Стоимость\nзаправки]]<>0,Таб_Заправка9[[#This Row],[Стоимость\nзаправки]]-120,\"\")","v":180}]
[null,{"$f":"ROW(B205)-ROW(Таб_Заправка9[[#Headers],[№]])","v":199},{"$f":"IF((D205)=0,NOW(),C205)","v":"2009-04-28T13:56:21.070"},"SCX 4100",{"$f":"SUM((Таб_Samsung16[SAMSUNG]=Таб_Заправка9[[#This Row],[Модель\n картриджа]])*Таб_Samsung16[стоимость],(Таб_Xerox17[XEROX]=Таб_Заправка9[[#This Row],[Модель\n картриджа]])*Таб_Xerox17[стоимость],(Таб_HP18[[HP ]]=Таб_Заправка9[[#This Row],[Модель\n картриджа]])*Таб_HP18[стоимось],(Таб_Canon19[CANON]=Таб_Заправка9[[#This Row],[Модель\n картриджа]])*Таб_Canon19[стоимость])","v":300},{"$f":"IF(Таб_Заправка9[[#This Row],[Стоимость\nзаправки]]<>0,Таб_Заправка9[[#This Row],[Стоимость\nзаправки]]-120,\"\")","v":180}]
[null,{"$f":"ROW(B206)-ROW(Таб_Заправка9[[#Headers],[№]])","v":200},{"$f":"IF((D206)=0,NOW(),C206)","v":"2009-04-29T10:24:00.920"},"Q2612A     (HP1010)",{"$f":"SUM((Таб_Samsung16[SAMSUNG]=Таб_Заправка9[[#This Row],[Модель\n картриджа]])*Таб_Samsung16[стоимость],(Таб_Xerox17[XEROX]=Таб_Заправка9[[#This Row],[Модель\n картриджа]])*Таб_Xerox17[стоимость],(Таб_HP18[[HP ]]=Таб_Заправка9[[#This Row],[Модель\n картриджа]])*Таб_HP18[стоимось],(Таб_Canon19[CANON]=Таб_Заправка9[[#This Row],[Модель\n картриджа]])*Таб_Canon19[стоимость])","v":250},{"$f":"IF(Таб_Заправка9[[#This Row],[Стоимость\nзаправки]]<>0,Таб_Заправка9[[#This Row],[Стоимость\nзаправки]]-120,\"\")","v":130}]
[null,{"$f":"ROW(B207)-ROW(Таб_Заправка9[[#Headers],[№]])","v":201},{"$f":"IF((D207)=0,NOW(),C207)","v":"2009-04-29T10:24:09.290"},"PE220",{"$f":"SUM((Таб_Samsung16[SAMSUNG]=Таб_Заправка9[[#This Row],[Модель\n картриджа]])*Таб_Samsung16[стоимость],(Таб_Xerox17[XEROX]=Таб_Заправка9[[#This Row],[Модель\n картриджа]])*Таб_Xerox17[стоимость],(Таб_HP18[[HP ]]=Таб_Заправка9[[#This Row],[Модель\n картриджа]])*Таб_HP18[стоимось],(Таб_Canon19[CANON]=Таб_Заправка9[[#This Row],[Модель\n картриджа]])*Таб_Canon19[стоимость])","v":400},{"$f":"IF(Таб_Заправка9[[#This Row],[Стоимость\nзаправки]]<>0,Таб_Заправка9[[#This Row],[Стоимость\nзаправки]]-120,\"\")","v":280}]
[null,{"$f":"ROW(B208)-ROW(Таб_Заправка9[[#Headers],[№]])","v":202},{"$f":"IF((D208)=0,NOW(),C208)","v":"2009-04-29T10:24:14.730"},"PE220",{"$f":"SUM((Таб_Samsung16[SAMSUNG]=Таб_Заправка9[[#This Row],[Модель\n картриджа]])*Таб_Samsung16[стоимость],(Таб_Xerox17[XEROX]=Таб_Заправка9[[#This Row],[Модель\n картриджа]])*Таб_Xerox17[стоимость],(Таб_HP18[[HP ]]=Таб_Заправка9[[#This Row],[Модель\n картриджа]])*Таб_HP18[стоимось],(Таб_Canon19[CANON]=Таб_Заправка9[[#This Row],[Модель\n картриджа]])*Таб_Canon19[стоимость])","v":400},{"$f":"IF(Таб_Заправка9[[#This Row],[Стоимость\nзаправки]]<>0,Таб_Заправка9[[#This Row],[Стоимость\nзаправки]]-120,\"\")","v":280}]
[null,{"$f":"ROW(B209)-ROW(Таб_Заправка9[[#Headers],[№]])","v":203},{"$f":"IF((D209)=0,NOW(),C209)","v":"2009-05-04T12:34:51.850"},"EP-27   (LBP3200)",{"$f":"SUM((Таб_Samsung16[SAMSUNG]=Таб_Заправка9[[#This Row],[Модель\n картриджа]])*Таб_Samsung16[стоимость],(Таб_Xerox17[XEROX]=Таб_Заправка9[[#This Row],[Модель\n картриджа]])*Таб_Xerox17[стоимость],(Таб_HP18[[HP ]]=Таб_Заправка9[[#This Row],[Модель\n картриджа]])*Таб_HP18[стоимось],(Таб_Canon19[CANON]=Таб_Заправка9[[#This Row],[Модель\n картриджа]])*Таб_Canon19[стоимость])","v":250},{"$f":"IF(Таб_Заправка9[[#This Row],[Стоимость\nзаправки]]<>0,Таб_Заправка9[[#This Row],[Стоимость\nзаправки]]-120,\"\")","v":130}]
[null,{"$f":"ROW(B210)-ROW(Таб_Заправка9[[#Headers],[№]])","v":204},{"$f":"IF((D210)=0,NOW(),C210)","v":"2009-05-04T12:34:58.190"},"Lexmark 230",{"$f":"SUM((Таб_Samsung16[SAMSUNG]=Таб_Заправка9[[#This Row],[Модель\n картриджа]])*Таб_Samsung16[стоимость],(Таб_Xerox17[XEROX]=Таб_Заправка9[[#This Row],[Модель\n картриджа]])*Таб_Xerox17[стоимость],(Таб_HP18[[HP ]]=Таб_Заправка9[[#This Row],[Модель\n картриджа]])*Таб_HP18[стоимось],(Таб_Canon19[CANON]=Таб_Заправка9[[#This Row],[Модель\n картриджа]])*Таб_Canon19[стоимость])","v":400},{"$f":"IF(Таб_Заправка9[[#This Row],[Стоимость\nзаправки]]<>0,Таб_Заправка9[[#This Row],[Стоимость\nзаправки]]-120,\"\")","v":280}]
[null,{"$f":"ROW(B211)-ROW(Таб_Заправка9[[#Headers],[№]])","v":205},{"$f":"IF((D211)=0,NOW(),C211)","v":"2009-05-05T09:58:35.350"},"FX-10   (L100/ L120)",{"$f":"SUM((Таб_Samsung16[SAMSUNG]=Таб_Заправка9[[#This Row],[Модель\n картриджа]])*Таб_Samsung16[стоимость],(Таб_Xerox17[XEROX]=Таб_Заправка9[[#This Row],[Модель\n картриджа]])*Таб_Xerox17[стоимость],(Таб_HP18[[HP ]]=Таб_Заправка9[[#This Row],[Модель\n картриджа]])*Таб_HP18[стоимось],(Таб_Canon19[CANON]=Таб_Заправка9[[#This Row],[Модель\n картриджа]])*Таб_Canon19[стоимость])","v":250},{"$f":"IF(Таб_Заправка9[[#This Row],[Стоимость\nзаправки]]<>0,Таб_Заправка9[[#This Row],[Стоимость\nзаправки]]-120,\"\")","v":130}]
[null,{"$f":"ROW(B212)-ROW(Таб_Заправка9[[#Headers],[№]])","v":206},{"$f":"IF((D212)=0,NOW(),C212)","v":"2009-05-07T14:37:53.390"},"Q2612A     (HP1010)",{"$f":"SUM((Таб_Samsung16[SAMSUNG]=Таб_Заправка9[[#This Row],[Модель\n картриджа]])*Таб_Samsung16[стоимость],(Таб_Xerox17[XEROX]=Таб_Заправка9[[#This Row],[Модель\n картриджа]])*Таб_Xerox17[стоимость],(Таб_HP18[[HP ]]=Таб_Заправка9[[#This Row],[Модель\n картриджа]])*Таб_HP18[стоимось],(Таб_Canon19[CANON]=Таб_Заправка9[[#This Row],[Модель\n картриджа]])*Таб_Canon19[стоимость])","v":250},{"$f":"IF(Таб_Заправка9[[#This Row],[Стоимость\nзаправки]]<>0,Таб_Заправка9[[#This Row],[Стоимость\nзаправки]]-120,\"\")","v":130}]
[null,{"$f":"ROW(B213)-ROW(Таб_Заправка9[[#Headers],[№]])","v":207},{"$f":"IF((D213)=0,NOW(),C213)","v":"2009-05-08T12:06:17.260"},"PE 114",{"$f":"SUM((Таб_Samsung16[SAMSUNG]=Таб_Заправка9[[#This Row],[Модель\n картриджа]])*Таб_Samsung16[стоимость],(Таб_Xerox17[XEROX]=Таб_Заправка9[[#This Row],[Модель\n картриджа]])*Таб_Xerox17[стоимость],(Таб_HP18[[HP ]]=Таб_Заправка9[[#This Row],[Модель\n картриджа]])*Таб_HP18[стоимось],(Таб_Canon19[CANON]=Таб_Заправка9[[#This Row],[Модель\n картриджа]])*Таб_Canon19[стоимость])","v":300},{"$f":"IF(Таб_Заправка9[[#This Row],[Стоимость\nзаправки]]<>0,Таб_Заправка9[[#This Row],[Стоимость\nзаправки]]-120,\"\")","v":180}]
[null,{"$f":"ROW(B214)-ROW(Таб_Заправка9[[#Headers],[№]])","v":208},{"$f":"IF((D214)=0,NOW(),C214)","v":"2009-05-08T12:06:24.140"},"Phaser 3120",{"$f":"SUM((Таб_Samsung16[SAMSUNG]=Таб_Заправка9[[#This Row],[Модель\n картриджа]])*Таб_Samsung16[стоимость],(Таб_Xerox17[XEROX]=Таб_Заправка9[[#This Row],[Модель\n картриджа]])*Таб_Xerox17[стоимость],(Таб_HP18[[HP ]]=Таб_Заправка9[[#This Row],[Модель\n картриджа]])*Таб_HP18[стоимось],(Таб_Canon19[CANON]=Таб_Заправка9[[#This Row],[Модель\n картриджа]])*Таб_Canon19[стоимость])","v":300},{"$f":"IF(Таб_Заправка9[[#This Row],[Стоимость\nзаправки]]<>0,Таб_Заправка9[[#This Row],[Стоимость\nзаправки]]-120,\"\")","v":180}]
[null,{"$f":"ROW(B215)-ROW(Таб_Заправка9[[#Headers],[№]])","v":209},{"$f":"IF((D215)=0,NOW(),C215)","v":"2009-05-08T12:06:37.480"},"ML 1210",{"$f":"SUM((Таб_Samsung16[SAMSUNG]=Таб_Заправка9[[#This Row],[Модель\n картриджа]])*Таб_Samsung16[стоимость],(Таб_Xerox17[XEROX]=Таб_Заправка9[[#This Row],[Модель\n картриджа]])*Таб_Xerox17[стоимость],(Таб_HP18[[HP ]]=Таб_Заправка9[[#This Row],[Модель\n картриджа]])*Таб_HP18[стоимось],(Таб_Canon19[CANON]=Таб_Заправка9[[#This Row],[Модель\n картриджа]])*Таб_Canon19[стоимость])","v":300},{"$f":"IF(Таб_Заправка9[[#This Row],[Стоимость\nзаправки]]<>0,Таб_Заправка9[[#This Row],[Стоимость\nзаправки]]-120,\"\")","v":180}]
[null,{"$f":"ROW(B216)-ROW(Таб_Заправка9[[#Headers],[№]])","v":210},{"$f":"IF((D216)=0,NOW(),C216)","v":"2009-05-08T12:06:44.310"},"SCX 4200",{"$f":"SUM((Таб_Samsung16[SAMSUNG]=Таб_Заправка9[[#This Row],[Модель\n картриджа]])*Таб_Samsung16[стоимость],(Таб_Xerox17[XEROX]=Таб_Заправка9[[#This Row],[Модель\n картриджа]])*Таб_Xerox17[стоимость],(Таб_HP18[[HP ]]=Таб_Заправка9[[#This Row],[Модель\n картриджа]])*Таб_HP18[стоимось],(Таб_Canon19[CANON]=Таб_Заправка9[[#This Row],[Модель\n картриджа]])*Таб_Canon19[стоимость])","v":400},{"$f":"IF(Таб_Заправка9[[#This Row],[Стоимость\nзаправки]]<>0,Таб_Заправка9[[#This Row],[Стоимость\nзаправки]]-120,\"\")","v":280}]
[null,{"$f":"ROW(B217)-ROW(Таб_Заправка9[[#Headers],[№]])","v":211},{"$f":"IF((D217)=0,NOW(),C217)","v":"2009-05-08T12:06:49.590"},"SCX 4200",{"$f":"SUM((Таб_Samsung16[SAMSUNG]=Таб_Заправка9[[#This Row],[Модель\n картриджа]])*Таб_Samsung16[стоимость],(Таб_Xerox17[XEROX]=Таб_Заправка9[[#This Row],[Модель\n картриджа]])*Таб_Xerox17[стоимость],(Таб_HP18[[HP ]]=Таб_Заправка9[[#This Row],[Модель\n картриджа]])*Таб_HP18[стоимось],(Таб_Canon19[CANON]=Таб_Заправка9[[#This Row],[Модель\n картриджа]])*Таб_Canon19[стоимость])","v":400},{"$f":"IF(Таб_Заправка9[[#This Row],[Стоимость\nзаправки]]<>0,Таб_Заправка9[[#This Row],[Стоимость\nзаправки]]-120,\"\")","v":280}]
[null,{"$f":"ROW(B218)-ROW(Таб_Заправка9[[#Headers],[№]])","v":212},{"$f":"IF((D218)=0,NOW(),C218)","v":"2009-05-08T12:06:55.430"},"SCX 4200",{"$f":"SUM((Таб_Samsung16[SAMSUNG]=Таб_Заправка9[[#This Row],[Модель\n картриджа]])*Таб_Samsung16[стоимость],(Таб_Xerox17[XEROX]=Таб_Заправка9[[#This Row],[Модель\n картриджа]])*Таб_Xerox17[стоимость],(Таб_HP18[[HP ]]=Таб_Заправка9[[#This Row],[Модель\n картриджа]])*Таб_HP18[стоимось],(Таб_Canon19[CANON]=Таб_Заправка9[[#This Row],[Модель\n картриджа]])*Таб_Canon19[стоимость])","v":400},{"$f":"IF(Таб_Заправка9[[#This Row],[Стоимость\nзаправки]]<>0,Таб_Заправка9[[#This Row],[Стоимость\nзаправки]]-120,\"\")","v":280}]
[null,{"$f":"ROW(B219)-ROW(Таб_Заправка9[[#Headers],[№]])","v":213},{"$f":"IF((D219)=0,NOW(),C219)","v":"2009-05-08T15:06:06.290"},"SCX 4200",{"$f":"SUM((Таб_Samsung16[SAMSUNG]=Таб_Заправка9[[#This Row],[Модель\n картриджа]])*Таб_Samsung16[стоимость],(Таб_Xerox17[XEROX]=Таб_Заправка9[[#This Row],[Модель\n картриджа]])*Таб_Xerox17[стоимость],(Таб_HP18[[HP ]]=Таб_Заправка9[[#This Row],[Модель\n картриджа]])*Таб_HP18[стоимось],(Таб_Canon19[CANON]=Таб_Заправка9[[#This Row],[Модель\n картриджа]])*Таб_Canon19[стоимость])","v":400},{"$f":"IF(Таб_Заправка9[[#This Row],[Стоимость\nзаправки]]<>0,Таб_Заправка9[[#This Row],[Стоимость\nзаправки]]-120,\"\")","v":280}]
[null,{"$f":"ROW(B220)-ROW(Таб_Заправка9[[#Headers],[№]])","v":214},{"$f":"IF((D220)=0,NOW(),C220)","v":"2009-05-08T15:06:06.290"},"SCX 4200",{"$f":"SUM((Таб_Samsung16[SAMSUNG]=Таб_Заправка9[[#This Row],[Модель\n картриджа]])*Таб_Samsung16[стоимость],(Таб_Xerox17[XEROX]=Таб_Заправка9[[#This Row],[Модель\n картриджа]])*Таб_Xerox17[стоимость],(Таб_HP18[[HP ]]=Таб_Заправка9[[#This Row],[Модель\n картриджа]])*Таб_HP18[стоимось],(Таб_Canon19[CANON]=Таб_Заправка9[[#This Row],[Модель\n картриджа]])*Таб_Canon19[стоимость])","v":400},{"$f":"IF(Таб_Заправка9[[#This Row],[Стоимость\nзаправки]]<>0,Таб_Заправка9[[#This Row],[Стоимость\nзаправки]]-120,\"\")","v":280}]
[null,{"$f":"ROW(B221)-ROW(Таб_Заправка9[[#Headers],[№]])","v":215},{"$f":"IF((D221)=0,NOW(),C221)","v":"2009-05-08T15:06:06.290"},"SCX 4200",{"$f":"SUM((Таб_Samsung16[SAMSUNG]=Таб_Заправка9[[#This Row],[Модель\n картриджа]])*Таб_Samsung16[стоимость],(Таб_Xerox17[XEROX]=Таб_Заправка9[[#This Row],[Модель\n картриджа]])*Таб_Xerox17[стоимость],(Таб_HP18[[HP ]]=Таб_Заправка9[[#This Row],[Модель\n картриджа]])*Таб_HP18[стоимось],(Таб_Canon19[CANON]=Таб_Заправка9[[#This Row],[Модель\n картриджа]])*Таб_Canon19[стоимость])","v":400},{"$f":"IF(Таб_Заправка9[[#This Row],[Стоимость\nзаправки]]<>0,Таб_Заправка9[[#This Row],[Стоимость\nзаправки]]-120,\"\")","v":280}]
[null,{"$f":"ROW(B222)-ROW(Таб_Заправка9[[#Headers],[№]])","v":216},{"$f":"IF((D222)=0,NOW(),C222)","v":"2009-05-08T15:06:06.290"},"SCX 4200",{"$f":"SUM((Таб_Samsung16[SAMSUNG]=Таб_Заправка9[[#This Row],[Модель\n картриджа]])*Таб_Samsung16[стоимость],(Таб_Xerox17[XEROX]=Таб_Заправка9[[#This Row],[Модель\n картриджа]])*Таб_Xerox17[стоимость],(Таб_HP18[[HP ]]=Таб_Заправка9[[#This Row],[Модель\n картриджа]])*Таб_HP18[стоимось],(Таб_Canon19[CANON]=Таб_Заправка9[[#This Row],[Модель\n картриджа]])*Таб_Canon19[стоимость])","v":400},{"$f":"IF(Таб_Заправка9[[#This Row],[Стоимость\nзаправки]]<>0,Таб_Заправка9[[#This Row],[Стоимость\nзаправки]]-120,\"\")","v":280}]
[null,{"$f":"ROW(B223)-ROW(Таб_Заправка9[[#Headers],[№]])","v":217},{"$f":"IF((D223)=0,NOW(),C223)","v":"2009-05-08T15:06:06.290"},"SCX 4200",{"$f":"SUM((Таб_Samsung16[SAMSUNG]=Таб_Заправка9[[#This Row],[Модель\n картриджа]])*Таб_Samsung16[стоимость],(Таб_Xerox17[XEROX]=Таб_Заправка9[[#This Row],[Модель\n картриджа]])*Таб_Xerox17[стоимость],(Таб_HP18[[HP ]]=Таб_Заправка9[[#This Row],[Модель\n картриджа]])*Таб_HP18[стоимось],(Таб_Canon19[CANON]=Таб_Заправка9[[#This Row],[Модель\n картриджа]])*Таб_Canon19[стоимость])","v":400},{"$f":"IF(Таб_Заправка9[[#This Row],[Стоимость\nзаправки]]<>0,Таб_Заправка9[[#This Row],[Стоимость\nзаправки]]-120,\"\")","v":280}]
[null,{"$f":"ROW(B224)-ROW(Таб_Заправка9[[#Headers],[№]])","v":218},{"$f":"IF((D224)=0,NOW(),C224)","v":"2009-05-08T15:06:06.290"},"SCX 4200",{"$f":"SUM((Таб_Samsung16[SAMSUNG]=Таб_Заправка9[[#This Row],[Модель\n картриджа]])*Таб_Samsung16[стоимость],(Таб_Xerox17[XEROX]=Таб_Заправка9[[#This Row],[Модель\n картриджа]])*Таб_Xerox17[стоимость],(Таб_HP18[[HP ]]=Таб_Заправка9[[#This Row],[Модель\n картриджа]])*Таб_HP18[стоимось],(Таб_Canon19[CANON]=Таб_Заправка9[[#This Row],[Модель\n картриджа]])*Таб_Canon19[стоимость])","v":400},{"$f":"IF(Таб_Заправка9[[#This Row],[Стоимость\nзаправки]]<>0,Таб_Заправка9[[#This Row],[Стоимость\nзаправки]]-120,\"\")","v":280}]
[null,{"$f":"ROW(B225)-ROW(Таб_Заправка9[[#Headers],[№]])","v":219},{"$f":"IF((D225)=0,NOW(),C225)","v":"2009-05-08T15:06:06.290"},"SCX 4200",{"$f":"SUM((Таб_Samsung16[SAMSUNG]=Таб_Заправка9[[#This Row],[Модель\n картриджа]])*Таб_Samsung16[стоимость],(Таб_Xerox17[XEROX]=Таб_Заправка9[[#This Row],[Модель\n картриджа]])*Таб_Xerox17[стоимость],(Таб_HP18[[HP ]]=Таб_Заправка9[[#This Row],[Модель\n картриджа]])*Таб_HP18[стоимось],(Таб_Canon19[CANON]=Таб_Заправка9[[#This Row],[Модель\n картриджа]])*Таб_Canon19[стоимость])","v":400},{"$f":"IF(Таб_Заправка9[[#This Row],[Стоимость\nзаправки]]<>0,Таб_Заправка9[[#This Row],[Стоимость\nзаправки]]-120,\"\")","v":280}]
[null,{"$f":"ROW(B226)-ROW(Таб_Заправка9[[#Headers],[№]])","v":220},{"$f":"IF((D226)=0,NOW(),C226)","v":"2009-05-08T15:06:06.290"},"SCX 4200",{"$f":"SUM((Таб_Samsung16[SAMSUNG]=Таб_Заправка9[[#This Row],[Модель\n картриджа]])*Таб_Samsung16[стоимость],(Таб_Xerox17[XEROX]=Таб_Заправка9[[#This Row],[Модель\n картриджа]])*Таб_Xerox17[стоимость],(Таб_HP18[[HP ]]=Таб_Заправка9[[#This Row],[Модель\n картриджа]])*Таб_HP18[стоимось],(Таб_Canon19[CANON]=Таб_Заправка9[[#This Row],[Модель\n картриджа]])*Таб_Canon19[стоимость])","v":400},{"$f":"IF(Таб_Заправка9[[#This Row],[Стоимость\nзаправки]]<>0,Таб_Заправка9[[#This Row],[Стоимость\nзаправки]]-120,\"\")","v":280}]
[null,{"$f":"ROW(B227)-ROW(Таб_Заправка9[[#Headers],[№]])","v":221},{"$f":"IF((D227)=0,NOW(),C227)","v":"2009-05-08T15:06:06.290"},"SCX 4200",{"$f":"SUM((Таб_Samsung16[SAMSUNG]=Таб_Заправка9[[#This Row],[Модель\n картриджа]])*Таб_Samsung16[стоимость],(Таб_Xerox17[XEROX]=Таб_Заправка9[[#This Row],[Модель\n картриджа]])*Таб_Xerox17[стоимость],(Таб_HP18[[HP ]]=Таб_Заправка9[[#This Row],[Модель\n картриджа]])*Таб_HP18[стоимось],(Таб_Canon19[CANON]=Таб_Заправка9[[#This Row],[Модель\n картриджа]])*Таб_Canon19[стоимость])","v":400},{"$f":"IF(Таб_Заправка9[[#This Row],[Стоимость\nзаправки]]<>0,Таб_Заправка9[[#This Row],[Стоимость\nзаправки]]-120,\"\")","v":280}]
[null,{"$f":"ROW(B228)-ROW(Таб_Заправка9[[#Headers],[№]])","v":222},{"$f":"IF((D228)=0,NOW(),C228)","v":"2009-05-08T15:06:06.290"},"SCX 4200",{"$f":"SUM((Таб_Samsung16[SAMSUNG]=Таб_Заправка9[[#This Row],[Модель\n картриджа]])*Таб_Samsung16[стоимость],(Таб_Xerox17[XEROX]=Таб_Заправка9[[#This Row],[Модель\n картриджа]])*Таб_Xerox17[стоимость],(Таб_HP18[[HP ]]=Таб_Заправка9[[#This Row],[Модель\n картриджа]])*Таб_HP18[стоимось],(Таб_Canon19[CANON]=Таб_Заправка9[[#This Row],[Модель\n картриджа]])*Таб_Canon19[стоимость])","v":400},{"$f":"IF(Таб_Заправка9[[#This Row],[Стоимость\nзаправки]]<>0,Таб_Заправка9[[#This Row],[Стоимость\nзаправки]]-120,\"\")","v":280}]
[null,{"$f":"ROW(B229)-ROW(Таб_Заправка9[[#Headers],[№]])","v":223},{"$f":"IF((D229)=0,NOW(),C229)","v":"2009-05-12T10:52:32.280"},"SCX 4200",{"$f":"SUM((Таб_Samsung16[SAMSUNG]=Таб_Заправка9[[#This Row],[Модель\n картриджа]])*Таб_Samsung16[стоимость],(Таб_Xerox17[XEROX]=Таб_Заправка9[[#This Row],[Модель\n картриджа]])*Таб_Xerox17[стоимость],(Таб_HP18[[HP ]]=Таб_Заправка9[[#This Row],[Модель\n картриджа]])*Таб_HP18[стоимось],(Таб_Canon19[CANON]=Таб_Заправка9[[#This Row],[Модель\n картриджа]])*Таб_Canon19[стоимость])","v":400},{"$f":"IF(Таб_Заправка9[[#This Row],[Стоимость\nзаправки]]<>0,Таб_Заправка9[[#This Row],[Стоимость\nзаправки]]-120,\"\")","v":280}]
[null,{"$f":"ROW(B230)-ROW(Таб_Заправка9[[#Headers],[№]])","v":224},{"$f":"IF((D230)=0,NOW(),C230)","v":"2009-05-12T10:52:40.540"},"C4092A     (HP1100)",{"$f":"SUM((Таб_Samsung16[SAMSUNG]=Таб_Заправка9[[#This Row],[Модель\n картриджа]])*Таб_Samsung16[стоимость],(Таб_Xerox17[XEROX]=Таб_Заправка9[[#This Row],[Модель\n картриджа]])*Таб_Xerox17[стоимость],(Таб_HP18[[HP ]]=Таб_Заправка9[[#This Row],[Модель\n картриджа]])*Таб_HP18[стоимось],(Таб_Canon19[CANON]=Таб_Заправка9[[#This Row],[Модель\n картриджа]])*Таб_Canon19[стоимость])","v":250},{"$f":"IF(Таб_Заправка9[[#This Row],[Стоимость\nзаправки]]<>0,Таб_Заправка9[[#This Row],[Стоимость\nзаправки]]-120,\"\")","v":130}]
[null,{"$f":"ROW(B231)-ROW(Таб_Заправка9[[#Headers],[№]])","v":225},{"$f":"IF((D231)=0,NOW(),C231)","v":"2009-05-13T11:06:47.180"},"Phaser 3250",{"$f":"SUM((Таб_Samsung16[SAMSUNG]=Таб_Заправка9[[#This Row],[Модель\n картриджа]])*Таб_Samsung16[стоимость],(Таб_Xerox17[XEROX]=Таб_Заправка9[[#This Row],[Модель\n картриджа]])*Таб_Xerox17[стоимость],(Таб_HP18[[HP ]]=Таб_Заправка9[[#This Row],[Модель\n картриджа]])*Таб_HP18[стоимось],(Таб_Canon19[CANON]=Таб_Заправка9[[#This Row],[Модель\n картриджа]])*Таб_Canon19[стоимость])","v":700},{"$f":"IF(Таб_Заправка9[[#This Row],[Стоимость\nзаправки]]<>0,Таб_Заправка9[[#This Row],[Стоимость\nзаправки]]-120,\"\")","v":580}]
[null,{"$f":"ROW(B232)-ROW(Таб_Заправка9[[#Headers],[№]])","v":226},{"$f":"IF((D232)=0,NOW(),C232)","v":"2009-05-13T12:39:25.200"},"Phaser 3250",{"$f":"SUM((Таб_Samsung16[SAMSUNG]=Таб_Заправка9[[#This Row],[Модель\n картриджа]])*Таб_Samsung16[стоимость],(Таб_Xerox17[XEROX]=Таб_Заправка9[[#This Row],[Модель\n картриджа]])*Таб_Xerox17[стоимость],(Таб_HP18[[HP ]]=Таб_Заправка9[[#This Row],[Модель\n картриджа]])*Таб_HP18[стоимось],(Таб_Canon19[CANON]=Таб_Заправка9[[#This Row],[Модель\n картриджа]])*Таб_Canon19[стоимость])","v":700},{"$f":"IF(Таб_Заправка9[[#This Row],[Стоимость\nзаправки]]<>0,Таб_Заправка9[[#This Row],[Стоимость\nзаправки]]-120,\"\")","v":580}]
[null,{"$f":"ROW(B233)-ROW(Таб_Заправка9[[#Headers],[№]])","v":227},{"$f":"IF((D233)=0,NOW(),C233)","v":"2009-05-13T12:39:35.310"},"CB436A   (HP P1505n)",{"$f":"SUM((Таб_Samsung16[SAMSUNG]=Таб_Заправка9[[#This Row],[Модель\n картриджа]])*Таб_Samsung16[стоимость],(Таб_Xerox17[XEROX]=Таб_Заправка9[[#This Row],[Модель\n картриджа]])*Таб_Xerox17[стоимость],(Таб_HP18[[HP ]]=Таб_Заправка9[[#This Row],[Модель\n картриджа]])*Таб_HP18[стоимось],(Таб_Canon19[CANON]=Таб_Заправка9[[#This Row],[Модель\n картриджа]])*Таб_Canon19[стоимость])","v":250},{"$f":"IF(Таб_Заправка9[[#This Row],[Стоимость\nзаправки]]<>0,Таб_Заправка9[[#This Row],[Стоимость\nзаправки]]-120,\"\")","v":130}]
[null,{"$f":"ROW(B234)-ROW(Таб_Заправка9[[#Headers],[№]])","v":228},{"$f":"IF((D234)=0,NOW(),C234)","v":"2009-05-13T12:39:42.980"},"Q2612A     (HP1010)",{"$f":"SUM((Таб_Samsung16[SAMSUNG]=Таб_Заправка9[[#This Row],[Модель\n картриджа]])*Таб_Samsung16[стоимость],(Таб_Xerox17[XEROX]=Таб_Заправка9[[#This Row],[Модель\n картриджа]])*Таб_Xerox17[стоимость],(Таб_HP18[[HP ]]=Таб_Заправка9[[#This Row],[Модель\n картриджа]])*Таб_HP18[стоимось],(Таб_Canon19[CANON]=Таб_Заправка9[[#This Row],[Модель\n картриджа]])*Таб_Canon19[стоимость])","v":250},{"$f":"IF(Таб_Заправка9[[#This Row],[Стоимость\nзаправки]]<>0,Таб_Заправка9[[#This Row],[Стоимость\nзаправки]]-120,\"\")","v":130}]
[null,{"$f":"ROW(B235)-ROW(Таб_Заправка9[[#Headers],[№]])","v":229},{"$f":"IF((D235)=0,NOW(),C235)","v":"2009-05-14T12:09:02.810"},"WC- 3119",{"$f":"SUM((Таб_Samsung16[SAMSUNG]=Таб_Заправка9[[#This Row],[Модель\n картриджа]])*Таб_Samsung16[стоимость],(Таб_Xerox17[XEROX]=Таб_Заправка9[[#This Row],[Модель\n картриджа]])*Таб_Xerox17[стоимость],(Таб_HP18[[HP ]]=Таб_Заправка9[[#This Row],[Модель\n картриджа]])*Таб_HP18[стоимось],(Таб_Canon19[CANON]=Таб_Заправка9[[#This Row],[Модель\n картриджа]])*Таб_Canon19[стоимость])","v":400},{"$f":"IF(Таб_Заправка9[[#This Row],[Стоимость\nзаправки]]<>0,Таб_Заправка9[[#This Row],[Стоимость\nзаправки]]-120,\"\")","v":280}]
[null,{"$f":"ROW(B236)-ROW(Таб_Заправка9[[#Headers],[№]])","v":230},{"$f":"IF((D236)=0,NOW(),C236)","v":"2009-05-15T12:50:09.890"},"С-703   (LBP2900)",{"$f":"SUM((Таб_Samsung16[SAMSUNG]=Таб_Заправка9[[#This Row],[Модель\n картриджа]])*Таб_Samsung16[стоимость],(Таб_Xerox17[XEROX]=Таб_Заправка9[[#This Row],[Модель\n картриджа]])*Таб_Xerox17[стоимость],(Таб_HP18[[HP ]]=Таб_Заправка9[[#This Row],[Модель\n картриджа]])*Таб_HP18[стоимось],(Таб_Canon19[CANON]=Таб_Заправка9[[#This Row],[Модель\n картриджа]])*Таб_Canon19[стоимость])","v":250},{"$f":"IF(Таб_Заправка9[[#This Row],[Стоимость\nзаправки]]<>0,Таб_Заправка9[[#This Row],[Стоимость\nзаправки]]-120,\"\")","v":130}]
[null,{"$f":"ROW(B237)-ROW(Таб_Заправка9[[#Headers],[№]])","v":231},{"$f":"IF((D237)=0,NOW(),C237)","v":"2009-05-15T12:50:19.100"},"С-703   (LBP2900)",{"$f":"SUM((Таб_Samsung16[SAMSUNG]=Таб_Заправка9[[#This Row],[Модель\n картриджа]])*Таб_Samsung16[стоимость],(Таб_Xerox17[XEROX]=Таб_Заправка9[[#This Row],[Модель\n картриджа]])*Таб_Xerox17[стоимость],(Таб_HP18[[HP ]]=Таб_Заправка9[[#This Row],[Модель\n картриджа]])*Таб_HP18[стоимось],(Таб_Canon19[CANON]=Таб_Заправка9[[#This Row],[Модель\n картриджа]])*Таб_Canon19[стоимость])","v":250},{"$f":"IF(Таб_Заправка9[[#This Row],[Стоимость\nзаправки]]<>0,Таб_Заправка9[[#This Row],[Стоимость\nзаправки]]-120,\"\")","v":130}]
[null,{"$f":"ROW(B238)-ROW(Таб_Заправка9[[#Headers],[№]])","v":232},{"$f":"IF((D238)=0,NOW(),C238)","v":"2009-05-18T15:23:14.250"},"E16/30",{"$f":"SUM((Таб_Samsung16[SAMSUNG]=Таб_Заправка9[[#This Row],[Модель\n картриджа]])*Таб_Samsung16[стоимость],(Таб_Xerox17[XEROX]=Таб_Заправка9[[#This Row],[Модель\n картриджа]])*Таб_Xerox17[стоимость],(Таб_HP18[[HP ]]=Таб_Заправка9[[#This Row],[Модель\n картриджа]])*Таб_HP18[стоимось],(Таб_Canon19[CANON]=Таб_Заправка9[[#This Row],[Модель\n картриджа]])*Таб_Canon19[стоимость])","v":250},{"$f":"IF(Таб_Заправка9[[#This Row],[Стоимость\nзаправки]]<>0,Таб_Заправка9[[#This Row],[Стоимость\nзаправки]]-120,\"\")","v":130}]
[null,{"$f":"ROW(B239)-ROW(Таб_Заправка9[[#Headers],[№]])","v":233},{"$f":"IF((D239)=0,NOW(),C239)","v":"2009-05-20T11:41:54.760"},"ML 1210",{"$f":"SUM((Таб_Samsung16[SAMSUNG]=Таб_Заправка9[[#This Row],[Модель\n картриджа]])*Таб_Samsung16[стоимость],(Таб_Xerox17[XEROX]=Таб_Заправка9[[#This Row],[Модель\n картриджа]])*Таб_Xerox17[стоимость],(Таб_HP18[[HP ]]=Таб_Заправка9[[#This Row],[Модель\n картриджа]])*Таб_HP18[стоимось],(Таб_Canon19[CANON]=Таб_Заправка9[[#This Row],[Модель\n картриджа]])*Таб_Canon19[стоимость])","v":300},{"$f":"IF(Таб_Заправка9[[#This Row],[Стоимость\nзаправки]]<>0,Таб_Заправка9[[#This Row],[Стоимость\nзаправки]]-120,\"\")","v":180}]
[null,{"$f":"ROW(B240)-ROW(Таб_Заправка9[[#Headers],[№]])","v":234},{"$f":"IF((D240)=0,NOW(),C240)","v":"2009-05-20T11:45:07.010"},"SCX 4725",{"$f":"SUM((Таб_Samsung16[SAMSUNG]=Таб_Заправка9[[#This Row],[Модель\n картриджа]])*Таб_Samsung16[стоимость],(Таб_Xerox17[XEROX]=Таб_Заправка9[[#This Row],[Модель\n картриджа]])*Таб_Xerox17[стоимость],(Таб_HP18[[HP ]]=Таб_Заправка9[[#This Row],[Модель\n картриджа]])*Таб_HP18[стоимось],(Таб_Canon19[CANON]=Таб_Заправка9[[#This Row],[Модель\n картриджа]])*Таб_Canon19[стоимость])","v":600},{"$f":"IF(Таб_Заправка9[[#This Row],[Стоимость\nзаправки]]<>0,Таб_Заправка9[[#This Row],[Стоимость\nзаправки]]-120,\"\")","v":480}]
[null,{"$f":"ROW(B241)-ROW(Таб_Заправка9[[#Headers],[№]])","v":235},{"$f":"IF((D241)=0,NOW(),C241)","v":"2009-05-20T11:45:29.680"},"Phaser 3120",{"$f":"SUM((Таб_Samsung16[SAMSUNG]=Таб_Заправка9[[#This Row],[Модель\n картриджа]])*Таб_Samsung16[стоимость],(Таб_Xerox17[XEROX]=Таб_Заправка9[[#This Row],[Модель\n картриджа]])*Таб_Xerox17[стоимость],(Таб_HP18[[HP ]]=Таб_Заправка9[[#This Row],[Модель\n картриджа]])*Таб_HP18[стоимось],(Таб_Canon19[CANON]=Таб_Заправка9[[#This Row],[Модель\n картриджа]])*Таб_Canon19[стоимость])","v":300},{"$f":"IF(Таб_Заправка9[[#This Row],[Стоимость\nзаправки]]<>0,Таб_Заправка9[[#This Row],[Стоимость\nзаправки]]-120,\"\")","v":180}]
[null,{"$f":"ROW(B242)-ROW(Таб_Заправка9[[#Headers],[№]])","v":236},{"$f":"IF((D242)=0,NOW(),C242)","v":"2009-05-20T11:45:37.040"},"Q2612A     (HP1010)",{"$f":"SUM((Таб_Samsung16[SAMSUNG]=Таб_Заправка9[[#This Row],[Модель\n картриджа]])*Таб_Samsung16[стоимость],(Таб_Xerox17[XEROX]=Таб_Заправка9[[#This Row],[Модель\n картриджа]])*Таб_Xerox17[стоимость],(Таб_HP18[[HP ]]=Таб_Заправка9[[#This Row],[Модель\n картриджа]])*Таб_HP18[стоимось],(Таб_Canon19[CANON]=Таб_Заправка9[[#This Row],[Модель\n картриджа]])*Таб_Canon19[стоимость])","v":250},{"$f":"IF(Таб_Заправка9[[#This Row],[Стоимость\nзаправки]]<>0,Таб_Заправка9[[#This Row],[Стоимость\nзаправки]]-120,\"\")","v":130}]
[null,{"$f":"ROW(B243)-ROW(Таб_Заправка9[[#Headers],[№]])","v":237},{"$f":"IF((D243)=0,NOW(),C243)","v":"2009-05-25T14:59:45.140"},"Q2612A     (HP1010)",{"$f":"SUM((Таб_Samsung16[SAMSUNG]=Таб_Заправка9[[#This Row],[Модель\n картриджа]])*Таб_Samsung16[стоимость],(Таб_Xerox17[XEROX]=Таб_Заправка9[[#This Row],[Модель\n картриджа]])*Таб_Xerox17[стоимость],(Таб_HP18[[HP ]]=Таб_Заправка9[[#This Row],[Модель\n картриджа]])*Таб_HP18[стоимось],(Таб_Canon19[CANON]=Таб_Заправка9[[#This Row],[Модель\n картриджа]])*Таб_Canon19[стоимость])","v":250},{"$f":"IF(Таб_Заправка9[[#This Row],[Стоимость\nзаправки]]<>0,Таб_Заправка9[[#This Row],[Стоимость\nзаправки]]-120,\"\")","v":130}]
[null,{"$f":"ROW(B244)-ROW(Таб_Заправка9[[#Headers],[№]])","v":238},{"$f":"IF((D244)=0,NOW(),C244)","v":"2009-05-25T14:59:52.870"},"Q2612A     (HP1010)",{"$f":"SUM((Таб_Samsung16[SAMSUNG]=Таб_Заправка9[[#This Row],[Модель\n картриджа]])*Таб_Samsung16[стоимость],(Таб_Xerox17[XEROX]=Таб_Заправка9[[#This Row],[Модель\n картриджа]])*Таб_Xerox17[стоимость],(Таб_HP18[[HP ]]=Таб_Заправка9[[#This Row],[Модель\n картриджа]])*Таб_HP18[стоимось],(Таб_Canon19[CANON]=Таб_Заправка9[[#This Row],[Модель\n картриджа]])*Таб_Canon19[стоимость])","v":250},{"$f":"IF(Таб_Заправка9[[#This Row],[Стоимость\nзаправки]]<>0,Таб_Заправка9[[#This Row],[Стоимость\nзаправки]]-120,\"\")","v":130}]
[null,{"$f":"ROW(B245)-ROW(Таб_Заправка9[[#Headers],[№]])","v":239},{"$f":"IF((D245)=0,NOW(),C245)","v":"2009-05-26T13:51:45.810"},"Q2612A     (HP1010)",{"$f":"SUM((Таб_Samsung16[SAMSUNG]=Таб_Заправка9[[#This Row],[Модель\n картриджа]])*Таб_Samsung16[стоимость],(Таб_Xerox17[XEROX]=Таб_Заправка9[[#This Row],[Модель\n картриджа]])*Таб_Xerox17[стоимость],(Таб_HP18[[HP ]]=Таб_Заправка9[[#This Row],[Модель\n картриджа]])*Таб_HP18[стоимось],(Таб_Canon19[CANON]=Таб_Заправка9[[#This Row],[Модель\n картриджа]])*Таб_Canon19[стоимость])","v":250},{"$f":"IF(Таб_Заправка9[[#This Row],[Стоимость\nзаправки]]<>0,Таб_Заправка9[[#This Row],[Стоимость\nзаправки]]-120,\"\")","v":130}]
[null,{"$f":"ROW(B246)-ROW(Таб_Заправка9[[#Headers],[№]])","v":240},{"$f":"IF((D246)=0,NOW(),C246)","v":"2009-05-26T13:51:57.390"},"Phaser 3117/22",{"$f":"SUM((Таб_Samsung16[SAMSUNG]=Таб_Заправка9[[#This Row],[Модель\n картриджа]])*Таб_Samsung16[стоимость],(Таб_Xerox17[XEROX]=Таб_Заправка9[[#This Row],[Модель\n картриджа]])*Таб_Xerox17[стоимость],(Таб_HP18[[HP ]]=Таб_Заправка9[[#This Row],[Модель\n картриджа]])*Таб_HP18[стоимось],(Таб_Canon19[CANON]=Таб_Заправка9[[#This Row],[Модель\n картриджа]])*Таб_Canon19[стоимость])","v":300},{"$f":"IF(Таб_Заправка9[[#This Row],[Стоимость\nзаправки]]<>0,Таб_Заправка9[[#This Row],[Стоимость\nзаправки]]-120,\"\")","v":180}]
[null,{"$f":"ROW(B247)-ROW(Таб_Заправка9[[#Headers],[№]])","v":241},{"$f":"IF((D247)=0,NOW(),C247)","v":"2009-05-26T13:52:12.500"},"ML 1210",{"$f":"SUM((Таб_Samsung16[SAMSUNG]=Таб_Заправка9[[#This Row],[Модель\n картриджа]])*Таб_Samsung16[стоимость],(Таб_Xerox17[XEROX]=Таб_Заправка9[[#This Row],[Модель\n картриджа]])*Таб_Xerox17[стоимость],(Таб_HP18[[HP ]]=Таб_Заправка9[[#This Row],[Модель\n картриджа]])*Таб_HP18[стоимось],(Таб_Canon19[CANON]=Таб_Заправка9[[#This Row],[Модель\n картриджа]])*Таб_Canon19[стоимость])","v":300},{"$f":"IF(Таб_Заправка9[[#This Row],[Стоимость\nзаправки]]<>0,Таб_Заправка9[[#This Row],[Стоимость\nзаправки]]-120,\"\")","v":180}]
[null,{"$f":"ROW(B248)-ROW(Таб_Заправка9[[#Headers],[№]])","v":242},{"$f":"IF((D248)=0,NOW(),C248)","v":"2009-05-26T14:20:18.460"},"C4092A     (HP1100)",{"$f":"SUM((Таб_Samsung16[SAMSUNG]=Таб_Заправка9[[#This Row],[Модель\n картриджа]])*Таб_Samsung16[стоимость],(Таб_Xerox17[XEROX]=Таб_Заправка9[[#This Row],[Модель\n картриджа]])*Таб_Xerox17[стоимость],(Таб_HP18[[HP ]]=Таб_Заправка9[[#This Row],[Модель\n картриджа]])*Таб_HP18[стоимось],(Таб_Canon19[CANON]=Таб_Заправка9[[#This Row],[Модель\n картриджа]])*Таб_Canon19[стоимость])","v":250},{"$f":"IF(Таб_Заправка9[[#This Row],[Стоимость\nзаправки]]<>0,Таб_Заправка9[[#This Row],[Стоимость\nзаправки]]-120,\"\")","v":130}]
[null,{"$f":"ROW(B249)-ROW(Таб_Заправка9[[#Headers],[№]])","v":243},{"$f":"IF((D249)=0,NOW(),C249)","v":"2009-05-27T12:20:01.340"},"FX-10   (L100/ L120)",{"$f":"SUM((Таб_Samsung16[SAMSUNG]=Таб_Заправка9[[#This Row],[Модель\n картриджа]])*Таб_Samsung16[стоимость],(Таб_Xerox17[XEROX]=Таб_Заправка9[[#This Row],[Модель\n картриджа]])*Таб_Xerox17[стоимость],(Таб_HP18[[HP ]]=Таб_Заправка9[[#This Row],[Модель\n картриджа]])*Таб_HP18[стоимось],(Таб_Canon19[CANON]=Таб_Заправка9[[#This Row],[Модель\n картриджа]])*Таб_Canon19[стоимость])","v":250},{"$f":"IF(Таб_Заправка9[[#This Row],[Стоимость\nзаправки]]<>0,Таб_Заправка9[[#This Row],[Стоимость\nзаправки]]-120,\"\")","v":130}]
[null,{"$f":"ROW(B250)-ROW(Таб_Заправка9[[#Headers],[№]])","v":244},{"$f":"IF((D250)=0,NOW(),C250)","v":"2009-05-27T12:20:10.180"},"PE220",{"$f":"SUM((Таб_Samsung16[SAMSUNG]=Таб_Заправка9[[#This Row],[Модель\n картриджа]])*Таб_Samsung16[стоимость],(Таб_Xerox17[XEROX]=Таб_Заправка9[[#This Row],[Модель\n картриджа]])*Таб_Xerox17[стоимость],(Таб_HP18[[HP ]]=Таб_Заправка9[[#This Row],[Модель\n картриджа]])*Таб_HP18[стоимось],(Таб_Canon19[CANON]=Таб_Заправка9[[#This Row],[Модель\n картриджа]])*Таб_Canon19[стоимость])","v":400},{"$f":"IF(Таб_Заправка9[[#This Row],[Стоимость\nзаправки]]<>0,Таб_Заправка9[[#This Row],[Стоимость\nзаправки]]-120,\"\")","v":280}]
[null,{"$f":"ROW(B251)-ROW(Таб_Заправка9[[#Headers],[№]])","v":245},{"$f":"IF((D251)=0,NOW(),C251)","v":"2009-05-27T12:20:17.030"},"Phaser 3250",{"$f":"SUM((Таб_Samsung16[SAMSUNG]=Таб_Заправка9[[#This Row],[Модель\n картриджа]])*Таб_Samsung16[стоимость],(Таб_Xerox17[XEROX]=Таб_Заправка9[[#This Row],[Модель\n картриджа]])*Таб_Xerox17[стоимость],(Таб_HP18[[HP ]]=Таб_Заправка9[[#This Row],[Модель\n картриджа]])*Таб_HP18[стоимось],(Таб_Canon19[CANON]=Таб_Заправка9[[#This Row],[Модель\n картриджа]])*Таб_Canon19[стоимость])","v":700},{"$f":"IF(Таб_Заправка9[[#This Row],[Стоимость\nзаправки]]<>0,Таб_Заправка9[[#This Row],[Стоимость\nзаправки]]-120,\"\")","v":580}]
[null,{"$f":"ROW(B252)-ROW(Таб_Заправка9[[#Headers],[№]])","v":246},{"$f":"IF((D252)=0,NOW(),C252)","v":"2009-05-27T12:20:27.950"},"MFP-3200",{"$f":"SUM((Таб_Samsung16[SAMSUNG]=Таб_Заправка9[[#This Row],[Модель\n картриджа]])*Таб_Samsung16[стоимость],(Таб_Xerox17[XEROX]=Таб_Заправка9[[#This Row],[Модель\n картриджа]])*Таб_Xerox17[стоимость],(Таб_HP18[[HP ]]=Таб_Заправка9[[#This Row],[Модель\n картриджа]])*Таб_HP18[стоимось],(Таб_Canon19[CANON]=Таб_Заправка9[[#This Row],[Модель\n картриджа]])*Таб_Canon19[стоимость])","v":600},{"$f":"IF(Таб_Заправка9[[#This Row],[Стоимость\nзаправки]]<>0,Таб_Заправка9[[#This Row],[Стоимость\nзаправки]]-120,\"\")","v":480}]
[null,{"$f":"ROW(B253)-ROW(Таб_Заправка9[[#Headers],[№]])","v":247},{"$f":"IF((D253)=0,NOW(),C253)","v":"2009-05-27T12:20:40.350"},"MFP-3200",{"$f":"SUM((Таб_Samsung16[SAMSUNG]=Таб_Заправка9[[#This Row],[Модель\n картриджа]])*Таб_Samsung16[стоимость],(Таб_Xerox17[XEROX]=Таб_Заправка9[[#This Row],[Модель\n картриджа]])*Таб_Xerox17[стоимость],(Таб_HP18[[HP ]]=Таб_Заправка9[[#This Row],[Модель\n картриджа]])*Таб_HP18[стоимось],(Таб_Canon19[CANON]=Таб_Заправка9[[#This Row],[Модель\n картриджа]])*Таб_Canon19[стоимость])","v":600},{"$f":"IF(Таб_Заправка9[[#This Row],[Стоимость\nзаправки]]<>0,Таб_Заправка9[[#This Row],[Стоимость\nзаправки]]-120,\"\")","v":480}]
[null,{"$f":"ROW(B254)-ROW(Таб_Заправка9[[#Headers],[№]])","v":248},{"$f":"IF((D254)=0,NOW(),C254)","v":"2009-05-27T12:20:49.590"},"Q2612A     (HP1010)",{"$f":"SUM((Таб_Samsung16[SAMSUNG]=Таб_Заправка9[[#This Row],[Модель\n картриджа]])*Таб_Samsung16[стоимость],(Таб_Xerox17[XEROX]=Таб_Заправка9[[#This Row],[Модель\n картриджа]])*Таб_Xerox17[стоимость],(Таб_HP18[[HP ]]=Таб_Заправка9[[#This Row],[Модель\n картриджа]])*Таб_HP18[стоимось],(Таб_Canon19[CANON]=Таб_Заправка9[[#This Row],[Модель\n картриджа]])*Таб_Canon19[стоимость])","v":250},{"$f":"IF(Таб_Заправка9[[#This Row],[Стоимость\nзаправки]]<>0,Таб_Заправка9[[#This Row],[Стоимость\nзаправки]]-120,\"\")","v":130}]
[null,{"$f":"ROW(B255)-ROW(Таб_Заправка9[[#Headers],[№]])","v":249},{"$f":"IF((D255)=0,NOW(),C255)","v":"2009-05-27T12:20:58.310"},"C4092A     (HP1100)",{"$f":"SUM((Таб_Samsung16[SAMSUNG]=Таб_Заправка9[[#This Row],[Модель\n картриджа]])*Таб_Samsung16[стоимость],(Таб_Xerox17[XEROX]=Таб_Заправка9[[#This Row],[Модель\n картриджа]])*Таб_Xerox17[стоимость],(Таб_HP18[[HP ]]=Таб_Заправка9[[#This Row],[Модель\n картриджа]])*Таб_HP18[стоимось],(Таб_Canon19[CANON]=Таб_Заправка9[[#This Row],[Модель\n картриджа]])*Таб_Canon19[стоимость])","v":250},{"$f":"IF(Таб_Заправка9[[#This Row],[Стоимость\nзаправки]]<>0,Таб_Заправка9[[#This Row],[Стоимость\nзаправки]]-120,\"\")","v":130}]
[null,{"$f":"ROW(B256)-ROW(Таб_Заправка9[[#Headers],[№]])","v":250},{"$f":"IF((D256)=0,NOW(),C256)","v":"2009-05-27T13:00:44.150"},"С-703   (LBP2900)",{"$f":"SUM((Таб_Samsung16[SAMSUNG]=Таб_Заправка9[[#This Row],[Модель\n картриджа]])*Таб_Samsung16[стоимость],(Таб_Xerox17[XEROX]=Таб_Заправка9[[#This Row],[Модель\n картриджа]])*Таб_Xerox17[стоимость],(Таб_HP18[[HP ]]=Таб_Заправка9[[#This Row],[Модель\n картриджа]])*Таб_HP18[стоимось],(Таб_Canon19[CANON]=Таб_Заправка9[[#This Row],[Модель\n картриджа]])*Таб_Canon19[стоимость])","v":250},{"$f":"IF(Таб_Заправка9[[#This Row],[Стоимость\nзаправки]]<>0,Таб_Заправка9[[#This Row],[Стоимость\nзаправки]]-120,\"\")","v":130}]
[null,{"$f":"ROW(B257)-ROW(Таб_Заправка9[[#Headers],[№]])","v":251},{"$f":"IF((D257)=0,NOW(),C257)","v":"2009-05-28T11:57:49.710"},"WC- 3119",{"$f":"SUM((Таб_Samsung16[SAMSUNG]=Таб_Заправка9[[#This Row],[Модель\n картриджа]])*Таб_Samsung16[стоимость],(Таб_Xerox17[XEROX]=Таб_Заправка9[[#This Row],[Модель\n картриджа]])*Таб_Xerox17[стоимость],(Таб_HP18[[HP ]]=Таб_Заправка9[[#This Row],[Модель\n картриджа]])*Таб_HP18[стоимось],(Таб_Canon19[CANON]=Таб_Заправка9[[#This Row],[Модель\n картриджа]])*Таб_Canon19[стоимость])","v":400},{"$f":"IF(Таб_Заправка9[[#This Row],[Стоимость\nзаправки]]<>0,Таб_Заправка9[[#This Row],[Стоимость\nзаправки]]-120,\"\")","v":280}]
[null,{"$f":"ROW(B258)-ROW(Таб_Заправка9[[#Headers],[№]])","v":252},{"$f":"IF((D258)=0,NOW(),C258)","v":"2009-05-28T11:58:08.290"},"EP-27   (LBP3200)",{"$f":"SUM((Таб_Samsung16[SAMSUNG]=Таб_Заправка9[[#This Row],[Модель\n картриджа]])*Таб_Samsung16[стоимость],(Таб_Xerox17[XEROX]=Таб_Заправка9[[#This Row],[Модель\n картриджа]])*Таб_Xerox17[стоимость],(Таб_HP18[[HP ]]=Таб_Заправка9[[#This Row],[Модель\n картриджа]])*Таб_HP18[стоимось],(Таб_Canon19[CANON]=Таб_Заправка9[[#This Row],[Модель\n картриджа]])*Таб_Canon19[стоимость])","v":250},{"$f":"IF(Таб_Заправка9[[#This Row],[Стоимость\nзаправки]]<>0,Таб_Заправка9[[#This Row],[Стоимость\nзаправки]]-120,\"\")","v":130}]
[null,{"$f":"ROW(B259)-ROW(Таб_Заправка9[[#Headers],[№]])","v":253},{"$f":"IF((D259)=0,NOW(),C259)","v":"2009-05-28T11:58:08.290"},"EP-27   (LBP3200)",{"$f":"SUM((Таб_Samsung16[SAMSUNG]=Таб_Заправка9[[#This Row],[Модель\n картриджа]])*Таб_Samsung16[стоимость],(Таб_Xerox17[XEROX]=Таб_Заправка9[[#This Row],[Модель\n картриджа]])*Таб_Xerox17[стоимость],(Таб_HP18[[HP ]]=Таб_Заправка9[[#This Row],[Модель\n картриджа]])*Таб_HP18[стоимось],(Таб_Canon19[CANON]=Таб_Заправка9[[#This Row],[Модель\n картриджа]])*Таб_Canon19[стоимость])","v":250},{"$f":"IF(Таб_Заправка9[[#This Row],[Стоимость\nзаправки]]<>0,Таб_Заправка9[[#This Row],[Стоимость\nзаправки]]-120,\"\")","v":130}]
[null,{"$f":"ROW(B260)-ROW(Таб_Заправка9[[#Headers],[№]])","v":254},{"$f":"IF((D260)=0,NOW(),C260)","v":"2009-05-28T11:59:28.870"},"Q2612A     (HP1010)",{"$f":"SUM((Таб_Samsung16[SAMSUNG]=Таб_Заправка9[[#This Row],[Модель\n картриджа]])*Таб_Samsung16[стоимость],(Таб_Xerox17[XEROX]=Таб_Заправка9[[#This Row],[Модель\n картриджа]])*Таб_Xerox17[стоимость],(Таб_HP18[[HP ]]=Таб_Заправка9[[#This Row],[Модель\n картриджа]])*Таб_HP18[стоимось],(Таб_Canon19[CANON]=Таб_Заправка9[[#This Row],[Модель\n картриджа]])*Таб_Canon19[стоимость])","v":250},{"$f":"IF(Таб_Заправка9[[#This Row],[Стоимость\nзаправки]]<>0,Таб_Заправка9[[#This Row],[Стоимость\nзаправки]]-120,\"\")","v":130}]
[null,{"$f":"ROW(B261)-ROW(Таб_Заправка9[[#Headers],[№]])","v":255},{"$f":"IF((D261)=0,NOW(),C261)","v":"2009-05-28T16:02:05.550"},"Q7553A   (HP P2015)",{"$f":"SUM((Таб_Samsung16[SAMSUNG]=Таб_Заправка9[[#This Row],[Модель\n картриджа]])*Таб_Samsung16[стоимость],(Таб_Xerox17[XEROX]=Таб_Заправка9[[#This Row],[Модель\n картриджа]])*Таб_Xerox17[стоимость],(Таб_HP18[[HP ]]=Таб_Заправка9[[#This Row],[Модель\n картриджа]])*Таб_HP18[стоимось],(Таб_Canon19[CANON]=Таб_Заправка9[[#This Row],[Модель\n картриджа]])*Таб_Canon19[стоимость])","v":300},{"$f":"IF(Таб_Заправка9[[#This Row],[Стоимость\nзаправки]]<>0,Таб_Заправка9[[#This Row],[Стоимость\nзаправки]]-120,\"\")","v":180}]
[null,{"$f":"ROW(B262)-ROW(Таб_Заправка9[[#Headers],[№]])","v":256},{"$f":"IF((D262)=0,NOW(),C262)","v":"2009-05-29T14:48:36.970"},"SCX 4200",{"$f":"SUM((Таб_Samsung16[SAMSUNG]=Таб_Заправка9[[#This Row],[Модель\n картриджа]])*Таб_Samsung16[стоимость],(Таб_Xerox17[XEROX]=Таб_Заправка9[[#This Row],[Модель\n картриджа]])*Таб_Xerox17[стоимость],(Таб_HP18[[HP ]]=Таб_Заправка9[[#This Row],[Модель\n картриджа]])*Таб_HP18[стоимось],(Таб_Canon19[CANON]=Таб_Заправка9[[#This Row],[Модель\n картриджа]])*Таб_Canon19[стоимость])","v":400},{"$f":"IF(Таб_Заправка9[[#This Row],[Стоимость\nзаправки]]<>0,Таб_Заправка9[[#This Row],[Стоимость\nзаправки]]-120,\"\")","v":280}]
[null,{"$f":"ROW(B263)-ROW(Таб_Заправка9[[#Headers],[№]])","v":257},{"$f":"IF((D263)=0,NOW(),C263)","v":"2009-05-29T14:48:50.490"},"Q2612A     (HP1010)",{"$f":"SUM((Таб_Samsung16[SAMSUNG]=Таб_Заправка9[[#This Row],[Модель\n картриджа]])*Таб_Samsung16[стоимость],(Таб_Xerox17[XEROX]=Таб_Заправка9[[#This Row],[Модель\n картриджа]])*Таб_Xerox17[стоимость],(Таб_HP18[[HP ]]=Таб_Заправка9[[#This Row],[Модель\n картриджа]])*Таб_HP18[стоимось],(Таб_Canon19[CANON]=Таб_Заправка9[[#This Row],[Модель\n картриджа]])*Таб_Canon19[стоимость])","v":250},{"$f":"IF(Таб_Заправка9[[#This Row],[Стоимость\nзаправки]]<>0,Таб_Заправка9[[#This Row],[Стоимость\nзаправки]]-120,\"\")","v":130}]
[null,{"$f":"ROW(B264)-ROW(Таб_Заправка9[[#Headers],[№]])","v":258},{"$f":"IF((D264)=0,NOW(),C264)","v":"2009-05-29T14:49:07"},"Q2612A     (HP1010)",{"$f":"SUM((Таб_Samsung16[SAMSUNG]=Таб_Заправка9[[#This Row],[Модель\n картриджа]])*Таб_Samsung16[стоимость],(Таб_Xerox17[XEROX]=Таб_Заправка9[[#This Row],[Модель\n картриджа]])*Таб_Xerox17[стоимость],(Таб_HP18[[HP ]]=Таб_Заправка9[[#This Row],[Модель\n картриджа]])*Таб_HP18[стоимось],(Таб_Canon19[CANON]=Таб_Заправка9[[#This Row],[Модель\n картриджа]])*Таб_Canon19[стоимость])","v":250},{"$f":"IF(Таб_Заправка9[[#This Row],[Стоимость\nзаправки]]<>0,Таб_Заправка9[[#This Row],[Стоимость\nзаправки]]-120,\"\")","v":130}]
[null,{"$f":"ROW(B265)-ROW(Таб_Заправка9[[#Headers],[№]])","v":259},{"$f":"IF((D265)=0,NOW(),C265)","v":"2009-05-29T14:49:07"},"Q2612A     (HP1010)",{"$f":"SUM((Таб_Samsung16[SAMSUNG]=Таб_Заправка9[[#This Row],[Модель\n картриджа]])*Таб_Samsung16[стоимость],(Таб_Xerox17[XEROX]=Таб_Заправка9[[#This Row],[Модель\n картриджа]])*Таб_Xerox17[стоимость],(Таб_HP18[[HP ]]=Таб_Заправка9[[#This Row],[Модель\n картриджа]])*Таб_HP18[стоимось],(Таб_Canon19[CANON]=Таб_Заправка9[[#This Row],[Модель\n картриджа]])*Таб_Canon19[стоимость])","v":250},{"$f":"IF(Таб_Заправка9[[#This Row],[Стоимость\nзаправки]]<>0,Таб_Заправка9[[#This Row],[Стоимость\nзаправки]]-120,\"\")","v":130}]
[null,{"$f":"ROW(B266)-ROW(Таб_Заправка9[[#Headers],[№]])","v":260},{"$f":"IF((D266)=0,NOW(),C266)","v":"2009-05-29T14:49:11.920"},"C4092A     (HP1100)",{"$f":"SUM((Таб_Samsung16[SAMSUNG]=Таб_Заправка9[[#This Row],[Модель\n картриджа]])*Таб_Samsung16[стоимость],(Таб_Xerox17[XEROX]=Таб_Заправка9[[#This Row],[Модель\n картриджа]])*Таб_Xerox17[стоимость],(Таб_HP18[[HP ]]=Таб_Заправка9[[#This Row],[Модель\n картриджа]])*Таб_HP18[стоимось],(Таб_Canon19[CANON]=Таб_Заправка9[[#This Row],[Модель\n картриджа]])*Таб_Canon19[стоимость])","v":250},{"$f":"IF(Таб_Заправка9[[#This Row],[Стоимость\nзаправки]]<>0,Таб_Заправка9[[#This Row],[Стоимость\nзаправки]]-120,\"\")","v":130}]
[null,{"$f":"ROW(B267)-ROW(Таб_Заправка9[[#Headers],[№]])","v":261},{"$f":"IF((D267)=0,NOW(),C267)","v":"2009-06-01T15:20:54.370"},"Phaser 3120",{"$f":"SUM((Таб_Samsung16[SAMSUNG]=Таб_Заправка9[[#This Row],[Модель\n картриджа]])*Таб_Samsung16[стоимость],(Таб_Xerox17[XEROX]=Таб_Заправка9[[#This Row],[Модель\n картриджа]])*Таб_Xerox17[стоимость],(Таб_HP18[[HP ]]=Таб_Заправка9[[#This Row],[Модель\n картриджа]])*Таб_HP18[стоимось],(Таб_Canon19[CANON]=Таб_Заправка9[[#This Row],[Модель\n картриджа]])*Таб_Canon19[стоимость])","v":300},{"$f":"IF(Таб_Заправка9[[#This Row],[Стоимость\nзаправки]]<>0,Таб_Заправка9[[#This Row],[Стоимость\nзаправки]]-120,\"\")","v":180}]
[null,{"$f":"ROW(B268)-ROW(Таб_Заправка9[[#Headers],[№]])","v":262},{"$f":"IF((D268)=0,NOW(),C268)","v":"2009-06-01T15:21:05.500"},"Phaser 3117/22",{"$f":"SUM((Таб_Samsung16[SAMSUNG]=Таб_Заправка9[[#This Row],[Модель\n картриджа]])*Таб_Samsung16[стоимость],(Таб_Xerox17[XEROX]=Таб_Заправка9[[#This Row],[Модель\n картриджа]])*Таб_Xerox17[стоимость],(Таб_HP18[[HP ]]=Таб_Заправка9[[#This Row],[Модель\n картриджа]])*Таб_HP18[стоимось],(Таб_Canon19[CANON]=Таб_Заправка9[[#This Row],[Модель\n картриджа]])*Таб_Canon19[стоимость])","v":300},{"$f":"IF(Таб_Заправка9[[#This Row],[Стоимость\nзаправки]]<>0,Таб_Заправка9[[#This Row],[Стоимость\nзаправки]]-120,\"\")","v":180}]
[null,{"$f":"ROW(B269)-ROW(Таб_Заправка9[[#Headers],[№]])","v":263},{"$f":"IF((D269)=0,NOW(),C269)","v":"2009-06-01T15:21:11.920"},"Phaser 3117/22",{"$f":"SUM((Таб_Samsung16[SAMSUNG]=Таб_Заправка9[[#This Row],[Модель\n картриджа]])*Таб_Samsung16[стоимость],(Таб_Xerox17[XEROX]=Таб_Заправка9[[#This Row],[Модель\n картриджа]])*Таб_Xerox17[стоимость],(Таб_HP18[[HP ]]=Таб_Заправка9[[#This Row],[Модель\n картриджа]])*Таб_HP18[стоимось],(Таб_Canon19[CANON]=Таб_Заправка9[[#This Row],[Модель\n картриджа]])*Таб_Canon19[стоимость])","v":300},{"$f":"IF(Таб_Заправка9[[#This Row],[Стоимость\nзаправки]]<>0,Таб_Заправка9[[#This Row],[Стоимость\nзаправки]]-120,\"\")","v":180}]
[null,{"$f":"ROW(B270)-ROW(Таб_Заправка9[[#Headers],[№]])","v":264},{"$f":"IF((D270)=0,NOW(),C270)","v":"2009-06-01T15:21:20.640"},"Phaser 3117/22",{"$f":"SUM((Таб_Samsung16[SAMSUNG]=Таб_Заправка9[[#This Row],[Модель\n картриджа]])*Таб_Samsung16[стоимость],(Таб_Xerox17[XEROX]=Таб_Заправка9[[#This Row],[Модель\n картриджа]])*Таб_Xerox17[стоимость],(Таб_HP18[[HP ]]=Таб_Заправка9[[#This Row],[Модель\n картриджа]])*Таб_HP18[стоимось],(Таб_Canon19[CANON]=Таб_Заправка9[[#This Row],[Модель\n картриджа]])*Таб_Canon19[стоимость])","v":300},{"$f":"IF(Таб_Заправка9[[#This Row],[Стоимость\nзаправки]]<>0,Таб_Заправка9[[#This Row],[Стоимость\nзаправки]]-120,\"\")","v":180}]
[null,{"$f":"ROW(B271)-ROW(Таб_Заправка9[[#Headers],[№]])","v":265},{"$f":"IF((D271)=0,NOW(),C271)","v":"2009-06-01T15:21:48.450"},"SCX 4200",{"$f":"SUM((Таб_Samsung16[SAMSUNG]=Таб_Заправка9[[#This Row],[Модель\n картриджа]])*Таб_Samsung16[стоимость],(Таб_Xerox17[XEROX]=Таб_Заправка9[[#This Row],[Модель\n картриджа]])*Таб_Xerox17[стоимость],(Таб_HP18[[HP ]]=Таб_Заправка9[[#This Row],[Модель\n картриджа]])*Таб_HP18[стоимось],(Таб_Canon19[CANON]=Таб_Заправка9[[#This Row],[Модель\n картриджа]])*Таб_Canon19[стоимость])","v":400},{"$f":"IF(Таб_Заправка9[[#This Row],[Стоимость\nзаправки]]<>0,Таб_Заправка9[[#This Row],[Стоимость\nзаправки]]-120,\"\")","v":280}]
[null,{"$f":"ROW(B272)-ROW(Таб_Заправка9[[#Headers],[№]])","v":266},{"$f":"IF((D272)=0,NOW(),C272)","v":"2009-06-01T16:13:52.640"},"PE 114",{"$f":"SUM((Таб_Samsung16[SAMSUNG]=Таб_Заправка9[[#This Row],[Модель\n картриджа]])*Таб_Samsung16[стоимость],(Таб_Xerox17[XEROX]=Таб_Заправка9[[#This Row],[Модель\n картриджа]])*Таб_Xerox17[стоимость],(Таб_HP18[[HP ]]=Таб_Заправка9[[#This Row],[Модель\n картриджа]])*Таб_HP18[стоимось],(Таб_Canon19[CANON]=Таб_Заправка9[[#This Row],[Модель\n картриджа]])*Таб_Canon19[стоимость])","v":300},{"$f":"IF(Таб_Заправка9[[#This Row],[Стоимость\nзаправки]]<>0,Таб_Заправка9[[#This Row],[Стоимость\nзаправки]]-120,\"\")","v":180}]
[null,{"$f":"ROW(B273)-ROW(Таб_Заправка9[[#Headers],[№]])","v":267},{"$f":"IF((D273)=0,NOW(),C273)","v":"2009-06-01T16:14:03.800"},"C4092A     (HP1100)",{"$f":"SUM((Таб_Samsung16[SAMSUNG]=Таб_Заправка9[[#This Row],[Модель\n картриджа]])*Таб_Samsung16[стоимость],(Таб_Xerox17[XEROX]=Таб_Заправка9[[#This Row],[Модель\n картриджа]])*Таб_Xerox17[стоимость],(Таб_HP18[[HP ]]=Таб_Заправка9[[#This Row],[Модель\n картриджа]])*Таб_HP18[стоимось],(Таб_Canon19[CANON]=Таб_Заправка9[[#This Row],[Модель\n картриджа]])*Таб_Canon19[стоимость])","v":250},{"$f":"IF(Таб_Заправка9[[#This Row],[Стоимость\nзаправки]]<>0,Таб_Заправка9[[#This Row],[Стоимость\nзаправки]]-120,\"\")","v":130}]
[null,{"$f":"ROW(B274)-ROW(Таб_Заправка9[[#Headers],[№]])","v":268},{"$f":"IF((D274)=0,NOW(),C274)","v":"2009-06-02T11:15:06.500"},"EP22   (LBP 810)",{"$f":"SUM((Таб_Samsung16[SAMSUNG]=Таб_Заправка9[[#This Row],[Модель\n картриджа]])*Таб_Samsung16[стоимость],(Таб_Xerox17[XEROX]=Таб_Заправка9[[#This Row],[Модель\n картриджа]])*Таб_Xerox17[стоимость],(Таб_HP18[[HP ]]=Таб_Заправка9[[#This Row],[Модель\n картриджа]])*Таб_HP18[стоимось],(Таб_Canon19[CANON]=Таб_Заправка9[[#This Row],[Модель\n картриджа]])*Таб_Canon19[стоимость])","v":250},{"$f":"IF(Таб_Заправка9[[#This Row],[Стоимость\nзаправки]]<>0,Таб_Заправка9[[#This Row],[Стоимость\nзаправки]]-120,\"\")","v":130}]
[null,{"$f":"ROW(B275)-ROW(Таб_Заправка9[[#Headers],[№]])","v":269},{"$f":"IF((D275)=0,NOW(),C275)","v":"2009-06-02T11:15:20.390"},"EP22   (LBP 810)",{"$f":"SUM((Таб_Samsung16[SAMSUNG]=Таб_Заправка9[[#This Row],[Модель\n картриджа]])*Таб_Samsung16[стоимость],(Таб_Xerox17[XEROX]=Таб_Заправка9[[#This Row],[Модель\n картриджа]])*Таб_Xerox17[стоимость],(Таб_HP18[[HP ]]=Таб_Заправка9[[#This Row],[Модель\n картриджа]])*Таб_HP18[стоимось],(Таб_Canon19[CANON]=Таб_Заправка9[[#This Row],[Модель\n картриджа]])*Таб_Canon19[стоимость])","v":250},{"$f":"IF(Таб_Заправка9[[#This Row],[Стоимость\nзаправки]]<>0,Таб_Заправка9[[#This Row],[Стоимость\nзаправки]]-120,\"\")","v":130}]
[null,{"$f":"ROW(B276)-ROW(Таб_Заправка9[[#Headers],[№]])","v":270},{"$f":"IF((D276)=0,NOW(),C276)","v":"2009-06-02T11:15:38.070"},"SCX 4100",{"$f":"SUM((Таб_Samsung16[SAMSUNG]=Таб_Заправка9[[#This Row],[Модель\n картриджа]])*Таб_Samsung16[стоимость],(Таб_Xerox17[XEROX]=Таб_Заправка9[[#This Row],[Модель\n картриджа]])*Таб_Xerox17[стоимость],(Таб_HP18[[HP ]]=Таб_Заправка9[[#This Row],[Модель\n картриджа]])*Таб_HP18[стоимось],(Таб_Canon19[CANON]=Таб_Заправка9[[#This Row],[Модель\n картриджа]])*Таб_Canon19[стоимость])","v":300},{"$f":"IF(Таб_Заправка9[[#This Row],[Стоимость\nзаправки]]<>0,Таб_Заправка9[[#This Row],[Стоимость\nзаправки]]-120,\"\")","v":180}]
[null,{"$f":"ROW(B277)-ROW(Таб_Заправка9[[#Headers],[№]])","v":271},{"$f":"IF((D277)=0,NOW(),C277)","v":"2009-06-03T10:42:14.180"},"Phaser 3117/22",{"$f":"SUM((Таб_Samsung16[SAMSUNG]=Таб_Заправка9[[#This Row],[Модель\n картриджа]])*Таб_Samsung16[стоимость],(Таб_Xerox17[XEROX]=Таб_Заправка9[[#This Row],[Модель\n картриджа]])*Таб_Xerox17[стоимость],(Таб_HP18[[HP ]]=Таб_Заправка9[[#This Row],[Модель\n картриджа]])*Таб_HP18[стоимось],(Таб_Canon19[CANON]=Таб_Заправка9[[#This Row],[Модель\n картриджа]])*Таб_Canon19[стоимость])","v":300},{"$f":"IF(Таб_Заправка9[[#This Row],[Стоимость\nзаправки]]<>0,Таб_Заправка9[[#This Row],[Стоимость\nзаправки]]-120,\"\")","v":180}]
[null,{"$f":"ROW(B278)-ROW(Таб_Заправка9[[#Headers],[№]])","v":272},{"$f":"IF((D278)=0,NOW(),C278)","v":"2009-06-04T11:47:01.900"},"Phaser 3150",{"$f":"SUM((Таб_Samsung16[SAMSUNG]=Таб_Заправка9[[#This Row],[Модель\n картриджа]])*Таб_Samsung16[стоимость],(Таб_Xerox17[XEROX]=Таб_Заправка9[[#This Row],[Модель\n картриджа]])*Таб_Xerox17[стоимость],(Таб_HP18[[HP ]]=Таб_Заправка9[[#This Row],[Модель\n картриджа]])*Таб_HP18[стоимось],(Таб_Canon19[CANON]=Таб_Заправка9[[#This Row],[Модель\n картриджа]])*Таб_Canon19[стоимость])","v":500},{"$f":"IF(Таб_Заправка9[[#This Row],[Стоимость\nзаправки]]<>0,Таб_Заправка9[[#This Row],[Стоимость\nзаправки]]-120,\"\")","v":380}]
[null,{"$f":"ROW(B279)-ROW(Таб_Заправка9[[#Headers],[№]])","v":273},{"$f":"IF((D279)=0,NOW(),C279)","v":"2009-06-04T11:47:10"},"Phaser 3250",{"$f":"SUM((Таб_Samsung16[SAMSUNG]=Таб_Заправка9[[#This Row],[Модель\n картриджа]])*Таб_Samsung16[стоимость],(Таб_Xerox17[XEROX]=Таб_Заправка9[[#This Row],[Модель\n картриджа]])*Таб_Xerox17[стоимость],(Таб_HP18[[HP ]]=Таб_Заправка9[[#This Row],[Модель\n картриджа]])*Таб_HP18[стоимось],(Таб_Canon19[CANON]=Таб_Заправка9[[#This Row],[Модель\n картриджа]])*Таб_Canon19[стоимость])","v":700},{"$f":"IF(Таб_Заправка9[[#This Row],[Стоимость\nзаправки]]<>0,Таб_Заправка9[[#This Row],[Стоимость\nзаправки]]-120,\"\")","v":580}]
[null,{"$f":"ROW(B280)-ROW(Таб_Заправка9[[#Headers],[№]])","v":274},{"$f":"IF((D280)=0,NOW(),C280)","v":"2009-06-04T11:47:15.850"},"MFP-3200",{"$f":"SUM((Таб_Samsung16[SAMSUNG]=Таб_Заправка9[[#This Row],[Модель\n картриджа]])*Таб_Samsung16[стоимость],(Таб_Xerox17[XEROX]=Таб_Заправка9[[#This Row],[Модель\n картриджа]])*Таб_Xerox17[стоимость],(Таб_HP18[[HP ]]=Таб_Заправка9[[#This Row],[Модель\n картриджа]])*Таб_HP18[стоимось],(Таб_Canon19[CANON]=Таб_Заправка9[[#This Row],[Модель\n картриджа]])*Таб_Canon19[стоимость])","v":600},{"$f":"IF(Таб_Заправка9[[#This Row],[Стоимость\nзаправки]]<>0,Таб_Заправка9[[#This Row],[Стоимость\nзаправки]]-120,\"\")","v":480}]
[null,{"$f":"ROW(B281)-ROW(Таб_Заправка9[[#Headers],[№]])","v":275},{"$f":"IF((D281)=0,NOW(),C281)","v":"2009-06-05T15:06:41.890"},"EP22   (LBP 810)",{"$f":"SUM((Таб_Samsung16[SAMSUNG]=Таб_Заправка9[[#This Row],[Модель\n картриджа]])*Таб_Samsung16[стоимость],(Таб_Xerox17[XEROX]=Таб_Заправка9[[#This Row],[Модель\n картриджа]])*Таб_Xerox17[стоимость],(Таб_HP18[[HP ]]=Таб_Заправка9[[#This Row],[Модель\n картриджа]])*Таб_HP18[стоимось],(Таб_Canon19[CANON]=Таб_Заправка9[[#This Row],[Модель\n картриджа]])*Таб_Canon19[стоимость])","v":250},{"$f":"IF(Таб_Заправка9[[#This Row],[Стоимость\nзаправки]]<>0,Таб_Заправка9[[#This Row],[Стоимость\nзаправки]]-120,\"\")","v":130}]
[null,{"$f":"ROW(B282)-ROW(Таб_Заправка9[[#Headers],[№]])","v":276},{"$f":"IF((D282)=0,NOW(),C282)","v":"2009-06-05T15:06:51.480"},"E16/30",{"$f":"SUM((Таб_Samsung16[SAMSUNG]=Таб_Заправка9[[#This Row],[Модель\n картриджа]])*Таб_Samsung16[стоимость],(Таб_Xerox17[XEROX]=Таб_Заправка9[[#This Row],[Модель\n картриджа]])*Таб_Xerox17[стоимость],(Таб_HP18[[HP ]]=Таб_Заправка9[[#This Row],[Модель\n картриджа]])*Таб_HP18[стоимось],(Таб_Canon19[CANON]=Таб_Заправка9[[#This Row],[Модель\n картриджа]])*Таб_Canon19[стоимость])","v":250},{"$f":"IF(Таб_Заправка9[[#This Row],[Стоимость\nзаправки]]<>0,Таб_Заправка9[[#This Row],[Стоимость\nзаправки]]-120,\"\")","v":130}]
[null,{"$f":"ROW(B283)-ROW(Таб_Заправка9[[#Headers],[№]])","v":277},{"$f":"IF((D283)=0,NOW(),C283)","v":"2009-06-05T15:07:04.400"},"С-703   (LBP2900)",{"$f":"SUM((Таб_Samsung16[SAMSUNG]=Таб_Заправка9[[#This Row],[Модель\n картриджа]])*Таб_Samsung16[стоимость],(Таб_Xerox17[XEROX]=Таб_Заправка9[[#This Row],[Модель\n картриджа]])*Таб_Xerox17[стоимость],(Таб_HP18[[HP ]]=Таб_Заправка9[[#This Row],[Модель\n картриджа]])*Таб_HP18[стоимось],(Таб_Canon19[CANON]=Таб_Заправка9[[#This Row],[Модель\n картриджа]])*Таб_Canon19[стоимость])","v":250},{"$f":"IF(Таб_Заправка9[[#This Row],[Стоимость\nзаправки]]<>0,Таб_Заправка9[[#This Row],[Стоимость\nзаправки]]-120,\"\")","v":130}]
[null,{"$f":"ROW(B284)-ROW(Таб_Заправка9[[#Headers],[№]])","v":278},{"$f":"IF((D284)=0,NOW(),C284)","v":"2009-06-05T15:07:17.980"},"Q2612A     (HP1010)",{"$f":"SUM((Таб_Samsung16[SAMSUNG]=Таб_Заправка9[[#This Row],[Модель\n картриджа]])*Таб_Samsung16[стоимость],(Таб_Xerox17[XEROX]=Таб_Заправка9[[#This Row],[Модель\n картриджа]])*Таб_Xerox17[стоимость],(Таб_HP18[[HP ]]=Таб_Заправка9[[#This Row],[Модель\n картриджа]])*Таб_HP18[стоимось],(Таб_Canon19[CANON]=Таб_Заправка9[[#This Row],[Модель\n картриджа]])*Таб_Canon19[стоимость])","v":250},{"$f":"IF(Таб_Заправка9[[#This Row],[Стоимость\nзаправки]]<>0,Таб_Заправка9[[#This Row],[Стоимость\nзаправки]]-120,\"\")","v":130}]
[null,{"$f":"ROW(B285)-ROW(Таб_Заправка9[[#Headers],[№]])","v":279},{"$f":"IF((D285)=0,NOW(),C285)","v":"2009-06-05T15:07:30.200"},"Q2612A     (HP1010)",{"$f":"SUM((Таб_Samsung16[SAMSUNG]=Таб_Заправка9[[#This Row],[Модель\n картриджа]])*Таб_Samsung16[стоимость],(Таб_Xerox17[XEROX]=Таб_Заправка9[[#This Row],[Модель\n картриджа]])*Таб_Xerox17[стоимость],(Таб_HP18[[HP ]]=Таб_Заправка9[[#This Row],[Модель\n картриджа]])*Таб_HP18[стоимось],(Таб_Canon19[CANON]=Таб_Заправка9[[#This Row],[Модель\n картриджа]])*Таб_Canon19[стоимость])","v":250},{"$f":"IF(Таб_Заправка9[[#This Row],[Стоимость\nзаправки]]<>0,Таб_Заправка9[[#This Row],[Стоимость\nзаправки]]-120,\"\")","v":130}]
[null,{"$f":"ROW(B286)-ROW(Таб_Заправка9[[#Headers],[№]])","v":280},{"$f":"IF((D286)=0,NOW(),C286)","v":"2009-06-09T10:06:41.800"},"Q2612A     (HP1010)",{"$f":"SUM((Таб_Samsung16[SAMSUNG]=Таб_Заправка9[[#This Row],[Модель\n картриджа]])*Таб_Samsung16[стоимость],(Таб_Xerox17[XEROX]=Таб_Заправка9[[#This Row],[Модель\n картриджа]])*Таб_Xerox17[стоимость],(Таб_HP18[[HP ]]=Таб_Заправка9[[#This Row],[Модель\n картриджа]])*Таб_HP18[стоимось],(Таб_Canon19[CANON]=Таб_Заправка9[[#This Row],[Модель\n картриджа]])*Таб_Canon19[стоимость])","v":250},{"$f":"IF(Таб_Заправка9[[#This Row],[Стоимость\nзаправки]]<>0,Таб_Заправка9[[#This Row],[Стоимость\nзаправки]]-120,\"\")","v":130}]
[null,{"$f":"ROW(B287)-ROW(Таб_Заправка9[[#Headers],[№]])","v":281},{"$f":"IF((D287)=0,NOW(),C287)","v":"2009-06-09T10:06:50.110"},"SCX 4200",{"$f":"SUM((Таб_Samsung16[SAMSUNG]=Таб_Заправка9[[#This Row],[Модель\n картриджа]])*Таб_Samsung16[стоимость],(Таб_Xerox17[XEROX]=Таб_Заправка9[[#This Row],[Модель\n картриджа]])*Таб_Xerox17[стоимость],(Таб_HP18[[HP ]]=Таб_Заправка9[[#This Row],[Модель\n картриджа]])*Таб_HP18[стоимось],(Таб_Canon19[CANON]=Таб_Заправка9[[#This Row],[Модель\n картриджа]])*Таб_Canon19[стоимость])","v":400},{"$f":"IF(Таб_Заправка9[[#This Row],[Стоимость\nзаправки]]<>0,Таб_Заправка9[[#This Row],[Стоимость\nзаправки]]-120,\"\")","v":280}]
[null,{"$f":"ROW(B288)-ROW(Таб_Заправка9[[#Headers],[№]])","v":282},{"$f":"IF((D288)=0,NOW(),C288)","v":"2009-06-09T10:27:41.810"},"Phaser 3117/22",{"$f":"SUM((Таб_Samsung16[SAMSUNG]=Таб_Заправка9[[#This Row],[Модель\n картриджа]])*Таб_Samsung16[стоимость],(Таб_Xerox17[XEROX]=Таб_Заправка9[[#This Row],[Модель\n картриджа]])*Таб_Xerox17[стоимость],(Таб_HP18[[HP ]]=Таб_Заправка9[[#This Row],[Модель\n картриджа]])*Таб_HP18[стоимось],(Таб_Canon19[CANON]=Таб_Заправка9[[#This Row],[Модель\n картриджа]])*Таб_Canon19[стоимость])","v":300},{"$f":"IF(Таб_Заправка9[[#This Row],[Стоимость\nзаправки]]<>0,Таб_Заправка9[[#This Row],[Стоимость\nзаправки]]-120,\"\")","v":180}]
[null,{"$f":"ROW(B289)-ROW(Таб_Заправка9[[#Headers],[№]])","v":283},{"$f":"IF((D289)=0,NOW(),C289)","v":"2009-06-09T11:10:23.300"},"SCX 4100",{"$f":"SUM((Таб_Samsung16[SAMSUNG]=Таб_Заправка9[[#This Row],[Модель\n картриджа]])*Таб_Samsung16[стоимость],(Таб_Xerox17[XEROX]=Таб_Заправка9[[#This Row],[Модель\n картриджа]])*Таб_Xerox17[стоимость],(Таб_HP18[[HP ]]=Таб_Заправка9[[#This Row],[Модель\n картриджа]])*Таб_HP18[стоимось],(Таб_Canon19[CANON]=Таб_Заправка9[[#This Row],[Модель\n картриджа]])*Таб_Canon19[стоимость])","v":300},{"$f":"IF(Таб_Заправка9[[#This Row],[Стоимость\nзаправки]]<>0,Таб_Заправка9[[#This Row],[Стоимость\nзаправки]]-120,\"\")","v":180}]
[null,{"$f":"ROW(B290)-ROW(Таб_Заправка9[[#Headers],[№]])","v":284},{"$f":"IF((D290)=0,NOW(),C290)","v":"2009-06-09T11:10:35.590"},"Xerox P1210 ",{"$f":"SUM((Таб_Samsung16[SAMSUNG]=Таб_Заправка9[[#This Row],[Модель\n картриджа]])*Таб_Samsung16[стоимость],(Таб_Xerox17[XEROX]=Таб_Заправка9[[#This Row],[Модель\n картриджа]])*Таб_Xerox17[стоимость],(Таб_HP18[[HP ]]=Таб_Заправка9[[#This Row],[Модель\n картриджа]])*Таб_HP18[стоимось],(Таб_Canon19[CANON]=Таб_Заправка9[[#This Row],[Модель\n картриджа]])*Таб_Canon19[стоимость])","v":400},{"$f":"IF(Таб_Заправка9[[#This Row],[Стоимость\nзаправки]]<>0,Таб_Заправка9[[#This Row],[Стоимость\nзаправки]]-120,\"\")","v":280}]
[null,{"$f":"ROW(B291)-ROW(Таб_Заправка9[[#Headers],[№]])","v":285},{"$f":"IF((D291)=0,NOW(),C291)","v":"2009-06-10T10:35:37.350"},"Q6511 (HP2410)",{"$f":"SUM((Таб_Samsung16[SAMSUNG]=Таб_Заправка9[[#This Row],[Модель\n картриджа]])*Таб_Samsung16[стоимость],(Таб_Xerox17[XEROX]=Таб_Заправка9[[#This Row],[Модель\n картриджа]])*Таб_Xerox17[стоимость],(Таб_HP18[[HP ]]=Таб_Заправка9[[#This Row],[Модель\n картриджа]])*Таб_HP18[стоимось],(Таб_Canon19[CANON]=Таб_Заправка9[[#This Row],[Модель\n картриджа]])*Таб_Canon19[стоимость])","v":350},{"$f":"IF(Таб_Заправка9[[#This Row],[Стоимость\nзаправки]]<>0,Таб_Заправка9[[#This Row],[Стоимость\nзаправки]]-120,\"\")","v":230}]
[null,{"$f":"ROW(B292)-ROW(Таб_Заправка9[[#Headers],[№]])","v":286},{"$f":"IF((D292)=0,NOW(),C292)","v":"2009-06-10T10:36:01"},"Q6511 (HP2410)",{"$f":"SUM((Таб_Samsung16[SAMSUNG]=Таб_Заправка9[[#This Row],[Модель\n картриджа]])*Таб_Samsung16[стоимость],(Таб_Xerox17[XEROX]=Таб_Заправка9[[#This Row],[Модель\n картриджа]])*Таб_Xerox17[стоимость],(Таб_HP18[[HP ]]=Таб_Заправка9[[#This Row],[Модель\n картриджа]])*Таб_HP18[стоимось],(Таб_Canon19[CANON]=Таб_Заправка9[[#This Row],[Модель\n картриджа]])*Таб_Canon19[стоимость])","v":350},{"$f":"IF(Таб_Заправка9[[#This Row],[Стоимость\nзаправки]]<>0,Таб_Заправка9[[#This Row],[Стоимость\nзаправки]]-120,\"\")","v":230}]
[null,{"$f":"ROW(B293)-ROW(Таб_Заправка9[[#Headers],[№]])","v":287},{"$f":"IF((D293)=0,NOW(),C293)","v":"2009-06-10T11:11:13.090"},"C4092A     (HP1100)",{"$f":"SUM((Таб_Samsung16[SAMSUNG]=Таб_Заправка9[[#This Row],[Модель\n картриджа]])*Таб_Samsung16[стоимость],(Таб_Xerox17[XEROX]=Таб_Заправка9[[#This Row],[Модель\n картриджа]])*Таб_Xerox17[стоимость],(Таб_HP18[[HP ]]=Таб_Заправка9[[#This Row],[Модель\n картриджа]])*Таб_HP18[стоимось],(Таб_Canon19[CANON]=Таб_Заправка9[[#This Row],[Модель\n картриджа]])*Таб_Canon19[стоимость])","v":250},{"$f":"IF(Таб_Заправка9[[#This Row],[Стоимость\nзаправки]]<>0,Таб_Заправка9[[#This Row],[Стоимость\nзаправки]]-120,\"\")","v":130}]
[null,{"$f":"ROW(B294)-ROW(Таб_Заправка9[[#Headers],[№]])","v":288},{"$f":"IF((D294)=0,NOW(),C294)","v":"2009-06-10T11:11:28.150"},"FX-10   (L100/ L120)",{"$f":"SUM((Таб_Samsung16[SAMSUNG]=Таб_Заправка9[[#This Row],[Модель\n картриджа]])*Таб_Samsung16[стоимость],(Таб_Xerox17[XEROX]=Таб_Заправка9[[#This Row],[Модель\n картриджа]])*Таб_Xerox17[стоимость],(Таб_HP18[[HP ]]=Таб_Заправка9[[#This Row],[Модель\n картриджа]])*Таб_HP18[стоимось],(Таб_Canon19[CANON]=Таб_Заправка9[[#This Row],[Модель\n картриджа]])*Таб_Canon19[стоимость])","v":250},{"$f":"IF(Таб_Заправка9[[#This Row],[Стоимость\nзаправки]]<>0,Таб_Заправка9[[#This Row],[Стоимость\nзаправки]]-120,\"\")","v":130}]
[null,{"$f":"ROW(B295)-ROW(Таб_Заправка9[[#Headers],[№]])","v":289},{"$f":"IF((D295)=0,NOW(),C295)","v":"2009-06-10T11:11:34.680"},"FX-10   (L100/ L120)",{"$f":"SUM((Таб_Samsung16[SAMSUNG]=Таб_Заправка9[[#This Row],[Модель\n картриджа]])*Таб_Samsung16[стоимость],(Таб_Xerox17[XEROX]=Таб_Заправка9[[#This Row],[Модель\n картриджа]])*Таб_Xerox17[стоимость],(Таб_HP18[[HP ]]=Таб_Заправка9[[#This Row],[Модель\n картриджа]])*Таб_HP18[стоимось],(Таб_Canon19[CANON]=Таб_Заправка9[[#This Row],[Модель\n картриджа]])*Таб_Canon19[стоимость])","v":250},{"$f":"IF(Таб_Заправка9[[#This Row],[Стоимость\nзаправки]]<>0,Таб_Заправка9[[#This Row],[Стоимость\nзаправки]]-120,\"\")","v":130}]
[null,{"$f":"ROW(B296)-ROW(Таб_Заправка9[[#Headers],[№]])","v":290},{"$f":"IF((D296)=0,NOW(),C296)","v":"2009-06-10T12:32:06.540"},"MFP-3200",{"$f":"SUM((Таб_Samsung16[SAMSUNG]=Таб_Заправка9[[#This Row],[Модель\n картриджа]])*Таб_Samsung16[стоимость],(Таб_Xerox17[XEROX]=Таб_Заправка9[[#This Row],[Модель\n картриджа]])*Таб_Xerox17[стоимость],(Таб_HP18[[HP ]]=Таб_Заправка9[[#This Row],[Модель\n картриджа]])*Таб_HP18[стоимось],(Таб_Canon19[CANON]=Таб_Заправка9[[#This Row],[Модель\n картриджа]])*Таб_Canon19[стоимость])","v":600},{"$f":"IF(Таб_Заправка9[[#This Row],[Стоимость\nзаправки]]<>0,Таб_Заправка9[[#This Row],[Стоимость\nзаправки]]-120,\"\")","v":480}]
[null,{"$f":"ROW(B297)-ROW(Таб_Заправка9[[#Headers],[№]])","v":291},{"$f":"IF((D297)=0,NOW(),C297)","v":"2009-06-10T12:32:14.540"},"MFP-3200",{"$f":"SUM((Таб_Samsung16[SAMSUNG]=Таб_Заправка9[[#This Row],[Модель\n картриджа]])*Таб_Samsung16[стоимость],(Таб_Xerox17[XEROX]=Таб_Заправка9[[#This Row],[Модель\n картриджа]])*Таб_Xerox17[стоимость],(Таб_HP18[[HP ]]=Таб_Заправка9[[#This Row],[Модель\n картриджа]])*Таб_HP18[стоимось],(Таб_Canon19[CANON]=Таб_Заправка9[[#This Row],[Модель\n картриджа]])*Таб_Canon19[стоимость])","v":600},{"$f":"IF(Таб_Заправка9[[#This Row],[Стоимость\nзаправки]]<>0,Таб_Заправка9[[#This Row],[Стоимость\nзаправки]]-120,\"\")","v":480}]
[null,{"$f":"ROW(B298)-ROW(Таб_Заправка9[[#Headers],[№]])","v":292},{"$f":"IF((D298)=0,NOW(),C298)","v":"2009-06-10T12:32:28.090"},"MFP-3200",{"$f":"SUM((Таб_Samsung16[SAMSUNG]=Таб_Заправка9[[#This Row],[Модель\n картриджа]])*Таб_Samsung16[стоимость],(Таб_Xerox17[XEROX]=Таб_Заправка9[[#This Row],[Модель\n картриджа]])*Таб_Xerox17[стоимость],(Таб_HP18[[HP ]]=Таб_Заправка9[[#This Row],[Модель\n картриджа]])*Таб_HP18[стоимось],(Таб_Canon19[CANON]=Таб_Заправка9[[#This Row],[Модель\n картриджа]])*Таб_Canon19[стоимость])","v":600},{"$f":"IF(Таб_Заправка9[[#This Row],[Стоимость\nзаправки]]<>0,Таб_Заправка9[[#This Row],[Стоимость\nзаправки]]-120,\"\")","v":480}]
[null,{"$f":"ROW(B299)-ROW(Таб_Заправка9[[#Headers],[№]])","v":293},{"$f":"IF((D299)=0,NOW(),C299)","v":"2009-06-10T12:32:28.090"},"MFP-3200",{"$f":"SUM((Таб_Samsung16[SAMSUNG]=Таб_Заправка9[[#This Row],[Модель\n картриджа]])*Таб_Samsung16[стоимость],(Таб_Xerox17[XEROX]=Таб_Заправка9[[#This Row],[Модель\n картриджа]])*Таб_Xerox17[стоимость],(Таб_HP18[[HP ]]=Таб_Заправка9[[#This Row],[Модель\n картриджа]])*Таб_HP18[стоимось],(Таб_Canon19[CANON]=Таб_Заправка9[[#This Row],[Модель\n картриджа]])*Таб_Canon19[стоимость])","v":600},{"$f":"IF(Таб_Заправка9[[#This Row],[Стоимость\nзаправки]]<>0,Таб_Заправка9[[#This Row],[Стоимость\nзаправки]]-120,\"\")","v":480}]
[null,{"$f":"ROW(B300)-ROW(Таб_Заправка9[[#Headers],[№]])","v":294},{"$f":"IF((D300)=0,NOW(),C300)","v":"2009-06-10T12:32:28.090"},"MFP-3200",{"$f":"SUM((Таб_Samsung16[SAMSUNG]=Таб_Заправка9[[#This Row],[Модель\n картриджа]])*Таб_Samsung16[стоимость],(Таб_Xerox17[XEROX]=Таб_Заправка9[[#This Row],[Модель\n картриджа]])*Таб_Xerox17[стоимость],(Таб_HP18[[HP ]]=Таб_Заправка9[[#This Row],[Модель\n картриджа]])*Таб_HP18[стоимось],(Таб_Canon19[CANON]=Таб_Заправка9[[#This Row],[Модель\n картриджа]])*Таб_Canon19[стоимость])","v":600},{"$f":"IF(Таб_Заправка9[[#This Row],[Стоимость\nзаправки]]<>0,Таб_Заправка9[[#This Row],[Стоимость\nзаправки]]-120,\"\")","v":480}]
[null,{"$f":"ROW(B301)-ROW(Таб_Заправка9[[#Headers],[№]])","v":295},{"$f":"IF((D301)=0,NOW(),C301)","v":"2009-06-17T12:44:57.290"},"С-703   (LBP2900)",{"$f":"SUM((Таб_Samsung16[SAMSUNG]=Таб_Заправка9[[#This Row],[Модель\n картриджа]])*Таб_Samsung16[стоимость],(Таб_Xerox17[XEROX]=Таб_Заправка9[[#This Row],[Модель\n картриджа]])*Таб_Xerox17[стоимость],(Таб_HP18[[HP ]]=Таб_Заправка9[[#This Row],[Модель\n картриджа]])*Таб_HP18[стоимось],(Таб_Canon19[CANON]=Таб_Заправка9[[#This Row],[Модель\n картриджа]])*Таб_Canon19[стоимость])","v":250},{"$f":"IF(Таб_Заправка9[[#This Row],[Стоимость\nзаправки]]<>0,Таб_Заправка9[[#This Row],[Стоимость\nзаправки]]-120,\"\")","v":130}]
[null,{"$f":"ROW(B302)-ROW(Таб_Заправка9[[#Headers],[№]])","v":296},{"$f":"IF((D302)=0,NOW(),C302)","v":"2009-06-17T12:45:04.750"},"С-703   (LBP2900)",{"$f":"SUM((Таб_Samsung16[SAMSUNG]=Таб_Заправка9[[#This Row],[Модель\n картриджа]])*Таб_Samsung16[стоимость],(Таб_Xerox17[XEROX]=Таб_Заправка9[[#This Row],[Модель\n картриджа]])*Таб_Xerox17[стоимость],(Таб_HP18[[HP ]]=Таб_Заправка9[[#This Row],[Модель\n картриджа]])*Таб_HP18[стоимось],(Таб_Canon19[CANON]=Таб_Заправка9[[#This Row],[Модель\n картриджа]])*Таб_Canon19[стоимость])","v":250},{"$f":"IF(Таб_Заправка9[[#This Row],[Стоимость\nзаправки]]<>0,Таб_Заправка9[[#This Row],[Стоимость\nзаправки]]-120,\"\")","v":130}]
[null,{"$f":"ROW(B303)-ROW(Таб_Заправка9[[#Headers],[№]])","v":297},{"$f":"IF((D303)=0,NOW(),C303)","v":"2009-06-18T12:11:08.040"},"C7115 A     (HP1200)",{"$f":"SUM((Таб_Samsung16[SAMSUNG]=Таб_Заправка9[[#This Row],[Модель\n картриджа]])*Таб_Samsung16[стоимость],(Таб_Xerox17[XEROX]=Таб_Заправка9[[#This Row],[Модель\n картриджа]])*Таб_Xerox17[стоимость],(Таб_HP18[[HP ]]=Таб_Заправка9[[#This Row],[Модель\n картриджа]])*Таб_HP18[стоимось],(Таб_Canon19[CANON]=Таб_Заправка9[[#This Row],[Модель\n картриджа]])*Таб_Canon19[стоимость])","v":250},{"$f":"IF(Таб_Заправка9[[#This Row],[Стоимость\nзаправки]]<>0,Таб_Заправка9[[#This Row],[Стоимость\nзаправки]]-120,\"\")","v":130}]
[null,{"$f":"ROW(B304)-ROW(Таб_Заправка9[[#Headers],[№]])","v":298},{"$f":"IF((D304)=0,NOW(),C304)","v":"2009-06-19T12:12:37"},"C4092A     (HP1100)",{"$f":"SUM((Таб_Samsung16[SAMSUNG]=Таб_Заправка9[[#This Row],[Модель\n картриджа]])*Таб_Samsung16[стоимость],(Таб_Xerox17[XEROX]=Таб_Заправка9[[#This Row],[Модель\n картриджа]])*Таб_Xerox17[стоимость],(Таб_HP18[[HP ]]=Таб_Заправка9[[#This Row],[Модель\n картриджа]])*Таб_HP18[стоимось],(Таб_Canon19[CANON]=Таб_Заправка9[[#This Row],[Модель\n картриджа]])*Таб_Canon19[стоимость])","v":250},{"$f":"IF(Таб_Заправка9[[#This Row],[Стоимость\nзаправки]]<>0,Таб_Заправка9[[#This Row],[Стоимость\nзаправки]]-120,\"\")","v":130}]
[null,{"$f":"ROW(B305)-ROW(Таб_Заправка9[[#Headers],[№]])","v":299},{"$f":"IF((D305)=0,NOW(),C305)","v":"2009-06-19T12:12:41.130"},"ML 1210",{"$f":"SUM((Таб_Samsung16[SAMSUNG]=Таб_Заправка9[[#This Row],[Модель\n картриджа]])*Таб_Samsung16[стоимость],(Таб_Xerox17[XEROX]=Таб_Заправка9[[#This Row],[Модель\n картриджа]])*Таб_Xerox17[стоимость],(Таб_HP18[[HP ]]=Таб_Заправка9[[#This Row],[Модель\n картриджа]])*Таб_HP18[стоимось],(Таб_Canon19[CANON]=Таб_Заправка9[[#This Row],[Модель\n картриджа]])*Таб_Canon19[стоимость])","v":300},{"$f":"IF(Таб_Заправка9[[#This Row],[Стоимость\nзаправки]]<>0,Таб_Заправка9[[#This Row],[Стоимость\nзаправки]]-120,\"\")","v":180}]
[null,{"$f":"ROW(B306)-ROW(Таб_Заправка9[[#Headers],[№]])","v":300},{"$f":"IF((D306)=0,NOW(),C306)","v":"2009-06-19T12:13:32.050"},"Xerox P1210 ",{"$f":"SUM((Таб_Samsung16[SAMSUNG]=Таб_Заправка9[[#This Row],[Модель\n картриджа]])*Таб_Samsung16[стоимость],(Таб_Xerox17[XEROX]=Таб_Заправка9[[#This Row],[Модель\n картриджа]])*Таб_Xerox17[стоимость],(Таб_HP18[[HP ]]=Таб_Заправка9[[#This Row],[Модель\n картриджа]])*Таб_HP18[стоимось],(Таб_Canon19[CANON]=Таб_Заправка9[[#This Row],[Модель\n картриджа]])*Таб_Canon19[стоимость])","v":400},{"$f":"IF(Таб_Заправка9[[#This Row],[Стоимость\nзаправки]]<>0,Таб_Заправка9[[#This Row],[Стоимость\nзаправки]]-120,\"\")","v":280}]
[null,{"$f":"ROW(B307)-ROW(Таб_Заправка9[[#Headers],[№]])","v":301},{"$f":"IF((D307)=0,NOW(),C307)","v":"2009-06-19T12:13:50.470"},"E16/30",{"$f":"SUM((Таб_Samsung16[SAMSUNG]=Таб_Заправка9[[#This Row],[Модель\n картриджа]])*Таб_Samsung16[стоимость],(Таб_Xerox17[XEROX]=Таб_Заправка9[[#This Row],[Модель\n картриджа]])*Таб_Xerox17[стоимость],(Таб_HP18[[HP ]]=Таб_Заправка9[[#This Row],[Модель\n картриджа]])*Таб_HP18[стоимось],(Таб_Canon19[CANON]=Таб_Заправка9[[#This Row],[Модель\n картриджа]])*Таб_Canon19[стоимость])","v":250},{"$f":"IF(Таб_Заправка9[[#This Row],[Стоимость\nзаправки]]<>0,Таб_Заправка9[[#This Row],[Стоимость\nзаправки]]-120,\"\")","v":130}]
[null,{"$f":"ROW(B308)-ROW(Таб_Заправка9[[#Headers],[№]])","v":302},{"$f":"IF((D308)=0,NOW(),C308)","v":"2009-06-19T15:34:23.730"},"ML 1210",{"$f":"SUM((Таб_Samsung16[SAMSUNG]=Таб_Заправка9[[#This Row],[Модель\n картриджа]])*Таб_Samsung16[стоимость],(Таб_Xerox17[XEROX]=Таб_Заправка9[[#This Row],[Модель\n картриджа]])*Таб_Xerox17[стоимость],(Таб_HP18[[HP ]]=Таб_Заправка9[[#This Row],[Модель\n картриджа]])*Таб_HP18[стоимось],(Таб_Canon19[CANON]=Таб_Заправка9[[#This Row],[Модель\n картриджа]])*Таб_Canon19[стоимость])","v":300},{"$f":"IF(Таб_Заправка9[[#This Row],[Стоимость\nзаправки]]<>0,Таб_Заправка9[[#This Row],[Стоимость\nзаправки]]-120,\"\")","v":180}]
[null,{"$f":"ROW(B309)-ROW(Таб_Заправка9[[#Headers],[№]])","v":303},{"$f":"IF((D309)=0,NOW(),C309)","v":"2009-06-19T15:34:32.230"},"C7115 A     (HP1200)",{"$f":"SUM((Таб_Samsung16[SAMSUNG]=Таб_Заправка9[[#This Row],[Модель\n картриджа]])*Таб_Samsung16[стоимость],(Таб_Xerox17[XEROX]=Таб_Заправка9[[#This Row],[Модель\n картриджа]])*Таб_Xerox17[стоимость],(Таб_HP18[[HP ]]=Таб_Заправка9[[#This Row],[Модель\n картриджа]])*Таб_HP18[стоимось],(Таб_Canon19[CANON]=Таб_Заправка9[[#This Row],[Модель\n картриджа]])*Таб_Canon19[стоимость])","v":250},{"$f":"IF(Таб_Заправка9[[#This Row],[Стоимость\nзаправки]]<>0,Таб_Заправка9[[#This Row],[Стоимость\nзаправки]]-120,\"\")","v":130}]
[null,{"$f":"ROW(B310)-ROW(Таб_Заправка9[[#Headers],[№]])","v":304},{"$f":"IF((D310)=0,NOW(),C310)","v":"2009-06-22T16:33:40.730"},"PE -16",{"$f":"SUM((Таб_Samsung16[SAMSUNG]=Таб_Заправка9[[#This Row],[Модель\n картриджа]])*Таб_Samsung16[стоимость],(Таб_Xerox17[XEROX]=Таб_Заправка9[[#This Row],[Модель\n картриджа]])*Таб_Xerox17[стоимость],(Таб_HP18[[HP ]]=Таб_Заправка9[[#This Row],[Модель\n картриджа]])*Таб_HP18[стоимось],(Таб_Canon19[CANON]=Таб_Заправка9[[#This Row],[Модель\n картриджа]])*Таб_Canon19[стоимость])","v":300},{"$f":"IF(Таб_Заправка9[[#This Row],[Стоимость\nзаправки]]<>0,Таб_Заправка9[[#This Row],[Стоимость\nзаправки]]-120,\"\")","v":180}]
[null,{"$f":"ROW(B311)-ROW(Таб_Заправка9[[#Headers],[№]])","v":305},{"$f":"IF((D311)=0,NOW(),C311)","v":"2009-06-23T10:50:04.890"},"Q2612A     (HP1010)",{"$f":"SUM((Таб_Samsung16[SAMSUNG]=Таб_Заправка9[[#This Row],[Модель\n картриджа]])*Таб_Samsung16[стоимость],(Таб_Xerox17[XEROX]=Таб_Заправка9[[#This Row],[Модель\n картриджа]])*Таб_Xerox17[стоимость],(Таб_HP18[[HP ]]=Таб_Заправка9[[#This Row],[Модель\n картриджа]])*Таб_HP18[стоимось],(Таб_Canon19[CANON]=Таб_Заправка9[[#This Row],[Модель\n картриджа]])*Таб_Canon19[стоимость])","v":250},{"$f":"IF(Таб_Заправка9[[#This Row],[Стоимость\nзаправки]]<>0,Таб_Заправка9[[#This Row],[Стоимость\nзаправки]]-120,\"\")","v":130}]
[null,{"$f":"ROW(B312)-ROW(Таб_Заправка9[[#Headers],[№]])","v":306},{"$f":"IF((D312)=0,NOW(),C312)","v":"2009-06-23T10:50:15.580"},"С-703   (LBP2900)",{"$f":"SUM((Таб_Samsung16[SAMSUNG]=Таб_Заправка9[[#This Row],[Модель\n картриджа]])*Таб_Samsung16[стоимость],(Таб_Xerox17[XEROX]=Таб_Заправка9[[#This Row],[Модель\n картриджа]])*Таб_Xerox17[стоимость],(Таб_HP18[[HP ]]=Таб_Заправка9[[#This Row],[Модель\n картриджа]])*Таб_HP18[стоимось],(Таб_Canon19[CANON]=Таб_Заправка9[[#This Row],[Модель\n картриджа]])*Таб_Canon19[стоимость])","v":250},{"$f":"IF(Таб_Заправка9[[#This Row],[Стоимость\nзаправки]]<>0,Таб_Заправка9[[#This Row],[Стоимость\nзаправки]]-120,\"\")","v":130}]
[null,{"$f":"ROW(B313)-ROW(Таб_Заправка9[[#Headers],[№]])","v":307},{"$f":"IF((D313)=0,NOW(),C313)","v":"2009-06-23T10:50:40.550"},"C4092A     (HP1100)",{"$f":"SUM((Таб_Samsung16[SAMSUNG]=Таб_Заправка9[[#This Row],[Модель\n картриджа]])*Таб_Samsung16[стоимость],(Таб_Xerox17[XEROX]=Таб_Заправка9[[#This Row],[Модель\n картриджа]])*Таб_Xerox17[стоимость],(Таб_HP18[[HP ]]=Таб_Заправка9[[#This Row],[Модель\n картриджа]])*Таб_HP18[стоимось],(Таб_Canon19[CANON]=Таб_Заправка9[[#This Row],[Модель\n картриджа]])*Таб_Canon19[стоимость])","v":250},{"$f":"IF(Таб_Заправка9[[#This Row],[Стоимость\nзаправки]]<>0,Таб_Заправка9[[#This Row],[Стоимость\nзаправки]]-120,\"\")","v":130}]
[null,{"$f":"ROW(B314)-ROW(Таб_Заправка9[[#Headers],[№]])","v":308},{"$f":"IF((D314)=0,NOW(),C314)","v":"2011-05-10T22:01:27.270"},"C4092A     (HP1100)",{"$f":"SUM((Таб_Samsung16[SAMSUNG]=Таб_Заправка9[[#This Row],[Модель\n картриджа]])*Таб_Samsung16[стоимость],(Таб_Xerox17[XEROX]=Таб_Заправка9[[#This Row],[Модель\n картриджа]])*Таб_Xerox17[стоимость],(Таб_HP18[[HP ]]=Таб_Заправка9[[#This Row],[Модель\n картриджа]])*Таб_HP18[стоимось],(Таб_Canon19[CANON]=Таб_Заправка9[[#This Row],[Модель\n картриджа]])*Таб_Canon19[стоимость])","v":250},{"$f":"IF(Таб_Заправка9[[#This Row],[Стоимость\nзаправки]]<>0,Таб_Заправка9[[#This Row],[Стоимость\nзаправки]]-120,\"\")","v":130}]
[null,null,"всего -",{"$f":"SUBTOTAL(103,D7:D314)","v":308},{"$f":"SUBTOTAL(109,E7:E314)","v":106400},{"$f":"SUBTOTAL(109,F7:F314)","v":69440}]

{"sheet":"Сводный","index":1,"n_rows":38,"n_cols":3,"rows_kept":38,"cut":false,"hidden":false,"merged":[]}
[]
[]
["Названия строк","Количество ","Сумма"]
["SCX 4200",66,18480]
["MFP-3200",22,10560]
["Phaser 3250",9,5220]
["Q2612A     (HP1010)",39,5070]
["Phaser 3117/22",17,3060]
["WC- 3119",10,2800]
["PE220",8,2240]
["С-703   (LBP2900)",16,2080]
["SCX 4*16",11,1980]
["ML 1210",8,1440]
["ML 1610/2010",8,1440]
["Q7553A   (HP P2015)",7,1260]
["PE -16",7,1260]
["C4092A     (HP1100)",9,1170]
["SCX 4100",6,1080]
["EP-27   (LBP3200)",8,1040]
["E16/30",8,1040]
["FX-10   (L100/ L120)",7,910]
["C7115 A     (HP1200)",7,910]
["Phaser 3120",5,900]
["CB436A   (HP P1505n)",6,780]
["EP22   (LBP 810)",6,780]
["PE 114",4,720]
["Xerox P1210 ",2,560]
["SCX 4725",1,480]
["Q6511 (HP2410)",2,460]
["Phaser 3150",1,380]
["Lexmark 230",1,280]
["HP 1320     (5949)",1,180]
["ML 1520",1,180]
["Phaser 3116",1,180]
["C-712   (LBP 3010)",1,130]
["CB435A   (HP P1006)",1,130]
["C7113 A     (HP1300)",1,130]
["Общий итог",307,69310]

{"sheet":"Стоимость","index":2,"n_rows":51,"n_cols":3,"rows_kept":51,"cut":false,"hidden":false,"merged":[]}
[]
[]
[null,"SAMSUNG","стоимость"]
[null,"ML 1210",300]
[null,"ML 1520",300]
[null,"ML 1610/2010",300]
[null,"ML 1710",300]
[null,"ML 5000",400]
[null,"SCX 4*16",300]
[null,"SCX 4100",300]
[null,"SCX 4*21",300]
[null,"SCX 4200",400]
[null,"SCX 4725",600]
[null,"XEROX","стоимость"]
[null,"MFP-3200",600]
[null,"PE 114",300]
[null,"PE -16",300]
[null,"PE 8",400]
[null,"pe120",500]
[null,"PE220",400]
[null,"Phaser 3116",300]
[null,"Phaser 3117/22",300]
[null,"Phaser 3120",300]
[null,"Phaser 3150",500]
[null,"Phaser 3250",700]
[null,"Phaser 3420",500]
[null,"Phaser 4118",500]
[null,"WC- 3119",400]
[null,"Xerox P1210 ",400]
[]
[null,"HP ","стоимось"]
[null,"C3906     (5L-6L)",250]
[null,"C4092A     (HP1100)",250]
[null,"C7113 A     (HP1300)",250]
[null,"C7115 A     (HP1200)",250]
[null,"CB435A   (HP P1006)",250]
[null,"CB436A   (HP P1505n)",250]
[null,"HP 1320     (5949)",300]
[null,"Q2612A     (HP1010)",250]
[null,"Q4096A     (HP2100)",150]
[null,"Q6511 (HP2410)",350]
[null,"Q7553A   (HP P2015)",300]
[null,"CANON","стоимость"]
[null,"C-712   (LBP 3010)",250]
[null,"E16/30",250]
[null,"EP22   (LBP 810)",250]
[null,"EP-27   (LBP3200)",250]
[null,"FX-10   (L100/ L120)",250]
[null,"FX-3   (L200)",250]
[null,"Lexmark 230",400]
[null,"С-703   (LBP2900)",250]